Body Name,Service Label,Expense Category,Date,Transaction Number,Net Amount,Supplier Name
TfGM,Transport,Capital Costs - Land Acquisition and Related Costs,02/04/2013,1900026484,"15,000.00",RICE 'N' THREE RESTAURANT
TfGM,Transport,Vehicle Costs,03/04/2013,1200024251,"1,173.59",ALLSTAR
TfGM,Corporate Services,Cyclescheme,03/04/2013,5100050159,831.63,CYCLESCHEME LTD
TfGM,Transport,Capital Costs - Environmental & Ecological Support Services,04/04/2013,5100049892,425.00,ACLAND BRACEWELL SURVEYORS LTD
TfGM,Corporate Services,Capital Costs - IS Support Services,04/04/2013,5100050180,"4,000.00",ACTIA UK LTD
TfGM,Transport,Vehicle Costs,04/04/2013,5100050193,500.00,ACTIA UK LTD
TfGM,Transport,Capital Costs - Programme and Project Management Services,04/04/2013,5100049992,"6,612.50",ACUITY PROGRAMME MANAGEMENT LTD
TfGM,Transport,Capital Costs - Programme and Project Management Services,04/04/2013,5100049993,"7,475.00",ACUITY PROGRAMME MANAGEMENT LTD
TfGM,Transport,Capital Costs - Programme and Project Management Services,04/04/2013,5100049994,"10,062.50",ACUITY PROGRAMME MANAGEMENT LTD
TfGM,Transport,Capital Costs - Programme and Project Management Services,04/04/2013,5100049995,"8,625.00",ACUITY PROGRAMME MANAGEMENT LTD
TfGM,Transport,Capital Costs - Transport Planning & Monitoring Services,04/04/2013,5100045266,"1,000.00",AECOM LTD
TfGM,Transport,Capital Costs - Transport Planning & Monitoring Services,04/04/2013,5100049706,(765.00),AECOM LTD
TfGM,Transport,Engineering Support Services,04/04/2013,5100049967,"6,570.00",AECOM LTD
TfGM,Transport,Capital Costs - Mechanical & Engineering Support Services,04/04/2013,5100049974,"6,300.00",AECOM LTD
TfGM,Transport,Capital Costs - Planning Support Services,04/04/2013,5100050001,"4,345.48",AECOM LTD
TfGM,Transport,Capital Costs - Planning Support Services,04/04/2013,5100050002,"11,643.60",AECOM LTD
TfGM,Transport,Capital Costs - Planning Support Services,04/04/2013,5100050003,672.00,AECOM LTD
TfGM,Transport,Engineering Support Services,04/04/2013,5100050004,"12,045.00",AECOM LTD
TfGM,Transport,Capital Costs - Transport Planning & Monitoring Services,04/04/2013,5100050005,"7,684.00",AECOM LTD
TfGM,Transport,Traffic Management Services,04/04/2013,5100050178,"3,264.00",AECOM LTD
TfGM,Corporate Services,Computer Support and Licences,04/04/2013,5100050166,"7,439.68",ANS GROUP PLC
TfGM,Transport,Paper and Printing Consumables,04/04/2013,5100049810,"18,315.00",ANTALIS LTD
TfGM,Transport,Paper and Printing Consumables,04/04/2013,5100050051,723.35,ANTALIS LTD
TfGM,Transport,Training,04/04/2013,5100050026,"1,350.00",ASTON CPD CENTRE
TfGM,Transport,Capital Costs - Project Management,04/04/2013,5100049812,"10,000.00",ATKINS LTD
TfGM,Transport,Capital Costs - Programme and Project Management Services,04/04/2013,5100049818,"9,489.38",ATKINS LTD
TfGM,Transport,Capital Costs - Engineering Support Services,04/04/2013,5100049979,"5,625.00",ATKINS LTD
TfGM,Transport,Capital Costs - Engineering Support Services,04/04/2013,5100050122,766.68,ATKINS LTD
TfGM,Transport,Capital Costs - Engineering Support Services,04/04/2013,5100050132,"1,274.63",ATKINS LTD
TfGM,Transport,Capital Costs - Programme and Project Management Services,04/04/2013,5100050232,"9,450.00",ATKINS LTD
TfGM,Transport,Capital Costs - LRT Vehicles,04/04/2013,5100050020,"2,269.00",AURA GRAPHICS LTD t/a FENN GRAPHICS
TfGM,Transport,Financial and Contract Management Services,04/04/2013,5100050013,"9,025.00",AUTUS LTD
TfGM,Corporate Services,IS Consumables,04/04/2013,5100049516,428.00,BLUE NETWORK SOLUTIONS LTD
TfGM,Corporate Services,IS Consumables,04/04/2013,5100049551,640.00,BLUE NETWORK SOLUTIONS LTD
TfGM,Transport,Concessionary Reimbursement,04/04/2013,1900026490,565.00,BLUELINE PRIVATE HIRE
TfGM,Transport,Capital Costs - LRT Vehicles,04/04/2013,5100049375,"187,389.88",BOMBARDIER TRANSPORTATION UK LTD
TfGM,Transport,Capital Costs - LRT Vehicles,04/04/2013,5100049376,"468,474.69",BOMBARDIER TRANSPORTATION UK LTD
TfGM,Transport,Capital Costs - LRT Vehicles,04/04/2013,5100049831,"273,339.93",BOMBARDIER TRANSPORTATION UK LTD
TfGM,Transport,Capital Costs - Mechanical & Engineering Support Services,04/04/2013,5100049822,"4,140.00",BOURNE CONSTRUCTION ENGINEERING LTD
TfGM,Transport,Capital Costs - Mechanical & Engineering Support Services,04/04/2013,5100050006,"17,020.40",BOURNE CONSTRUCTION ENGINEERING LTD
TfGM,Transport,Capital Costs - Capital Project Main Contract Works,04/04/2013,5100048749,"(1,602.84)",BROXAP LTD
TfGM,Transport,Capital Costs - Capital Project Main Contract Works,04/04/2013,5100048752,974.09,BROXAP LTD
TfGM,Transport,Capital Costs - Capital Project Main Contract Works,04/04/2013,5100050174,"3,177.92",BROXAP LTD
TfGM,Transport,Capital Costs - Utility & Service Diversion Costs,04/04/2013,5100050028,"3,423.75",BT OPENREACH (SALFORD)
TfGM,Transport,Capital Costs - Utility & Service Diversion Costs,04/04/2013,5100050030,"5,175.60",BT OPENREACH (SALFORD)
TfGM,Transport,CCTV Support Services,04/04/2013,5100049857,"1,000.00",BT REDCARE
TfGM,Transport,Staff Uniforms,04/04/2013,5100049890,504.28,BURLINGTON UNIFORMS LTD
TfGM,Transport,Staff Uniforms,04/04/2013,5100050032,"3,780.48",BURLINGTON UNIFORMS LTD
TfGM,Transport,Staff Uniforms,04/04/2013,5100050198,903.50,BURLINGTON UNIFORMS LTD
TfGM,Transport,Staff Uniforms,04/04/2013,5100050203,474.75,BURLINGTON UNIFORMS LTD
TfGM,Transport,Driver Intervention Course Delivery Costs,04/04/2013,5100050110,"6,200.00",BURY MBC
TfGM,Transport,Capital Costs -  Project Support Services,04/04/2013,5100049825,"1,370.00",CDI ANDERSELITE LTD
TfGM,Transport,Print & Media,04/04/2013,5100050175,774.00,CHAPEL PRESS LTD
TfGM,Transport,Print & Media,04/04/2013,5100050200,"2,520.50",CHAPEL PRESS LTD
TfGM,Transport,Capital Costs - Environmental & Ecological Support Services,04/04/2013,5100050045,"1,300.00",CHARCON CONSTRUCTION SOLUTIONS
TfGM,Transport,Capital Costs - Land Acquisition and Related Costs,04/04/2013,1900026443,"1,048.00",COBBETTS LLP
TfGM,Transport,Concessionary Reimbursement,04/04/2013,1900026499,636.00,COLIN REA
TfGM,Transport,Cycle Training Scheme,04/04/2013,5100050211,648.00,CYCLES RECYCLED CIC
TfGM,Corporate Services,Cyclescheme,04/04/2013,5100050206,673.28,CYCLESCHEME LTD
TfGM,Transport,Driver Intervention Course Delivery Costs,04/04/2013,5100050018,"1,176.50",DRAGON DRIVING
TfGM,Transport,Driver Intervention Course Delivery Costs,04/04/2013,5100050019,984.60,DRAGON DRIVING
TfGM,Corporate Services,IS Software & Maintenance,04/04/2013,5100050047,"6,595.00",DUE NORTH LTD
TfGM,Corporate Services,Financial Support Services,04/04/2013,5100049975,648.00,DUN AND BRADSTREET LTD
TfGM,Corporate Services,Telecommunications,04/04/2013,5100048784,"2,753.28",EASYNET GLOBAL SERVICES
TfGM,Transport,Capital Costs - Telecommunications,04/04/2013,5100050068,"54,717.00",EASYNET GLOBAL SERVICES
TfGM,Transport,Telecommunications,04/04/2013,5100050069,"18,746.52",EASYNET GLOBAL SERVICES
TfGM,Transport,Capital Costs - Programme and Project Management Services,04/04/2013,5100049835,"9,000.45",EC HARRIS LLP
TfGM,Transport,Capital Costs - Engineering Support Services,04/04/2013,5100050229,"13,487.49",EC HARRIS LLP
TfGM,Transport,Capital Costs - Traffic Signal Works,04/04/2013,5100049801,"13,169.62",ELECTRICITY NORTH WEST EHV
TfGM,Corporate Services,Taxation Services,04/04/2013,5100049905,"3,380.20",ERNST & YOUNG
TfGM,Corporate Services,Programme Assurance Services,04/04/2013,5100050194,"19,080.00",ERNST & YOUNG
TfGM,Corporate Services,Programme Assurance Services,04/04/2013,5100050212,"113,950.00",ERNST & YOUNG
TfGM,Transport,Capital Costs - Smart Ticketing,04/04/2013,5100049319,"1,455.00",ESP SYSTEX LTD
TfGM,Transport,Paper and Printing Consumables,04/04/2013,5100049748,"26,136.66",ESP SYSTEX LTD
TfGM,Transport,IS Support Services,04/04/2013,5100050046,"2,910.00",ESP SYSTEX LTD
TfGM,Transport,Engineering Support Services,04/04/2013,5100049426,"1,200.00",FREMONT LTD
TfGM,Transport,Engineering Support Services,04/04/2013,5100049618,"1,200.00",FREMONT LTD
TfGM,Transport,Engineering Support Services,04/04/2013,5100049775,"1,500.00",FREMONT LTD
TfGM,Transport,Engineering Support Services,04/04/2013,5100050014,"(1,200.00)",FREMONT LTD
TfGM,Transport,Engineering Support Services,04/04/2013,5100050015,"1,200.00",FREMONT LTD
TfGM,Transport,Engineering Support Services,04/04/2013,5100050016,"1,200.00",FREMONT LTD
TfGM,Transport,Driver Intervention Course Delivery Costs,04/04/2013,5100049931,"1,628.84",G WEBSTER
TfGM,Corporate Services,Legal Services,04/04/2013,5100050029,"3,475.00",GARDINER & THEOBALD FAIRWAY LTD
TfGM,Transport,Concessionary Reimbursement,04/04/2013,1900026491,621.00,GARETH J MAYHEW
TfGM,Transport,Bus Support Services,04/04/2013,5100049415,"9,750.00",GMATL
TfGM,Transport,Supported Bus Services,04/04/2013,5100050000,"7,500.00",GMATL
TfGM,Transport,Signage Costs,04/04/2013,5100049829,"40,427.77",GR LABELS LTD
TfGM,Transport,Signage Costs,04/04/2013,5100050233,831.00,GR LABELS LTD
TfGM,Transport,"Rent, Rates & Service Charges",04/04/2013,1900026460,"2,100.00",GTR MAN FIRE AND RESCUE SERVICE
TfGM,Transport,Human Resource Services,04/04/2013,5100050053,600.00,GUARDIAN NEWS & MEDIA LTD
TfGM,Transport,Capital Costs - Engineering Support Services,04/04/2013,5100049833,"14,484.38",GUTTERIDGE HASKINS AND DAVEY LTD
TfGM,Transport,Street Furniture Equipment,04/04/2013,5100049827,"2,910.00",HALSALL SIGNS LTD
TfGM,Transport,Temporary Vacancy Cover,04/04/2013,1900026480,"10,604.59",HAYS SPECIALIST RECRUITMENT LTD
TfGM,Transport,Print & Media,04/04/2013,5100050099,"7,654.80",HEMISPHERE DESIGN & MRKTNG
TfGM,Transport,Driver Intervention Course Delivery Costs,04/04/2013,5100050236,"3,480.00",HOLIDAY INN EXPRESS
TfGM,Transport,Print & Media,04/04/2013,5100050059,"1,520.00",HOWITT LTD
TfGM,Transport,Capital Costs - Computer & Communications Equipment,04/04/2013,5100050048,"6,361.20",IBUILDING SYS LTD. T/A NETGENIUM SY
TfGM,Corporate Services,IS Consumables,04/04/2013,5100050049,720.40,IBUILDING SYS LTD. T/A NETGENIUM SY
TfGM,Corporate Services,Project Management Services,04/04/2013,5100050033,"2,000.00",INCITE SOLUTIONS LTD
TfGM,Corporate Services,Computer Support and Licences,04/04/2013,5100049683,"18,013.00",ITSO LTD
TfGM,Transport,Capital Costs - Project Management Services,04/04/2013,5100050011,"1,081.00",JACOBS UK LTD
TfGM,Transport,Capital Costs - Engineering Support Services,04/04/2013,5100050012,"17,585.50",JACOBS UK LTD
TfGM,Transport,IS Software & Maintenance,04/04/2013,5100050182,"22,750.00",KENEXA
TfGM,Transport,Print & Media,04/04/2013,5100050176,728.00,KIND CREATIVE LTD
TfGM,Transport,Print & Media,04/04/2013,5100050179,754.00,KIND CREATIVE LTD
TfGM,Corporate Services,IS Support Services,04/04/2013,5100050191,"17,382.29",KONICA MINOLTA (UK)
TfGM,Transport,Capital Costs - Legal Services,04/04/2013,5100050162,"1,306.34",LAMBERT SMITH HAMPTON
TfGM,Transport,Capital Costs - Legal Services,04/04/2013,5100050173,"1,935.60",LAMBERT SMITH HAMPTON
TfGM,Transport,Heavy Rail Support Services,04/04/2013,5100050054,"5,000.00",LANCASHIRE COUNTY COUNCIL
TfGM,Transport,Street Furniture Consumables,04/04/2013,100066385,"1,532.25",LANDOR UK LTD
TfGM,Corporate Services,Insurance,04/04/2013,5100049948,"12,164.00",LOCKTON COMPANIES LLP
TfGM,Transport,Capital Costs - Programme and Project Management Services,04/04/2013,5100050058,"8,700.00",MACE COST LIMITED
TfGM,Transport,Vehicle Repairs & Maintenance,04/04/2013,5100049855,418.42,MANCHESTER CAR REFURBISHMENT LTD
TfGM,Transport,Secondment,04/04/2013,5100049582,"12,911.37",MANCHESTER CITY COUNCIL
TfGM,Transport,Capital Costs - Programme and Project Management Services,04/04/2013,5100050160,"10,450.00",MARTIN LAWTON LIMITED
TfGM,Corporate Services,Computer Support and Licences,04/04/2013,5100049343,"15,121.20",MESSAGELABS LTD
TfGM,Transport,IS Consumables,04/04/2013,5100049846,477.08,MISCO
TfGM,Transport,Computer and Printing Hardware,04/04/2013,5100050055,"1,849.08",MISCO
TfGM,Corporate Services,IS Consumables,04/04/2013,5100050103,"1,709.53",MISCO
TfGM,Corporate Services,IS Consumables,04/04/2013,5100050104,500.08,MISCO
TfGM,Transport,Cleaning,04/04/2013,5100050156,535.82,MITIE CLEANING & SUPPORT SERVS LTD
TfGM,Transport,Capital Costs - Programme and Project Management Services,04/04/2013,5100049699,"1,690.00",MORSON INTERNATIONAL
TfGM,Transport,Capital Costs - Programme and Project Management Services,04/04/2013,5100049899,"1,664.00",MORSON INTERNATIONAL
TfGM,Transport,Capital Costs - Programme and Project Management Services,04/04/2013,5100049900,"1,950.00",MORSON INTERNATIONAL
TfGM,Transport,Capital Costs - Programme and Project Management Services,04/04/2013,5100049901,"1,898.00",MORSON INTERNATIONAL
TfGM,Transport,Capital Costs - Programme and Project Management Services,04/04/2013,5100050031,428.00,MORSON INTERNATIONAL
TfGM,Transport,Capital Costs - Programme and Project Management Services,04/04/2013,5100050234,"12,000.00",MOTT MACDONALD LTD
TfGM,Transport,Capital Costs - Engineering Support Services,04/04/2013,5100050007,"1,500.00",NEIL CLARKE LTD
TfGM,Transport,Capital Costs - Rail Construction Works,04/04/2013,5100049816,"12,963.80",NETWORK RAIL
TfGM,Transport,Staff Rail Passes,04/04/2013,5100049817,"4,573.35",NORTHERN RAIL LIMITED
TfGM,Transport,Capital Costs - Consultation Support,04/04/2013,5100049862,"27,000.00",OLDHAM MBC
TfGM,Transport,Print & Media,04/04/2013,5100050199,"7,919.80",OMEGA PRINT AND DESIGN LTD
TfGM,Corporate Services,Procurement Services,04/04/2013,5100050207,"10,237.50",OPUS BESTPAY LTD
TfGM,Transport,Capital Costs - Smart Ticketing,04/04/2013,5100049834,"5,880.00",OVERWORKED LIMITED
TfGM,Transport,Traffic Signal Services,04/04/2013,5100049997,490.00,P J MARKHAM ELECTRONICS MAINTENANCE
TfGM,Transport,Traffic Signal Services,04/04/2013,5100050064,717.50,P J MARKHAM ELECTRONICS MAINTENANCE
TfGM,Transport,Paper and Printing Consumables,04/04/2013,5100050181,"1,066.60",PAPERGRAPHICS LTD
TfGM,Transport,Financial and Commercial Support Services,04/04/2013,5100050021,"11,423.75",PEAK PERFORMANCE PROFESSIONAL CONTR
TfGM,Transport,Capital Costs - Programme and Project Management Services,04/04/2013,5100050010,"1,701.75",PERTEMPS PROFESSIONAL STAFFING LTD
TfGM,Transport,Driver Intervention Course Delivery Costs,04/04/2013,5100050238,"1,738.23",PETERS DRIVING SCHOOL
TfGM,Transport,Print & Media,04/04/2013,5100050098,"1,000.00",PLAIN ENGLISH CAMPAIGN LTD
TfGM,Transport,Traffic and Transportation Surveys,04/04/2013,5100049873,"1,981.25",PLUSWORK LTD
TfGM,Transport,Traffic and Transportation Surveys,04/04/2013,5100049876,508.90,PLUSWORK LTD
TfGM,Transport,Traffic and Transportation Surveys,04/04/2013,5100049891,"1,869.79",PLUSWORK LTD
TfGM,Transport,Traffic and Transportation Surveys,04/04/2013,5100049902,"4,989.10",PLUSWORK LTD
TfGM,Transport,Temporary Vacancy Cover,04/04/2013,5100049999,566.40,PLUSWORK LTD
TfGM,Transport,Traffic and Transportation Surveys,04/04/2013,5100050167,596.14,PLUSWORK LTD
TfGM,Transport,Traffic and Transportation Surveys,04/04/2013,5100050170,602.46,PLUSWORK LTD
TfGM,Transport,Traffic and Transportation Surveys,04/04/2013,5100050172,"2,026.53",PLUSWORK LTD
TfGM,Transport,External Support Services - Gateway Checks,04/04/2013,5100049853,"17,000.00",POLICE & CRIME COMMISSIONER GTR MCR
TfGM,Transport,External Support Services - Gateway Checks,04/04/2013,5100049978,"15,000.00",POLICE & CRIME COMMISSIONER GTR MCR
TfGM,Transport,External Support Services - Gateway Checks,04/04/2013,5100050050,"1,932.00",POLICE & CRIME COMMISSIONER GTR MCR
TfGM,Transport,External Support Services - Gateway Checks,04/04/2013,5100050205,"1,500.00",POLICE & CRIME COMMISSIONER GTR MCR
TfGM,Transport,Safety Equipment,04/04/2013,5100049919,"12,000.00",PROTEC FIRE DETECTION PLC
TfGM,Transport,Capital Costs - Distribution Support Services,04/04/2013,5100049872,490.00,RCD
TfGM,Transport,Capital Costs - Distribution Support Services,04/04/2013,5100049970,490.00,RCD
TfGM,Transport,Safety Equipment,04/04/2013,5100050230,"1,469.40",REVEAL MEDIA LTD
TfGM,Transport,Supported Bus Services,04/04/2013,1900026445,0.00,ROCHDALE COMMUNITY TRANSPORT
TfGM,Transport,Traffic Signal Works,04/04/2013,5100050065,"25,000.00",ROSGAL LTD
TfGM,Transport,Print & Media,04/04/2013,5100049828,"5,100.00",ROUNDTHORN PROPERTIES LTD
TfGM,Corporate Services,Legal Services,04/04/2013,5100049914,"45,000.00",ROUTMORE T&C'S LTD
TfGM,Corporate Services,Legal Services,04/04/2013,5100049916,"45,000.00",ROUTMORE T&C'S LTD
TfGM,Transport,Postage Costs,04/04/2013,5100049991,"1,106.32",ROYAL MAIL GROUP PLC
TfGM,Transport,Supported Bus Services,04/04/2013,5100049815,605.00,SELWYNS TRAVEL LTD
TfGM,Transport,Property & Equipment Maintenance,04/04/2013,5100050008,"4,602.33",SERCO LTD
TfGM,Transport,Print & Media,04/04/2013,5100049898,"3,921.55",SERVICEPOINT UK
TfGM,Transport,Print & Media,04/04/2013,5100049903,"1,941.00",SERVICEPOINT UK
TfGM,Transport,Capital Costs - Print & Media,04/04/2013,5100049904,"2,490.40",SERVICEPOINT UK
TfGM,Transport,Print & Media,04/04/2013,5100049906,"6,480.00",SERVICEPOINT UK
TfGM,Transport,Print & Media,04/04/2013,5100049907,"1,467.00",SERVICEPOINT UK
TfGM,Transport,Capital Costs - Print & Media,04/04/2013,5100049936,789.09,SERVICEPOINT UK
TfGM,Transport,Bus Station & Shelter Consumables,04/04/2013,5100049819,543.18,SHORROCK TRICHEM
TfGM,Transport,Bus Station & Shelter Consumables,04/04/2013,5100049886,723.49,SHORROCK TRICHEM
TfGM,Transport,Bus Station & Shelter Consumables,04/04/2013,5100050027,501.64,SHORROCK TRICHEM
TfGM,Transport,Print & Media,04/04/2013,5100050025,"6,000.00",SMG EUROPE HOLDINGS LTD
TfGM,Transport,Supported Bus Services,04/04/2013,5100049813,"1,500.00",SO COACHES
TfGM,Transport,Supported Bus Services,04/04/2013,5100049814,"1,175.00",SO COACHES
TfGM,Transport,Property & Equipment Maintenance,04/04/2013,5100050235,418.40,SPAANS BABCOCK LTD
TfGM,Transport,"Rent, Rates & Service Charges",04/04/2013,1900026459,"9,900.00",STOCKPORT MBC
TfGM,Transport,Heavy Rail Support Services,04/04/2013,5100050057,"3,250.00",STOCKPORT MBC
TfGM,Transport,Capital Costs - Traffic Signal Works,04/04/2013,5100046663,"11,900.00",TDC SYSTEMS LTD
TfGM,Transport,Traffic Signal Works,04/04/2013,5100049912,"50,513.00",TDC SYSTEMS LTD
TfGM,Transport,Traffic Signal Works,04/04/2013,5100049913,"46,842.00",TDC SYSTEMS LTD
TfGM,Transport,Capital Costs - Capital Project Main Contract Works,04/04/2013,5100049802,"83,752.00",THALES TRANSPORT & SECURITY LTD
TfGM,Transport,Capital Costs - Print & Media,04/04/2013,5100049660,"1,000.00",THE HAMILTON PROJECT
TfGM,Transport,Street Furniture Equipment,04/04/2013,5100049871,"2,865.00",TRANSIGNS DISPLAY LTD
TfGM,Transport,Capital Costs - Passenger Shelters,04/04/2013,5100049222,"78,656.78",TRUEFORM ENGINEERING LTD
TfGM,Transport,Cleaning,04/04/2013,5100050034,443.95,TUDOR CONTRACT CLEANERS LTD
TfGM,Transport,Cleaning,04/04/2013,5100050038,679.49,TUDOR CONTRACT CLEANERS LTD
TfGM,Transport,Property & Equipment Maintenance,04/04/2013,5100050077,"4,247.40",TUDOR CONTRACT CLEANERS LTD
TfGM,Transport,Cleaning,04/04/2013,5100050083,829.92,TUDOR CONTRACT CLEANERS LTD
TfGM,Transport,Cleaning,04/04/2013,5100050095,587.31,TUDOR CONTRACT CLEANERS LTD
TfGM,Transport,Capital Costs - Topographical Feasibility Support,04/04/2013,5100050187,924.37,URBAN VISION PARTNERSHIP LTD
TfGM,Transport,Capital Costs - Design Support Services,04/04/2013,5100050189,"6,950.00",URBAN VISION PARTNERSHIP LTD
TfGM,Transport,Telecommunications,04/04/2013,5100049851,"1,934.57",VODAFONE CONNECT LTD
TfGM,Transport,Vehicle Repairs & Maintenance,04/04/2013,5100049858,"1,516.61",Walton Summit Truck Centre
TfGM,Transport,Vehicle Repairs & Maintenance,04/04/2013,5100049863,"1,215.50",Walton Summit Truck Centre
TfGM,Transport,Vehicle Repairs & Maintenance,04/04/2013,5100050202,"1,077.09",Walton Summit Truck Centre
TfGM,Corporate Services,Legal Services,04/04/2013,5100049910,"32,384.86",WEIGHTMANS LLP
TfGM,Corporate Services,Legal Services,04/04/2013,5100049911,"22,207.52",WEIGHTMANS LLP
TfGM,Transport,Capital Costs - Programme and Project Management Services,10/04/2013,5100050328,"11,200.00",ACUITY PROGRAMME MANAGEMENT LTD
TfGM,Transport,Capital Costs - Programme and Project Management Services,10/04/2013,5100050330,"12,325.00",ACUITY PROGRAMME MANAGEMENT LTD
TfGM,Transport,Capital Costs - Legal Services,10/04/2013,1900026606,900.00,ADDLESHAW GODDARD LLP
TfGM,Transport,Vehicle Costs,10/04/2013,1200024333,"1,276.89",ALLSTAR
TfGM,Transport,Paper and Printing Consumables,10/04/2013,5100050317,723.35,ANTALIS LTD
TfGM,Transport,Capital Costs - Quantity Surveying Services,10/04/2013,5100050281,"11,824.25",ATKINS LTD
TfGM,Transport,Capital Costs - Quantity Surveying Services,10/04/2013,5100050289,"7,474.38",ATKINS LTD
TfGM,Transport,Print & Media,10/04/2013,5100050253,"6,876.00",BLUETREE DESIGN AND PRINT LTD
TfGM,Transport,"Rent, Rates & Service Charges",10/04/2013,1900026574,"2,037.69",BOLTON METROPOLITAN BOROUGH COUNCIL
TfGM,Transport,"Rent, Rates & Service Charges",10/04/2013,1900026587,"7,897.83",BOLTON METROPOLITAN BOROUGH COUNCIL
TfGM,Transport,"Rent, Rates & Service Charges",10/04/2013,1900026589,"1,134.19",BOLTON METROPOLITAN BOROUGH COUNCIL
TfGM,Transport,Capital Costs - Land Acquisition and Related Costs,10/04/2013,5100050259,"6,885.04",BOLTON METROPOLITAN BOROUGH COUNCIL
TfGM,Transport,Capital Costs - Land Acquisition and Related Costs,10/04/2013,5100050261,"1,890.40",BOLTON METROPOLITAN BOROUGH COUNCIL
TfGM,Transport,Capital Costs - Land Acquisition and Related Costs,10/04/2013,5100050262,"4,925.66",BOLTON METROPOLITAN BOROUGH COUNCIL
TfGM,Transport,Capital Costs - Land Acquisition and Related Costs,10/04/2013,5100050263,"3,661.31",BOLTON METROPOLITAN BOROUGH COUNCIL
TfGM,Corporate Services,IS Support & Maintenance,10/04/2013,5100050201,983.60,BT ENGAGE IT
TfGM,Transport,"Rent, Rates & Service Charges",10/04/2013,1900026566,"2,331.45",BURY MBC
TfGM,Transport,"Rent, Rates & Service Charges",10/04/2013,1900026593,"6,714.58",BURY MBC
TfGM,Transport,Print & Media,10/04/2013,5100050307,"1,299.17",CARAT MEDIA UK LIMITED
TfGM,Transport,Security Services,10/04/2013,5100049830,"6,737.06",CARLISLE SECURITY SERVICES LTD
TfGM,Transport,Security Services,10/04/2013,5100050296,"7,420.71",CARLISLE SECURITY SERVICES LTD
TfGM,Transport,Capital Costs - Capital Project Main Contract Works,10/04/2013,5100047466,"152,755.00",CHARGE YOUR CAR LTD
TfGM,Transport,Capital Costs - Capital Project Main Contract Works,10/04/2013,5100050023,(600.00),CHARGE YOUR CAR LTD
TfGM,Corporate Services,Employee Reimbursed Costs,10/04/2013,5100050311,"6,542.58",CHILDCARE VOUCHERS LTD
TfGM,Transport,"Rent, Rates & Service Charges",10/04/2013,1900026568,"3,221.27",CITY OF SALFORD
TfGM,Transport,"Rent, Rates & Service Charges",10/04/2013,1900026570,"1,824.90",CITY OF SALFORD
TfGM,Transport,"Rent, Rates & Service Charges",10/04/2013,1900026572,"8,124.75",CITY OF SALFORD
TfGM,Transport,Computer Support and Licences,10/04/2013,5100050310,889.58,CONDECO LTD
TfGM,Transport,Concessionary Reimbursement,10/04/2013,1900026681,742.00,CRESTA CAR HIRE
TfGM,Transport,Vehicle Repairs & Maintenance,10/04/2013,5100050274,460.75,ENZA MOTORS
TfGM,Corporate Services,Programme and Project Management Services,10/04/2013,5100050264,"228,042.00",ERNST & YOUNG
TfGM,Transport,"Rent, Rates & Service Charges",10/04/2013,5100050138,"1,162.50",EURO CAR PARKS LTD
TfGM,Transport,Postage Costs,10/04/2013,1200024333,"3,500.00",FP TELESET
TfGM,Transport,"Rent, Rates & Service Charges",10/04/2013,1900026611,"2,100.00",GTR MAN FIRE AND RESCUE SERVICE
TfGM,Transport,Capital Costs - Legal Services,10/04/2013,5100050293,"13,246.00",IAN ALLAN ASSOCIATES (UK) LTD
TfGM,Transport,Capital Costs - Legal Services,10/04/2013,5100050294,"11,660.00",IAN ALLAN ASSOCIATES (UK) LTD
TfGM,Transport,Street Furniture Equipment,10/04/2013,5100050244,"1,384.32",INSTARMAC GROUP PLC
TfGM,Corporate Services,Computer Support and Licences,10/04/2013,5100050302,731.31,ITSO LTD
TfGM,Corporate Services,Procurement Services,10/04/2013,5100050290,"2,925.00",JETFIRE ASSOCIATES LIMITED
TfGM,Transport,Concessionary Reimbursement,10/04/2013,1900026678,"1,315.00",K & M CARS
TfGM,Transport,Print & Media,10/04/2013,5100050116,775.00,KREATIVE BOMB LIMITED
TfGM,Transport,Print & Media,10/04/2013,5100050177,525.00,KREATIVE BOMB LIMITED
TfGM,Transport,Capital Costs - Legal Services,10/04/2013,5100050287,"3,200.00",LAMBERT SMITH HAMPTON
TfGM,Transport,Human Resource Services,10/04/2013,5100050282,845.00,LANDOR LINKS LTD
TfGM,Transport,Capital Costs - Land Acquisition and Related Costs,10/04/2013,5100050303,660.00,LESLIE ROBERTS AND CO LTD
TfGM,Transport,Capital Costs - Property Support Services,10/04/2013,5100050337,"1,701.00",LESLIE ROBERTS AND CO LTD
TfGM,Transport,Vehicle Costs,10/04/2013,5100050288,"5,320.00",Lloyd Morgan Group
TfGM,Transport,"Rent, Rates & Service Charges",10/04/2013,1900026544,"2,117.09",MANCHESTER CITY COUNCIL
TfGM,Transport,"Rent, Rates & Service Charges",10/04/2013,1900026549,"15,286.53",MANCHESTER CITY COUNCIL
TfGM,Transport,"Rent, Rates & Service Charges",10/04/2013,1900026551,"2,038.84",MANCHESTER CITY COUNCIL
TfGM,Transport,"Rent, Rates & Service Charges",10/04/2013,1900026553,"1,530.75",MANCHESTER CITY COUNCIL
TfGM,Transport,"Rent, Rates & Service Charges",10/04/2013,1900026554,"3,075.75",MANCHESTER CITY COUNCIL
TfGM,Transport,"Rent, Rates & Service Charges",10/04/2013,1900026556,"10,774.13",MANCHESTER CITY COUNCIL
TfGM,Transport,"Rent, Rates & Service Charges",10/04/2013,1900026558,"10,833.00",MANCHESTER CITY COUNCIL
TfGM,Transport,"Rent, Rates & Service Charges",10/04/2013,1900026562,"10,656.38",MANCHESTER CITY COUNCIL
TfGM,Transport,"Rent, Rates & Service Charges",10/04/2013,1900026564,"2,767.13",MANCHESTER CITY COUNCIL
TfGM,Transport,"Rent, Rates & Service Charges",10/04/2013,1900026580,"1,072.75",MANCHESTER CITY COUNCIL
TfGM,Transport,"Rent, Rates & Service Charges",10/04/2013,1900026581,"1,501.03",MANCHESTER CITY COUNCIL
TfGM,Transport,"Rent, Rates & Service Charges",10/04/2013,1900026592,"1,871.10",MANCHESTER CITY COUNCIL
TfGM,Transport,Driver Intervention Course Delivery Costs,10/04/2013,5100050265,833.50,MANCHESTER CITY COUNCIL
TfGM,Transport,Capital Costs - Design Support Services,10/04/2013,5100050271,"12,499.29",MANCHESTER CITY COUNCIL
TfGM,Transport,Capital Costs - Design Support Services,10/04/2013,5100050272,"7,319.66",MANCHESTER CITY COUNCIL
TfGM,Transport,Cleaning,10/04/2013,5100050139,"7,734.61",MITIE CLEANING & SUPPORT SERVS LTD
TfGM,Transport,Maintenance,10/04/2013,5100050314,"53,355.00",MITIE CLEANING & SUPPORT SERVS LTD
TfGM,Transport,Capital Costs - Programme and Project Management Services,10/04/2013,5100050245,"1,664.00",MORSON INTERNATIONAL
TfGM,Transport,Capital Costs - Programme and Project Management Services,10/04/2013,5100050248,"1,365.00",MORSON INTERNATIONAL
TfGM,Transport,Capital Costs - Programme and Project Management Services,10/04/2013,5100050249,"1,070.00",MORSON INTERNATIONAL
TfGM,Transport,Capital Costs - Programme and Project Management Services,10/04/2013,5100050250,"1,898.00",MORSON INTERNATIONAL
TfGM,Transport,Capital Costs - Mechanical & Engineering Support Services,10/04/2013,5100050309,"5,314.00",MOTT MACDONALD LTD
TfGM,Transport,Capital Costs - Engineering Support Services,10/04/2013,5100050313,"4,470.66",MOTT MACDONALD LTD
TfGM,Transport,Capital Costs - Mechanical & Engineering Support Services,10/04/2013,5100050322,"6,437.34",MOTT MACDONALD LTD
TfGM,Transport,Capital Costs - Engineering Support Services,10/04/2013,5100050323,"6,188.67",MOTT MACDONALD LTD
TfGM,Transport,Capital Costs - Mechanical & Engineering Support Services,10/04/2013,5100050324,760.00,MOTT MACDONALD LTD
TfGM,Transport,Capital Costs - Engineering Support Services,10/04/2013,5100050325,"3,247.00",MOTT MACDONALD LTD
TfGM,Transport,Capital Costs - Mechanical & Engineering Support Services,10/04/2013,5100050326,"7,833.59",MOTT MACDONALD LTD
TfGM,Transport,Capital Costs - Mechanical & Engineering Support Services,10/04/2013,5100050327,"2,678.27",MOTT MACDONALD LTD
TfGM,Transport,Traffic and Transportation Surveys,10/04/2013,5100050254,"5,122.40",PLUSWORK LTD
TfGM,Transport,External Support Services - Gateway Checks,10/04/2013,5100050267,"8,244.00",POLICE & CRIME COMMISSIONER GTR MCR
TfGM,Transport,Capital Costs - Programme and Project Management Services,10/04/2013,5100050251,"2,500.00",PRACTICUS LIMITED
TfGM,Transport,Safety Equipment,10/04/2013,5100050113,"1,965.00",PROTEC FIRE DETECTION PLC
TfGM,Transport,Safety Equipment,10/04/2013,5100050270,"2,384.26",PROTEC FIRE DETECTION PLC
TfGM,Transport,Training,10/04/2013,5100050204,"5,200.00",QA LTD
TfGM,Transport,Maintenance,10/04/2013,5100050137,"21,217.33",ROADTECH CUTTING SERVICES LTD
TfGM,Transport,Supported Bus Services,10/04/2013,5100050278,645.00,ROCHDALE COMMUNITY TRANSPORT
TfGM,Transport,Supported Bus Services,10/04/2013,5100050283,640.00,ROCHDALE COMMUNITY TRANSPORT
TfGM,Transport,"Rent, Rates & Service Charges",10/04/2013,1900026546,"1,624.95",ROCHDALE MBC
TfGM,Transport,"Rent, Rates & Service Charges",10/04/2013,1900026547,"2,367.75",ROCHDALE MBC
TfGM,Transport,"Rent, Rates & Service Charges",10/04/2013,1900026548,"41,403.91",ROCHDALE MBC
TfGM,Transport,"Rent, Rates & Service Charges",10/04/2013,1900026560,"46,864.50",ROCHDALE MBC
TfGM,Transport,"Rent, Rates & Service Charges",10/04/2013,1900026610,"9,752.78",SADDLEWORTH RANGERS
TfGM,Transport,Property & Equipment Maintenance,10/04/2013,5100050285,911.00,SENATOR INTERNATIONAL LTD
TfGM,Transport,Property & Equipment Maintenance,10/04/2013,5100050304,"3,066.00",SENATOR INTERNATIONAL LTD
TfGM,Transport,Property & Equipment Maintenance,10/04/2013,5100050305,"3,685.00",SENATOR INTERNATIONAL LTD
TfGM,Transport,Traffic Signal Works,10/04/2013,5100049878,"7,695.34",SIEMENS PLC
TfGM,Transport,Traffic Signal Works,10/04/2013,5100049879,"3,418.30",SIEMENS PLC
TfGM,Transport,Traffic Signal Works,10/04/2013,5100049880,"4,940.03",SIEMENS PLC
TfGM,Transport,Traffic Signal Works,10/04/2013,5100049881,"5,311.30",SIEMENS PLC
TfGM,Transport,Traffic Signal Works,10/04/2013,5100049882,"1,353.07",SIEMENS PLC
TfGM,Transport,Traffic Signal Works,10/04/2013,5100049883,"16,753.64",SIEMENS PLC
TfGM,Transport,Traffic Signal Works,10/04/2013,5100049893,"13,120.41",SIEMENS PLC
TfGM,Transport,Traffic Signal Works,10/04/2013,5100049894,"9,423.66",SIEMENS PLC
TfGM,Transport,Traffic Signal Works,10/04/2013,5100049896,"1,177.57",SIEMENS PLC
TfGM,Transport,Traffic Signal Works,10/04/2013,5100049897,"11,216.19",SIEMENS PLC
TfGM,Transport,Traffic Signal Works,10/04/2013,5100049940,"75,500.00",SIEMENS PLC
TfGM,Transport,Traffic Signal Works,10/04/2013,5100049941,"11,360.29",SIEMENS PLC
TfGM,Transport,Traffic Signal Works,10/04/2013,5100049949,"2,217.49",SIEMENS PLC
TfGM,Transport,Traffic Signal Works,10/04/2013,5100049971,"3,325.26",SIEMENS PLC
TfGM,Transport,Traffic Signal Works,10/04/2013,5100049972,"2,716.00",SIEMENS PLC
TfGM,Transport,Traffic Signal Works,10/04/2013,5100049973,"7,395.62",SIEMENS PLC
TfGM,Transport,Traffic Signal Works,10/04/2013,5100050060,"98,520.06",SIEMENS PLC
TfGM,Transport,Traffic Signal Works,10/04/2013,5100050061,"40,032.01",SIEMENS PLC
TfGM,Transport,Traffic Signal Works,10/04/2013,5100050062,"19,036.14",SIEMENS PLC
TfGM,Transport,Traffic Signal Works,10/04/2013,5100050063,"12,027.54",SIEMENS PLC
TfGM,Transport,Traffic Signal Works,10/04/2013,5100050066,"90,600.00",SIEMENS PLC
TfGM,Transport,Traffic Signal Works,10/04/2013,5100050222,"11,838.79",SIEMENS PLC
TfGM,Transport,Traffic Signal Works,10/04/2013,5100050223,"8,805.82",SIEMENS PLC
TfGM,Transport,Traffic Signal Works,10/04/2013,5100050224,"10,808.93",SIEMENS PLC
TfGM,Transport,Traffic Signal Works,10/04/2013,5100050225,"9,678.98",SIEMENS PLC
TfGM,Transport,Traffic Signal Works,10/04/2013,5100050226,"7,885.55",SIEMENS PLC
TfGM,Transport,Traffic Signal Works,10/04/2013,5100050315,"5,677.96",SIEMENS PLC
TfGM,Transport,Traffic and Transportation Surveys,10/04/2013,5100050332,"1,538.11",SKY HIGH PLC
TfGM,Transport,External Support Services - Gateway Checks,10/04/2013,5100050257,"1,545.00",STAGECOACH SERVICES LTD
TfGM,Transport,"Rent, Rates & Service Charges",10/04/2013,1900026579,"1,604.01",STOCKPORT MBC
TfGM,Transport,Maintenance,10/04/2013,5100050269,"1,750.00",SYSTEM VISION LTD
TfGM,Transport,"Rent, Rates & Service Charges",10/04/2013,1900026542,"1,730.12",TAMESIDE MBC
TfGM,Transport,"Rent, Rates & Service Charges",10/04/2013,1900026576,"25,434.00",TAMESIDE MBC
TfGM,Transport,"Rent, Rates & Service Charges",10/04/2013,1900026583,"39,328.50",TAMESIDE MBC
TfGM,Transport,"Rent, Rates & Service Charges",10/04/2013,1900026585,"1,307.19",TAMESIDE MBC
TfGM,Transport,Concessionary Reimbursement,10/04/2013,1900026685,577.00,TAMESIDE RADIO CARS
TfGM,Transport,"Rent, Rates & Service Charges",10/04/2013,1900026590,"15,820.42",TRAFFORD MBC
TfGM,Transport,Cleaning,10/04/2013,5100050035,532.48,TUDOR CONTRACT CLEANERS LTD
TfGM,Transport,Cleaning,10/04/2013,5100050094,"1,022.09",TUDOR CONTRACT CLEANERS LTD
TfGM,Transport,Utilities & Energy,10/04/2013,1900026578,"6,249.51",UNITED UTILITIES WATER PLC
TfGM,Transport,Utilities & Energy,10/04/2013,1900026671,653.33,UNITED UTILITIES WATER PLC
TfGM,Corporate Services,IS Consumables,10/04/2013,5100050284,"6,735.00",VIGLEN
TfGM,Transport,Vehicle Repairs & Maintenance,10/04/2013,5100050255,"1,265.15",Walton Summit Truck Centre
TfGM,Transport,Vehicle Repairs & Maintenance,10/04/2013,5100050258,524.12,Walton Summit Truck Centre
TfGM,Transport,Property & Equipment Maintenance,10/04/2013,5100050273,"1,881.14",ZOOM CCTV LTD
TfGM,Transport,Concessionary Reimbursement,12/04/2013,1900026778,838.00,1919 TAXIS
TfGM,Transport,Maintenance,12/04/2013,5100050494,"21,331.62",A E YATES LTD
TfGM,Transport,Vehicle Costs,12/04/2013,5100050367,600.00,ACTIA UK LTD
TfGM,Transport,Traffic Management Services,12/04/2013,5100050372,"10,560.00",AECOM LTD
TfGM,Transport,Transport Planning & Monitoring Services,12/04/2013,5100050395,"13,204.00",AECOM LTD
TfGM,Transport,Driver Intervention Course Delivery Costs,12/04/2013,1900026664,"1,482.96",AIM TO PASS SCHOOL OF MOTORING
TfGM,Transport,Driver Intervention Course Delivery Costs,12/04/2013,1900026667,850.88,ALDENE WOODWARD
TfGM,Corporate Services,IS Consumables,12/04/2013,5100050496,"5,582.88",ANS GROUP PLC
TfGM,Transport,Capital Costs - Land Acquisition and Related Costs,12/04/2013,5100050469,"1,079.75",ARDENT MANAGEMENT LTD
TfGM,Transport,Driver Intervention Course Delivery Costs,12/04/2013,1900026631,"2,066.44",AVRILS DRIVING SCHOOL
TfGM,Transport,Capital Costs - Design Support Services,12/04/2013,5100050524,"100,000.00",BALFOUR BEATTY CE LTD
TfGM,Transport,Driver Intervention Course Delivery Costs,12/04/2013,1900026644,607.75,BERNARD LONERGAN
TfGM,Transport,Print & Media,12/04/2013,5100050495,489.00,BLUETREE DESIGN AND PRINT LTD
TfGM,Transport,"Rent, Rates & Service Charges",12/04/2013,1900026526,"5,082.00",BOLTON METROPOLITAN BOROUGH COUNCIL
TfGM,Transport,"Rent, Rates & Service Charges",12/04/2013,1900026527,"24,948.00",BOLTON METROPOLITAN BOROUGH COUNCIL
TfGM,Transport,Capital Costs - Utility & Service Diversion Costs,12/04/2013,5100050486,"9,815.40",BOLTON METROPOLITAN BOROUGH COUNCIL
TfGM,Transport,Capital Costs - Design Support Services,12/04/2013,5100050487,"1,000.00",BOLTON METROPOLITAN BOROUGH COUNCIL
TfGM,Transport,Capital Costs - LRT Vehicles,12/04/2013,5100050389,"134,616.01",BOMBARDIER TRANSPORTATION UK LTD
TfGM,Transport,Capital Costs - LRT Vehicles,12/04/2013,5100050429,"36,947.96",BOMBARDIER TRANSPORTATION UK LTD
TfGM,Transport,Capital Costs - Community Transport Support Services,12/04/2013,5100050297,"1,437.97",BREAKTHROUGH UK LTD
TfGM,Transport,Capital Costs - Community Transport Support Services,12/04/2013,5100050298,716.00,BREAKTHROUGH UK LTD
TfGM,Transport,Capital Costs - Community Transport Support Services,12/04/2013,5100050299,"1,357.05",BREAKTHROUGH UK LTD
TfGM,Transport,Driver Intervention Course Delivery Costs,12/04/2013,1900026625,"1,847.64",BRECK SCHOOL OF MOTORING
TfGM,Transport,"Rent, Rates & Service Charges",12/04/2013,1900026528,"9,424.80",BURY MBC
TfGM,Transport,Driver Intervention Course Delivery Costs,12/04/2013,5100050383,"1,944.88",C JEFFREY
TfGM,Transport,Driver Intervention Course Delivery Costs,12/04/2013,1900026645,826.56,C MACCORMACK
TfGM,Transport,Print & Media,12/04/2013,5100050440,"6,120.55",CARAT MEDIA UK LIMITED
TfGM,Transport,Print & Media,12/04/2013,5100050448,"7,006.72",CARAT MEDIA UK LIMITED
TfGM,Transport,Driver Intervention Course Delivery Costs,12/04/2013,1900026669,"1,592.36",CENTURION DRIVER TRAINING
TfGM,Transport,Driver Intervention Course Delivery Costs,12/04/2013,5100050384,"2,296.80",CF VENDING LTD
TfGM,Corporate Services,IS Support Services,12/04/2013,5100050331,"11,200.00",CHALMERS BROWN TECH RESOURCES LTD
TfGM,Transport,"Rent, Rates & Service Charges",12/04/2013,1900026529,"4,342.80",CITY OF SALFORD
TfGM,Transport,"Rent, Rates & Service Charges",12/04/2013,1900026530,"24,948.00",CITY OF SALFORD
TfGM,Transport,"Rent, Rates & Service Charges",12/04/2013,1900026531,"24,763.20",CITY OF SALFORD
TfGM,Transport,Driver Intervention Course Delivery Costs,12/04/2013,1900026629,"1,203.40",COWLEY DRIVING SCHOOL
TfGM,Transport,Driver Intervention Course Delivery Costs,12/04/2013,5100050425,"2,139.36",CPC TRAINING PROVIDER LTD
TfGM,Transport,Driver Intervention Course Delivery Costs,12/04/2013,1900026630,"2,029.96",CRUISE DRIVER TRAINING
TfGM,Transport,Driver Intervention Course Delivery Costs,12/04/2013,1900026633,534.82,D ELLIS
TfGM,Transport,Driver Intervention Course Delivery Costs,12/04/2013,1900026666,"2,649.87",D WALSH
TfGM,Transport,Driver Intervention Course Delivery Costs,12/04/2013,1900026665,"1,203.40",DAVID WALKER DRIVER TRAINING
TfGM,Transport,Driver Intervention Course Delivery Costs,12/04/2013,1900026654,"2,662.02",DRIVER ACADEMY
TfGM,Transport,Driver Intervention Course Delivery Costs,12/04/2013,1900026627,"1,385.72",DRIVERSKILLS
TfGM,Transport,Driver Intervention Course Delivery Costs,12/04/2013,1900026668,"1,920.54",DS WILLIAMS LTD
TfGM,Transport,Driver Intervention Course Delivery Costs,12/04/2013,1900026655,"2,236.60",DSM SCHOOL OF MOTORING
TfGM,Transport,Driver Intervention Course Delivery Costs,12/04/2013,5100050386,"1,925.00",ENTERPRISE SOLUTIONS (NW) LTD
TfGM,Transport,IS Support Services,12/04/2013,5100050497,"12,000.00",EP MORRIS
TfGM,Corporate Services,Programme and Project Management Services,12/04/2013,5100050431,"180,846.00",ERNST & YOUNG
TfGM,Transport,Capital Costs - Environmental Feasibility Support,12/04/2013,5100050509,"11,776.25",FORESTRY COMMISSION
TfGM,Transport,Print & Media,12/04/2013,5100050513,500.00,FORREST MEDIA LTD
TfGM,Transport,Property & Equipment Maintenance,12/04/2013,5100050133,"30,498.74",G & J SEDDON
TfGM,Transport,Property & Equipment Maintenance,12/04/2013,5100050134,"14,053.57",G & J SEDDON
TfGM,Transport,Driver Intervention Course Delivery Costs,12/04/2013,1900026626,"2,200.11",G CLIFFE
TfGM,Transport,Driver Intervention Course Delivery Costs,12/04/2013,1900026658,"1,641.00",G ROBINSON
TfGM,Transport,Driver Intervention Course Delivery Costs,12/04/2013,5100050408,"2,212.28",G WEBSTER
TfGM,Transport,Driver Intervention Course Delivery Costs,12/04/2013,5100050422,"2,248.76",G WHITWORTH
TfGM,Transport,Driver Intervention Course Delivery Costs,12/04/2013,1900026622,"2,406.76",GARY CAMPBELL LTD
TfGM,Transport,Capital Costs - Engineering Support Services,12/04/2013,5100050471,"1,006.50",GILLESPIES
TfGM,Transport,Accessible Transport,12/04/2013,1200024333,"441,667.00",GMATT
TfGM,Transport,Concessionary Reimbursement,12/04/2013,1900026776,"1,577.00",H SHAKERI T/A EUROLYNX TAXIS
TfGM,Transport,Print & Media,12/04/2013,5100050493,"2,533.00",HEMISPHERE DESIGN & MRKTNG
TfGM,Transport,Driver Intervention Course Delivery Costs,12/04/2013,1900026641,"2,856.51",HOGHTON DRIVING SCHOOL
TfGM,Transport,Driver Intervention Course Delivery Costs,12/04/2013,5100050505,"1,400.00",HOLIDAY INN MANCHESTER CENTRAL PARK
TfGM,Transport,Capital Costs - Environmental & Ecological Support Services,12/04/2013,5100049769,"1,190.35",HYDER LTD
TfGM,Transport,Capital Costs - Environmental Feasibility Support,12/04/2013,5100050506,"1,086.03",HYDER LTD
TfGM,Transport,Driver Intervention Course Delivery Costs,12/04/2013,1900026632,"2,273.08",I DUFF
TfGM,Transport,IS Support Services,12/04/2013,5100050484,"2,966.67",I3D GROUP LTD
TfGM,Transport,Property & Equipment Maintenance,12/04/2013,5100050511,"4,900.00",IAN ROWE ASSOCIATES LTD
TfGM,Corporate Services,Computer Support and Licences,12/04/2013,5100050392,"2,037.00",IGROUP LTD
TfGM,Corporate Services,Computer Support and Licences,12/04/2013,5100050423,"6,479.49",IGROUP LTD
TfGM,Corporate Services,Project Management Services,12/04/2013,5100050346,"1,600.00",INCITE SOLUTIONS LTD
TfGM,Transport,Driver Intervention Course Delivery Costs,12/04/2013,1900026639,"2,017.79",INSIGHT 2 DRIVE
TfGM,Transport,Driver Intervention Course Delivery Costs,12/04/2013,1900026617,"2,358.16",J AIREY
TfGM,Transport,Driver Intervention Course Delivery Costs,12/04/2013,1900026619,607.75,J BOGGIANO
TfGM,Transport,Driver Intervention Course Delivery Costs,12/04/2013,1900026648,"2,139.36",J MCGREAL
TfGM,Transport,Driver Intervention Course Delivery Costs,12/04/2013,1900026656,656.40,J RIGGS
TfGM,Transport,Programme and Project Management Services,12/04/2013,5100050347,"4,155.00",JACOBS UK LTD
TfGM,Transport,Capital Costs - Engineering Support Services,12/04/2013,5100050502,"17,630.00",JACOBS UK LTD
TfGM,Transport,Feasibility Studies,12/04/2013,5100050516,"1,606.25",JACOBS UK LTD
TfGM,Transport,Capital Costs - Quantity Surveying Services,12/04/2013,5100050517,486.00,JACOBS UK LTD
TfGM,Transport,Street Furniture Equipment,12/04/2013,5100050415,"6,317.42",JC DECAUX UK LTD
TfGM,Transport,Concessionary Reimbursement,12/04/2013,1900026800,704.00,JR'S PRIVATE HIRE
TfGM,Corporate Services,IS Software & Maintenance,12/04/2013,5100050366,"7,798.05",KEYSOFT SOLUTIONS
TfGM,Transport,Capital Costs - Land Acquisition and Related Costs,12/04/2013,5100050404,"1,273.00",LESLIE ROBERTS AND CO LTD
TfGM,Transport,Driver Intervention Course Delivery Costs,12/04/2013,5100050379,"1,531.59",LISA ATKINSON DTS
TfGM,Transport,Concessionary Reimbursement,12/04/2013,1900026784,501.00,LYNCH PRIVATE HIRE
TfGM,Transport,Driver Intervention Course Delivery Costs,12/04/2013,1900026621,"2,017.80",M BRENNAN
TfGM,Transport,"Rent, Rates & Service Charges",12/04/2013,1900026535,"24,786.30",MANCHESTER CITY COUNCIL
TfGM,Transport,"Rent, Rates & Service Charges",12/04/2013,1900026536,"24,971.10",MANCHESTER CITY COUNCIL
TfGM,Transport,"Rent, Rates & Service Charges",12/04/2013,1900026537,"24,786.30",MANCHESTER CITY COUNCIL
TfGM,Transport,"Rent, Rates & Service Charges",12/04/2013,1900026538,"24,948.00",MANCHESTER CITY COUNCIL
TfGM,Transport,"Rent, Rates & Service Charges",12/04/2013,1900026539,"24,763.20",MANCHESTER CITY COUNCIL
TfGM,Transport,"Rent, Rates & Service Charges",12/04/2013,1900026540,"24,994.20",MANCHESTER CITY COUNCIL
TfGM,Transport,"Rent, Rates & Service Charges",12/04/2013,1900026541,"1,686.30",MANCHESTER CITY COUNCIL
TfGM,Transport,Capital Costs - Engineering Support Services,12/04/2013,5100050467,"21,763.10",MANCHESTER CITY COUNCIL
TfGM,Corporate Services,IS Support Services,12/04/2013,5100050358,"6,050.00",MAPSAR LTD
TfGM,Corporate Services,Smart Ticketing,12/04/2013,5100050529,"10,500.00",MARBLE LTD
TfGM,Transport,Maintenance,12/04/2013,5100050401,"3,200.00",MARSTON & GRUNDY LLP
TfGM,Transport,Maintenance,12/04/2013,5100050416,"9,139.00",MARSTON & GRUNDY LLP
TfGM,Transport,Concessionary Reimbursement,12/04/2013,1900026774,"2,050.00",METRO TAXIS LTD
TfGM,Transport,Concessionary Reimbursement,12/04/2013,1900026775,"2,416.00",METRO TAXIS LTD
TfGM,Transport,Driver Intervention Course Delivery Costs,12/04/2013,1900026620,"1,908.40",MICHAEL BOLTON DRIVER TRAINING
TfGM,Corporate Services,IS Consumables,12/04/2013,5100050476,622.93,MISCO
TfGM,Transport,Driver Intervention Course Delivery Costs,12/04/2013,1900026651,607.75,MORRIS SCHOOL OF MOTORING
TfGM,Transport,Capital Costs - Engineering Support Services,12/04/2013,5100050345,"1,875.00",NEIL CLARKE LTD
TfGM,Transport,Exhibitions and Conferences,12/04/2013,5100050419,"11,589.78",NEXUS
TfGM,Corporate Services,IS Consumables,12/04/2013,5100050514,"27,200.00",Oce
TfGM,Transport,"Rent, Rates & Service Charges",12/04/2013,1900026532,"22,638.00",OLDHAM MBC
TfGM,Transport,Print & Media,12/04/2013,5100050479,"2,562.30",ORION SECURE PRINT SYSTEMS
TfGM,Transport,Capital Costs - Engineering Support Services,12/04/2013,5100050276,"6,600.00",OVE ARUP & PARTNERS INTERNATIONAL L
TfGM,Transport,Capital Costs - Print & Media,12/04/2013,5100050418,"10,000.00",OVE ARUP & PARTNERS INTERNATIONAL L
TfGM,Transport,Driver Intervention Course Delivery Costs,12/04/2013,1900026624,"2,513.08",P CLARKE
TfGM,Transport,Driver Intervention Course Delivery Costs,12/04/2013,1900026661,"2,467.56",P STANDRING
TfGM,Transport,Occupational Health,12/04/2013,5100050387,760.00,PAM WELLBEING
TfGM,Transport,Paper and Printing Consumables,12/04/2013,5100050468,"1,800.00",PAPERGRAPHICS LTD
TfGM,Transport,Capital Costs - Programme and Project Management Services,12/04/2013,5100050286,"19,099.43",PARSONS BRINCKERHOFF LTD
TfGM,Transport,Driver Intervention Course Delivery Costs,12/04/2013,1900026660,"3,500.76",PAS DRIVING
TfGM,Transport,Capital Costs - Programme and Project Management Services,12/04/2013,5100050350,"1,531.58",PERTEMPS PROFESSIONAL STAFFING LTD
TfGM,Transport,Capital Costs - Programme and Project Management Services,12/04/2013,5100050380,"1,361.40",PERTEMPS PROFESSIONAL STAFFING LTD
TfGM,Transport,Driver Intervention Course Delivery Costs,12/04/2013,1900026638,"1,969.20",PETER HARGREAVES SCHOOL OF MOTORING
TfGM,Transport,Temporary Vacancy Cover,12/04/2013,5100050227,453.12,PLUSWORK LTD
TfGM,Transport,Driver Intervention Course Delivery Costs,12/04/2013,5100050424,"35,630.00",POLICE & CRIME COMMISSIONER GTR MCR
TfGM,Transport,Travel and Accommodation,12/04/2013,5100050382,434.00,PORTOBELLO PARTNERSHIP LTD
TfGM,Transport,Driver Intervention Course Delivery Costs,12/04/2013,5100050447,"7,888.00",PROFESSIONAL DRIVER SERVICES LTD
TfGM,Transport,Driver Intervention Course Delivery Costs,12/04/2013,1900026637,"2,722.80",R GREENOUGH
TfGM,Transport,Driver Intervention Course Delivery Costs,12/04/2013,1900026640,"2,589.07",R HILL
TfGM,Transport,Driver Intervention Course Delivery Costs,12/04/2013,5100050434,"1,482.96",R LORD
TfGM,Transport,Concessionary Reimbursement,12/04/2013,1900026759,"1,388.00",RADIO CABS ASHTON LTD
TfGM,Transport,Supported Bus Services,12/04/2013,5100050527,560.00,ROCHDALE COMMUNITY TRANSPORT
TfGM,Transport,"Rent, Rates & Service Charges",12/04/2013,1900026710,"8,408.40",ROCHDALE MBC
TfGM,Transport,Capital Costs - Equipment Installation,12/04/2013,5100050360,440.00,ROSGAL LTD
TfGM,Transport,Capital Costs - Equipment Installation,12/04/2013,5100050385,440.00,ROSGAL LTD
TfGM,Transport,Concessionary Reimbursement,12/04/2013,1900026805,883.00,ROYAL EXPRESS PRIVATE HIRE LTD
TfGM,Transport,Capital Costs - Health & Safety Support Services,12/04/2013,5100050361,"1,350.00",S J FIRTH
TfGM,Transport,Driver Intervention Course Delivery Costs,12/04/2013,1900026623,"1,373.55",S M CHARLSON
TfGM,Transport,Print & Media,12/04/2013,5100050409,941.01,SERVICEPOINT UK
TfGM,Transport,Capital Costs - Print & Media,12/04/2013,5100050411,"2,188.35",SERVICEPOINT UK
TfGM,Transport,Driver Intervention Course Delivery Costs,12/04/2013,1900026653,828.72,SHELLIS SCHOOL OF MOTORING
TfGM,Transport,Driver Intervention Course Delivery Costs,12/04/2013,1900026636,"1,726.07",SHIRLEYS DRIVING SCHOOL
TfGM,Transport,Property & Equipment Maintenance,12/04/2013,5100050275,"10,930.00",SILVERDELL UK LTD
TfGM,Transport,Traffic and Transportation Surveys,12/04/2013,5100050391,"1,630.29",SKY HIGH PLC
TfGM,Transport,Driver Intervention Course Delivery Costs,12/04/2013,1900026634,607.75,SMJ SCHOOL OF MOTORING
TfGM,Transport,Supported Bus Services,12/04/2013,5100050530,"1,325.00",SO COACHES
TfGM,Transport,Driver Intervention Course Delivery Costs,12/04/2013,1900026643,"2,613.39",STEVEN LLOYD APPROVED SCHOOL OF MOT
TfGM,Transport,"Rent, Rates & Service Charges",12/04/2013,1900026533,"24,893.41",STOCKPORT MBC
TfGM,Transport,"Rent, Rates & Service Charges",12/04/2013,1900026534,"1,848.00",STOCKPORT MBC
TfGM,Transport,Driver Intervention Course Delivery Costs,12/04/2013,1900026657,"1,531.60",T RIMMER
TfGM,Transport,Traffic Signal Works,12/04/2013,5100050426,"2,740.00",TDC SYSTEMS LTD
TfGM,Transport,Traffic Signal Works,12/04/2013,5100050428,525.00,TDC SYSTEMS LTD
TfGM,Transport,Traffic Signal Works,12/04/2013,5100050430,525.00,TDC SYSTEMS LTD
TfGM,Transport,Traffic Signal Works,12/04/2013,5100050433,"46,200.00",TDC SYSTEMS LTD
TfGM,Transport,Traffic Signal Works,12/04/2013,5100050435,"46,868.00",TDC SYSTEMS LTD
TfGM,Transport,Traffic Signal Works,12/04/2013,5100050436,"45,987.00",TDC SYSTEMS LTD
TfGM,Transport,Traffic Signal Works,12/04/2013,5100050438,"48,058.00",TDC SYSTEMS LTD
TfGM,Transport,Traffic Signal Works,12/04/2013,5100050439,"52,660.50",TDC SYSTEMS LTD
TfGM,Transport,Print & Media,12/04/2013,5100050490,840.00,TOWER FM
TfGM,Corporate Services,Training,12/04/2013,5100050414,"1,500.00",TRANSFORMATION LTD
TfGM,Transport,Security Services,12/04/2013,5100050501,"4,433.00",TRIBAL EDUCATION LTD
TfGM,Transport,Cleaning,12/04/2013,5100050078,770.85,TUDOR CONTRACT CLEANERS LTD
TfGM,Transport,Cleaning,12/04/2013,5100050092,"8,709.75",TUDOR CONTRACT CLEANERS LTD
TfGM,Transport,Cleaning,12/04/2013,5100050097,793.69,TUDOR CONTRACT CLEANERS LTD
TfGM,Transport,Property & Equipment Maintenance,12/04/2013,5100050349,"14,485.76",TUDOR CONTRACT CLEANERS LTD
TfGM,Transport,Concessionary Reimbursement,12/04/2013,1900026804,563.00,UNITED - MILLENNIUM & BAMFORD CARS
TfGM,Transport,Utilities & Energy,12/04/2013,1900026500,707.29,UNITED UTILITIES WATER PLC
TfGM,Transport,Utilities & Energy,12/04/2013,1900026501,"1,479.55",UNITED UTILITIES WATER PLC
TfGM,Transport,Utilities & Energy,12/04/2013,1900026502,"3,289.38",UNITED UTILITIES WATER PLC
TfGM,Transport,Utilities & Energy,12/04/2013,1900026504,"3,289.38",UNITED UTILITIES WATER PLC
TfGM,Transport,Utilities & Energy,12/04/2013,1900026505,707.29,UNITED UTILITIES WATER PLC
TfGM,Transport,Utilities & Energy,12/04/2013,1900026508,"1,479.55",UNITED UTILITIES WATER PLC
TfGM,Transport,Utilities & Energy,12/04/2013,1900026511,"1,479.55",UNITED UTILITIES WATER PLC
TfGM,Transport,Utilities & Energy,12/04/2013,1900026512,707.29,UNITED UTILITIES WATER PLC
TfGM,Transport,Utilities & Energy,12/04/2013,1900026513,"3,289.38",UNITED UTILITIES WATER PLC
TfGM,Transport,Utilities & Energy,12/04/2013,1900026518,707.29,UNITED UTILITIES WATER PLC
TfGM,Transport,Utilities & Energy,12/04/2013,1900026519,"1,479.55",UNITED UTILITIES WATER PLC
TfGM,Transport,Utilities & Energy,12/04/2013,1900026520,"3,289.38",UNITED UTILITIES WATER PLC
TfGM,Transport,Utilities & Energy,12/04/2013,1900026521,739.79,UNITED UTILITIES WATER PLC
TfGM,Transport,Utilities & Energy,12/04/2013,1900026522,707.29,UNITED UTILITIES WATER PLC
TfGM,Transport,Utilities & Energy,12/04/2013,1900026523,"6,249.51",UNITED UTILITIES WATER PLC
TfGM,Transport,Utilities & Energy,12/04/2013,1900026524,"14,143.95",UNITED UTILITIES WATER PLC
TfGM,Transport,Utilities & Energy,12/04/2013,1900026525,707.29,UNITED UTILITIES WATER PLC
TfGM,Transport,Utilities & Energy,12/04/2013,1900026713,"3,289.38",UNITED UTILITIES WATER PLC
TfGM,Transport,Capital Costs - Topographical Feasibility Support,12/04/2013,5100050352,"1,617.66",URBAN VISION PARTNERSHIP LTD
TfGM,Transport,Capital Costs - Design Support Services,12/04/2013,5100050355,"4,243.83",URBAN VISION PARTNERSHIP LTD
TfGM,Transport,Capital Costs - Project Management Services,12/04/2013,5100050405,"14,157.00",URBAN VISION PARTNERSHIP LTD
TfGM,Transport,Driver Intervention Course Delivery Costs,12/04/2013,1900026635,"1,981.33",VINCENT'S DRIVING SCHOOL
TfGM,Transport,"Rent, Rates & Service Charges",12/04/2013,1900026703,"45,216.00",WIGAN COUNCIL
TfGM,Transport,"Rent, Rates & Service Charges",12/04/2013,1900026705,"26,611.50",WIGAN COUNCIL
TfGM,Transport,"Rent, Rates & Service Charges",12/04/2013,1900026707,"1,547.70",WIGAN COUNCIL
TfGM,Transport,"Rent, Rates & Service Charges",12/04/2013,1900026709,"1,134.19",WIGAN COUNCIL
TfGM,Transport,"Rent, Rates & Service Charges",12/04/2013,1900026712,"3,011.52",WIGAN COUNCIL
TfGM,Transport,Supported Bus Services,15/04/2013,1900026902,"2,433.33",5 STAR PRIVATE HIRE
TfGM,Transport,Supported Bus Services,15/04/2013,1700016963,(781.47),ARRIVA MANCHESTER
TfGM,Transport,Concessionary Reimbursement,15/04/2013,1900026841,"377,417.00",ARRIVA MANCHESTER
TfGM,Transport,Supported Bus Services,15/04/2013,1900026904,"144,511.99",ARRIVA MANCHESTER
TfGM,Transport,Supported Bus Services,15/04/2013,1900026905,"176,529.19",ARRIVA MANCHESTER
TfGM,Transport,Supported Bus Services,15/04/2013,1900026913,"5,560.75",ARRIVA MANCHESTER
TfGM,Transport,Supported Bus Services,15/04/2013,1900026891,"85,069.64",BELLE VUE (MANCHESTER) LTD
TfGM,Transport,Supported Bus Services,15/04/2013,1900026911,"3,083.50",BULLITT CARS
TfGM,Transport,Concessionary Reimbursement,15/04/2013,1900026842,"3,500.00",BULLOCKS
TfGM,Transport,Supported Bus Services,15/04/2013,1900026899,"16,039.64",BULLOCKS
TfGM,Transport,Supported Bus Services,15/04/2013,1900026900,"1,269.55",BULLOCKS
TfGM,Transport,Concessionary Reimbursement,15/04/2013,1900026843,"12,000.00",BURNLEY AND PENDLE
TfGM,Transport,Concessionary Reimbursement,15/04/2013,1900026845,"15,092.00",CENTREBUS LTD
TfGM,Transport,Concessionary Reimbursement,15/04/2013,1900026847,"3,300.00",CHECKMATE TRANSPORT LTD
TfGM,Transport,Supported Bus Services,15/04/2013,1900026876,"10,218.70",CHECKMATE TRANSPORT LTD
TfGM,Transport,Supported Bus Services,15/04/2013,1900026914,"12,537.81",CHESTERS COACHES
TfGM,Transport,Supported Bus Services,15/04/2013,1900026912,"6,909.10",CI WALLEY TA RINGWAY MINIBUS HIRE
TfGM,Transport,Concessionary Reimbursement,15/04/2013,1900026850,"3,000.00",FE FINCH
TfGM,Transport,Concessionary Reimbursement,15/04/2013,1900026848,"24,000.00",FINGLANDS
TfGM,Transport,Supported Bus Services,15/04/2013,1900026877,"26,904.37",FINGLANDS
TfGM,Transport,Supported Bus Services,15/04/2013,1900026878,"35,994.66",FINGLANDS
TfGM,Transport,Concessionary Reimbursement,15/04/2013,1900026849,"7,000.00",FIRST CALDERLINE
TfGM,Transport,Supported Bus Services,15/04/2013,1700016953,"(5,184.38)",FIRST MANCHESTER
TfGM,Transport,Concessionary Reimbursement,15/04/2013,1900026851,"143,000.00",FIRST MANCHESTER
TfGM,Transport,Supported Bus Services,15/04/2013,1900026897,"358,948.80",FIRST MANCHESTER
TfGM,Transport,Supported Bus Services,15/04/2013,1900026898,"337,975.17",FIRST MANCHESTER
TfGM,Transport,Supported Bus Services,15/04/2013,1900026917,"33,405.09",GB COACHES
TfGM,Transport,Supported Bus Services,15/04/2013,1900026887,"11,968.33",GMATL
TfGM,Transport,Concessionary Reimbursement,15/04/2013,1900026853,"205,000.00",GO GOODWINS COACHES LTD
TfGM,Transport,Supported Bus Services,15/04/2013,1900026884,"45,167.01",GO GOODWINS COACHES LTD
TfGM,Transport,Supported Bus Services,15/04/2013,1900026885,"102,649.67",GO GOODWINS COACHES LTD
TfGM,Transport,Concessionary Reimbursement,15/04/2013,1900026852,"85,000.00",GREEN TRIANGLE BUSES LTD
TfGM,Transport,Supported Bus Services,15/04/2013,1900026909,"43,456.17",GREEN TRIANGLE BUSES LTD
TfGM,Transport,Supported Bus Services,15/04/2013,1900026910,"85,766.19",GREEN TRIANGLE BUSES LTD
TfGM,Transport,Concessionary Reimbursement,15/04/2013,1900026830,679.00,HORWICH PRIVATE HIRE LIMITED
TfGM,Transport,Supported Bus Services,15/04/2013,1900026880,"2,333.33",HORWICH PRIVATE HIRE LIMITED
TfGM,Transport,Concessionary Reimbursement,15/04/2013,1900026854,"30,000.00",JIM STONES COACHES
TfGM,Transport,Supported Bus Services,15/04/2013,1900026907,"9,559.09",JIM STONES COACHES
TfGM,Transport,Supported Bus Services,15/04/2013,1900026908,"11,019.40",JIM STONES COACHES
TfGM,Transport,Concessionary Reimbursement,15/04/2013,1900026855,"50,000.00",JP EXECUTIVE
TfGM,Transport,Supported Bus Services,15/04/2013,1900026903,"41,907.58",JP EXECUTIVE
TfGM,Transport,Concessionary Reimbursement,15/04/2013,1900026858,650.00,LAINTON COACHES LTD
TfGM,Transport,Supported Bus Services,15/04/2013,1900026901,"17,056.02",LAINTON COACHES LTD
TfGM,Transport,Concessionary Reimbursement,15/04/2013,1900026856,"16,500.00",LANCASHIRE UTD
TfGM,Transport,Supported Bus Services,15/04/2013,1900026890,"3,200.27",LEISURE TRAVEL
TfGM,Transport,Concessionary Reimbursement,15/04/2013,1900026859,600.00,M TRAVEL
TfGM,Transport,Supported Bus Services,15/04/2013,1900026892,"31,016.45",M TRAVEL
TfGM,Transport,Supported Bus Services,15/04/2013,1900026893,"17,221.67",M TRAVEL
TfGM,Transport,Supported Bus Services,15/04/2013,1700016935,"(1,249.57)",MANCHESTER COMMUNITY TRANSPORT
TfGM,Transport,Concessionary Reimbursement,15/04/2013,1900026832,"5,000.00",MANCHESTER COMMUNITY TRANSPORT
TfGM,Transport,Concessionary Reimbursement,15/04/2013,1900026860,"30,000.00",MANCHESTER COMMUNITY TRANSPORT
TfGM,Transport,Supported Bus Services,15/04/2013,1900026881,"24,656.79",MANCHESTER COMMUNITY TRANSPORT
TfGM,Transport,Supported Bus Services,15/04/2013,1900026882,"220,060.48",MANCHESTER COMMUNITY TRANSPORT
TfGM,Transport,Supported Bus Services,15/04/2013,1900026886,"43,818.02",OLYMPIA TRAVEL
TfGM,Transport,Vehicle Costs,15/04/2013,1200024356,"1,209.90",Quartix Ltd
TfGM,Transport,Supported Bus Services,15/04/2013,1900026835,"11,550.00",R S TYRER LTD
TfGM,Transport,Supported Bus Services,15/04/2013,1900026922,"23,836.36",R S TYRER LTD
TfGM,Transport,Concessionary Reimbursement,15/04/2013,1900026833,"4,163.00",RADIO CABS ASHTON LTD
TfGM,Transport,Supported Bus Services,15/04/2013,1900026883,"35,257.67",RADIO CABS ASHTON LTD
TfGM,Transport,Supported Bus Services,15/04/2013,1900026879,"39,835.08",ROCHDALE COMMUNITY TRANSPORT
TfGM,Transport,Concessionary Reimbursement,15/04/2013,1900026873,"4,246.00",ROJAY SERVICES LTD T/A WIGAN COACHW
TfGM,Transport,Concessionary Reimbursement,15/04/2013,1900026862,"100,000.00",ROSSENDALE TRANSPORT
TfGM,Transport,Supported Bus Services,15/04/2013,1900026888,"126,168.51",ROSSENDALE TRANSPORT
TfGM,Transport,Supported Bus Services,15/04/2013,1900026889,"64,967.53",ROSSENDALE TRANSPORT
TfGM,Transport,Supported Bus Services,15/04/2013,1900026918,"57,402.92",SELWYNS TRAVEL LTD
TfGM,Transport,Supported Bus Services,15/04/2013,1900026919,"1,160.25",SELWYNS TRAVEL LTD
TfGM,Transport,Pass Withdrawal Scheme,15/04/2013,1900026823,"1,455.00",STAGECOACH SERVICES LTD
TfGM,Transport,Concessionary Reimbursement,15/04/2013,1900026864,"1,291,666.00",STAGECOACH SERVICES LTD
TfGM,Transport,Concessionary Reimbursement,15/04/2013,1900026865,"21,000.00",STAGECOACH SERVICES LTD
TfGM,Transport,Concessionary Reimbursement,15/04/2013,1900026866,"210,000.00",STAGECOACH SERVICES LTD
TfGM,Transport,Supported Bus Services,15/04/2013,1900026894,"326,077.29",STAGECOACH SERVICES LTD
TfGM,Transport,Supported Bus Services,15/04/2013,1900026895,"417,255.90",STAGECOACH SERVICES LTD
TfGM,Transport,Supported Bus Services,15/04/2013,1700016980,"(7,895.93)",STOTTS TOURS
TfGM,Transport,Supported Bus Services,15/04/2013,1900026920,"41,898.43",STOTTS TOURS
TfGM,Transport,Supported Bus Services,15/04/2013,1900026921,"48,541.72",STOTTS TOURS
TfGM,Transport,Concessionary Reimbursement,15/04/2013,1900026834,"2,433.00",TELECARS
TfGM,Transport,Supported Bus Services,15/04/2013,1900026906,"11,958.33",TELECARS
TfGM,Transport,Supported Bus Services,15/04/2013,1700016926,(592.23),TRAVELMASTER MCR LTD
TfGM,Transport,Concessionary Reimbursement,15/04/2013,1900026868,"2,500.00",TRAVELMASTER MCR LTD
TfGM,Transport,Supported Bus Services,15/04/2013,1900026875,"3,086.09",TRAVELMASTER MCR LTD
TfGM,Transport,Concessionary Reimbursement,15/04/2013,1900026869,"1,500.00",VALE OF LLANGOLLEN TRAVEL LTD
TfGM,Transport,Supported Bus Services,15/04/2013,1900026896,"3,436.36",VIKING COACHES
TfGM,Transport,Concessionary Reimbursement,15/04/2013,1900026871,"10,300.00",WARRINGTON BOROUGH TRANSPORT LTD
TfGM,Transport,Concessionary Reimbursement,15/04/2013,1900026872,"4,500.00",WIGAN BUSES LTD
TfGM,Transport,Supported Bus Services,15/04/2013,1900026915,"12,457.91",WIGAN BUSES LTD
TfGM,Transport,Supported Bus Services,15/04/2013,1900026916,"27,553.17",WIGAN BUSES LTD
TfGM,Transport,Supported Bus Services,15/04/2013,1900026874,"6,533.17",WIGAN COMMUNITY TRANSPORT
TfGM,Transport,Capital Costs - Programme and Project Management Services,16/04/2013,5100050535,"5,850.00",ACUITY PROGRAMME MANAGEMENT LTD
TfGM,Transport,Capital Costs - Programme and Project Management Services,16/04/2013,5100050567,"11,781.90",ACUITY PROGRAMME MANAGEMENT LTD
TfGM,Transport,Capital Costs - Light Rail Support Services,16/04/2013,5100050135,"12,000.00",AD2 LTD
TfGM,Transport,Capital Costs - Programme and Project Management Services,16/04/2013,5100050610,"9,621.72",ARK PROJECT MANAGEMENT LTD
TfGM,Transport,Capital Costs - Architectural Services,16/04/2013,5100050503,"2,250.00",AUSTINSMITH LORD LLP
TfGM,Transport,"Rent, Rates & Service Charges",16/04/2013,1900026931,"50,664.60",BOLTON METROPOLITAN BOROUGH COUNCIL
TfGM,Transport,Other Operational Costs,16/04/2013,5100050545,973.00,BRAKE BROS LTD
TfGM,Transport,Other Operational Costs,16/04/2013,5100050547,"1,440.40",BRAKE BROS LTD
TfGM,Transport,"Rent, Rates & Service Charges",16/04/2013,1900026937,"50,465.17",BURY MBC
TfGM,Transport,"Rent, Rates & Service Charges",16/04/2013,1900026946,785.40,BURY MBC
TfGM,Transport,"Rent, Rates & Service Charges",16/04/2013,1900026955,912.45,BURY MBC
TfGM,Transport,Capital Costs - Print & Media,16/04/2013,5100050575,"1,395.00",CARVE PRODUCTIONS
TfGM,Corporate Services,Procurement Services,16/04/2013,5100050556,"13,680.00",CNC PERFORMANCE LTD
TfGM,Transport,Capital Costs - Quantity Surveying Services,16/04/2013,5100050240,"37,458.50",EDES LTD
TfGM,Transport,Engineering Support Services,16/04/2013,5100050568,"2,400.00",FREMONT LTD
TfGM,Transport,IS Software & Maintenance,16/04/2013,5100050558,"1,553.00",GBM DIGITAL TECHNOLOGIES LTD
TfGM,Corporate Services,Temporary Vacancy Cover,16/04/2013,1900026923,"4,099.52",HAYS SPECIALIST RECRUITMENT LTD
TfGM,Transport,Print & Media,16/04/2013,5100050572,"3,130.00",HEMISPHERE DESIGN & MRKTNG
TfGM,Transport,Capital Costs - Engineering Support Services,16/04/2013,5100050609,"4,220.00",ITS Testing Services (UK) Ltd
TfGM,Transport,Capital Costs - Mechanical & Engineering Support Services,16/04/2013,5100050507,"3,600.00",JACOBS UK LTD
TfGM,Transport,Capital Costs - Land Acquisition and Related Costs,16/04/2013,1900026990,"67,011.72",JAMIL SHARIF T/A THE BARBERS SHOP
TfGM,Transport,Street Furniture Equipment,16/04/2013,5100050277,"1,088.00",JC DECAUX UK LTD
TfGM,Transport,Street Furniture Equipment,16/04/2013,5100050280,"1,263.00",JC DECAUX UK LTD
TfGM,Transport,Capital Costs - Programme and Project Management Services,16/04/2013,5100050241,"7,875.00",JSLM PROGRAMME SERVICES LTD
TfGM,Transport,"Rent, Rates & Service Charges",16/04/2013,1900026925,"1,270.50",MANCHESTER CITY COUNCIL
TfGM,Transport,"Rent, Rates & Service Charges",16/04/2013,1900026926,"1,501.50",MANCHESTER CITY COUNCIL
TfGM,Transport,"Rent, Rates & Service Charges",16/04/2013,1900026927,"706,500.00",MANCHESTER CITY COUNCIL
TfGM,Transport,"Rent, Rates & Service Charges",16/04/2013,1900026933,"240,210.00",MANCHESTER CITY COUNCIL
TfGM,Transport,"Rent, Rates & Service Charges",16/04/2013,1900026935,"71,238.75",MANCHESTER CITY COUNCIL
TfGM,Transport,"Rent, Rates & Service Charges",16/04/2013,1900026947,"1,640.10",MANCHESTER CITY COUNCIL
TfGM,Transport,"Rent, Rates & Service Charges",16/04/2013,1900026949,"1,871.10",MANCHESTER CITY COUNCIL
TfGM,Transport,"Rent, Rates & Service Charges",16/04/2013,1900026951,"1,871.10",MANCHESTER CITY COUNCIL
TfGM,Transport,"Rent, Rates & Service Charges",16/04/2013,1900026953,"1,097.25",MANCHESTER CITY COUNCIL
TfGM,Transport,Capital Costs - Design Support Services,16/04/2013,5100050563,"18,060.86",MANCHESTER CITY COUNCIL
TfGM,Transport,Capital Costs - Design Support Services,16/04/2013,5100050564,"13,044.18",MANCHESTER CITY COUNCIL
TfGM,Transport,Capital Costs - Light Rail Support Services,16/04/2013,5100050237,"5,800.00",MASON LTD
TfGM,Transport,Supported Bus Services,16/04/2013,5100050394,"20,284.63",MERSEYTRAVEL
TfGM,Transport,Property & Equipment Maintenance,16/04/2013,5100050451,"1,358.85",METROLINK RATP DEV LTD
TfGM,Transport,Heavy Rail Support Services,16/04/2013,5100050117,"11,703.00",NORTHERN RAIL LIMITED
TfGM,Transport,Occupational Health,16/04/2013,5100050376,"5,162.50",PAM OH SOLUTIONS LTD
TfGM,Transport,Occupational Health,16/04/2013,5100050378,"5,162.50",PAM OH SOLUTIONS LTD
TfGM,Transport,Print & Media,16/04/2013,5100050489,"2,147.79",PARAGON GROUP UK LTD (A/CS REC)
TfGM,Transport,Temporary Vacancy Cover,16/04/2013,5100050576,676.06,PLUSWORK LTD
TfGM,Transport,Temporary Vacancy Cover,16/04/2013,5100050577,566.40,PLUSWORK LTD
TfGM,Transport,Temporary Vacancy Cover,16/04/2013,5100050578,566.40,PLUSWORK LTD
TfGM,Transport,Temporary Vacancy Cover,16/04/2013,5100050579,676.06,PLUSWORK LTD
TfGM,Transport,Temporary Vacancy Cover,16/04/2013,5100050580,566.40,PLUSWORK LTD
TfGM,Transport,Temporary Vacancy Cover,16/04/2013,5100050581,676.06,PLUSWORK LTD
TfGM,Transport,Temporary Vacancy Cover,16/04/2013,5100050582,676.06,PLUSWORK LTD
TfGM,Transport,Temporary Vacancy Cover,16/04/2013,5100050583,566.40,PLUSWORK LTD
TfGM,Transport,Temporary Vacancy Cover,16/04/2013,5100050584,566.40,PLUSWORK LTD
TfGM,Transport,Temporary Vacancy Cover,16/04/2013,5100050585,676.06,PLUSWORK LTD
TfGM,Transport,Temporary Vacancy Cover,16/04/2013,5100050586,566.40,PLUSWORK LTD
TfGM,Transport,Temporary Vacancy Cover,16/04/2013,5100050587,676.06,PLUSWORK LTD
TfGM,Transport,Temporary Vacancy Cover,16/04/2013,5100050588,676.06,PLUSWORK LTD
TfGM,Transport,Temporary Vacancy Cover,16/04/2013,5100050589,566.40,PLUSWORK LTD
TfGM,Transport,Temporary Vacancy Cover,16/04/2013,5100050590,676.06,PLUSWORK LTD
TfGM,Transport,Temporary Vacancy Cover,16/04/2013,5100050591,566.40,PLUSWORK LTD
TfGM,Transport,Temporary Vacancy Cover,16/04/2013,5100050592,509.76,PLUSWORK LTD
TfGM,Transport,Temporary Vacancy Cover,16/04/2013,5100050593,676.06,PLUSWORK LTD
TfGM,Transport,Temporary Vacancy Cover,16/04/2013,5100050594,"1,591.77",PLUSWORK LTD
TfGM,Transport,Temporary Vacancy Cover,16/04/2013,5100050595,"1,132.80",PLUSWORK LTD
TfGM,Transport,Supported Bus Services,16/04/2013,5100050570,435.00,POLICE & CRIME COMMISSIONER GTR MCR
TfGM,Transport,Street Furniture Equipment,16/04/2013,5100050231,"1,892.50",QUEENSBURY SHELTERS LIMITED
TfGM,Transport,Capital Costs - Distribution Support Services,16/04/2013,5100050481,490.00,RCD
TfGM,Transport,Capital Costs - Distribution Support Services,16/04/2013,5100050565,490.00,RCD
TfGM,Transport,Capital Costs - Distribution Support Services,16/04/2013,5100050566,490.00,RCD
TfGM,Transport,Capital Costs - Light Rail Support Services,16/04/2013,5100050242,"8,170.00",SB PROJECT MANAGEMENT LTD
TfGM,Transport,Traffic Signal Works,16/04/2013,5100050555,"14,327.82",SIEMENS PLC
TfGM,Transport,Traffic and Transportation Surveys,16/04/2013,5100050550,"1,810.00",SKY HIGH PLC
TfGM,Transport,"Rent, Rates & Service Charges",16/04/2013,1900026929,"50,397.00",STOCKPORT MBC
TfGM,Transport,Maintenance,16/04/2013,5100050214,"3,191.29",T. N. ROBINSON LTD
TfGM,Transport,Maintenance,16/04/2013,5100050219,576.00,T. N. ROBINSON LTD
TfGM,Transport,Maintenance,16/04/2013,5100050220,"1,740.37",T. N. ROBINSON LTD
TfGM,Transport,"Rent, Rates & Service Charges",16/04/2013,1900026939,"20,050.80",TAMESIDE MBC
TfGM,Transport,Property & Equipment Maintenance,16/04/2013,5100050466,"3,372.57",TAMESIDE MBC
TfGM,Transport,Capital Costs - Land Acquisition and Related Costs,16/04/2013,1900026988,630.00,THOMPSON & COOKE LLP
TfGM,Transport,Capital Costs - Land Acquisition and Related Costs,16/04/2013,1900026989,"1,000.00",THOMPSON & COOKE LLP
TfGM,Transport,"Rent, Rates & Service Charges",16/04/2013,1900026940,"12,658.80",TRAFFORD MBC
TfGM,Transport,"Rent, Rates & Service Charges",16/04/2013,1900026945,912.45,TRAFFORD MBC
TfGM,Transport,"Rent, Rates & Service Charges",16/04/2013,1900026959,"2,887.50",TRAFFORD MBC
TfGM,Transport,"Rent, Rates & Service Charges",16/04/2013,1900026961,"2,148.30",TRAFFORD MBC
TfGM,Transport,"Rent, Rates & Service Charges",16/04/2013,1900026963,"3,234.00",TRAFFORD MBC
TfGM,Transport,Cleaning,16/04/2013,5100050084,622.53,TUDOR CONTRACT CLEANERS LTD
TfGM,Transport,Cleaning,16/04/2013,5100050090,531.96,TUDOR CONTRACT CLEANERS LTD
TfGM,Corporate Services,IS Consumables,16/04/2013,5100050605,"7,320.00",VIGLEN
TfGM,Transport,Supported Bus Services,16/04/2013,5100050403,"5,788.00",WEST YORKSHIRE PTE
TfGM,Transport,"Rent, Rates & Service Charges",16/04/2013,1900026942,"24,301.20",WIGAN COUNCIL
TfGM,Transport,"Rent, Rates & Service Charges",16/04/2013,1900026944,785.40,WIGAN COUNCIL
TfGM,Transport,"Rent, Rates & Service Charges",16/04/2013,1900026957,739.20,WIGAN COUNCIL
TfGM,Transport,"Rent, Rates & Service Charges",16/04/2013,1900026972,"13,444.20",WIGAN COUNCIL
TfGM,Transport,Vehicle Repairs & Maintenance,16/04/2013,5100050598,663.10,YOURBUS LTD
TfGM,Transport,Vehicle Costs,17/04/2013,1200024356,679.34,ALLSTAR
TfGM,Transport,Capital Costs - Land Acquisition and Related Costs,18/04/2013,1900027037,"20,000.00",LAPTOP REPAIR BOLTON
TfGM,Corporate Services,Telecommunications,19/04/2013,5100050645,"(2,230.16)",EASYNET GLOBAL SERVICES
TfGM,Corporate Services,Telecommunications,19/04/2013,5100050672,"21,770.00",EASYNET GLOBAL SERVICES
TfGM,Transport,Capital Costs - Capital Project Main Contract Works,19/04/2013,5100050651,"422,268.48",KIER CONSTRUCTION - NORTHERN
TfGM,Transport,Capital Costs - Capital Project Main Contract Works,19/04/2013,5100050393,"420,000.00",MPACT THALES
TfGM,Transport,Capital Costs - Capital Project Main Contract Works,19/04/2013,5100050452,"45,000.00",MPACT THALES
TfGM,Transport,Security Services,19/04/2013,5100050454,"35,046.71",MPACT THALES
TfGM,Transport,Capital Costs - Capital Project Main Contract Works,19/04/2013,5100050457,"400,000.00",MPACT THALES
TfGM,Transport,Capital Costs - Capital Project Main Contract Works,19/04/2013,5100050458,"70,561.00",MPACT THALES
TfGM,Transport,Capital Costs - Capital Project Main Contract Works,19/04/2013,5100050686,"1,626,000.00",MPACT THALES
TfGM,Transport,Capital Costs - Capital Project Main Contract Works,19/04/2013,5100050687,"50,000.00",MPACT THALES
TfGM,Transport,Capital Costs - Capital Project Main Contract Works,19/04/2013,5100050688,"850,000.00",MPACT THALES
TfGM,Transport,Capital Costs - Capital Project Main Contract Works,19/04/2013,5100050689,"1,180,000.00",MPACT THALES
TfGM,Transport,Capital Costs - Capital Project Main Contract Works,19/04/2013,5100050690,"25,000.00",MPACT THALES
TfGM,Transport,Capital Costs - Capital Project Main Contract Works,19/04/2013,5100050691,"45,000.00",MPACT THALES
TfGM,Transport,Capital Costs - Capital Project Main Contract Works,19/04/2013,5100050692,"4,166.66",MPACT THALES
TfGM,Transport,Capital Costs - Capital Project Main Contract Works,19/04/2013,5100050693,"30,000.00",MPACT THALES
TfGM,Transport,Capital Costs - Capital Project Main Contract Works,19/04/2013,5100050694,"321,616.00",MPACT THALES
TfGM,Transport,"Rent, Rates & Service Charges",19/04/2013,1900027041,"74,125.00",PEEL SOUTH EAST LTD
TfGM,Transport,Capital Costs - Land Acquisition and Related Costs,19/04/2013,1900027038,"285,000.00",SQUIRE SANDERS & DEMPSEY (UK) LLP
TfGM,Transport,Capital Costs - Land Acquisition and Related Costs,19/04/2013,1900027039,"314,077.29",TRETHOWANS LLP
TfGM,Transport,Capital Costs - Programme and Project Management Services,22/04/2013,5100050664,"9,450.00",ACUITY PROGRAMME MANAGEMENT LTD
TfGM,Transport,Capital Costs - Architectural Services,22/04/2013,5100050628,"28,831.78",AEDAS ARCHITECTS LTD
TfGM,Transport,Print & Media,22/04/2013,100068513,996.00,ALPHA MEDIA SOLUTIONS
TfGM,Transport,Capital Costs - Mechanical & Engineering Support Services,22/04/2013,5100050626,"5,435.00",ATKINS LTD
TfGM,Transport,Capital Costs - Engineering Support Services,22/04/2013,5100050685,"9,877.50",ATKINS LTD
TfGM,Transport,Print & Media,22/04/2013,5100050652,447.00,BLUETREE DESIGN AND PRINT LTD
TfGM,Transport,Capital Costs - Computer & Communications Equipment,22/04/2013,5100050441,(709.77),BT ENGAGE IT
TfGM,Transport,Capital Costs - IS Support Services,22/04/2013,5100050707,"4,800.00",BT ENGAGE IT
TfGM,Corporate Services,IS Support & Maintenance,22/04/2013,5100050708,"7,526.00",BT ENGAGE IT
TfGM,Transport,Staff Uniforms,22/04/2013,5100049887,894.40,BURLINGTON UNIFORMS LTD
TfGM,Transport,Concessionary Reimbursement,22/04/2013,1900027081,577.00,CAR 2000
TfGM,Transport,Capital Costs -  IS Support Services,22/04/2013,5100050596,"2,350.00",CGI IT UK LTD
TfGM,Transport,Heavy Rail Support Services,22/04/2013,5100050677,"3,250.00",CHESHIRE WEST & CHESTER COUNCIL
TfGM,Transport,Capital Costs - Programme and Project Management Services,22/04/2013,5100050671,"9,750.49",EC HARRIS LLP
TfGM,Transport,Project Support Services,22/04/2013,5100050668,"2,560.87",EKOSGEN
TfGM,Transport,Capital Costs - Utility & Service Diversion Costs,22/04/2013,5100050613,442.68,ELECTRICITY NORTH WEST EHV
TfGM,Transport,Capital Costs - Environmental Feasibility Support,22/04/2013,5100050618,"10,200.00",FORESTRY COMMISSION
TfGM,Transport,Security Services,22/04/2013,5100050616,"1,653.58",G4S CASH SERVICES UK LTD
TfGM,Transport,Security Services,22/04/2013,5100050622,"1,653.58",G4S CASH SERVICES UK LTD
TfGM,Transport,Bus Support Services,22/04/2013,5100050597,"9,750.00",GMATL
TfGM,Transport,Temporary Vacancy Cover,22/04/2013,1900026965,"8,803.58",HAYS SPECIALIST RECRUITMENT LTD
TfGM,Transport,Driver Intervention Course Delivery Costs,22/04/2013,5100050632,"2,333.33",HOLIDAY INN MANCHESTER EAST
TfGM,Transport,Capital Costs - Environmental Feasibility Support,22/04/2013,5100050658,"1,568.55",HYDER LTD
TfGM,Transport,Capital Costs - Environmental & Ecological Support Services,22/04/2013,5100050659,466.41,HYDER LTD
TfGM,Transport,Capital Costs - Legal Services,22/04/2013,5100050654,"14,308.00",IAN ALLAN ASSOCIATES (UK) LTD
TfGM,Transport,Capital Costs - Mechanical & Engineering Support Services,22/04/2013,5100050655,"16,970.00",JACOBS UK LTD
TfGM,Transport,Vehicle Costs,22/04/2013,5100050615,"1,552.77",LEX AUTOLEASE LTD
TfGM,Transport,Capital Costs - Programme and Project Management Services,22/04/2013,5100050698,"5,700.00",MACE COST LIMITED
TfGM,Transport,"Rent, Rates & Service Charges",22/04/2013,1900026948,"1,640.10",MANCHESTER CITY COUNCIL
TfGM,Transport,Capital Costs - Vehicle Costs,22/04/2013,5100050663,764.72,MANCHESTER CITY COUNCIL
TfGM,Transport,Property & Equipment Maintenance,22/04/2013,5100050410,"21,761.19",MANCHESTER WORKING LTD
TfGM,Corporate Services,IS Consumables,22/04/2013,5100050666,"3,440.08",MISCO
TfGM,Corporate Services,IS Consumables,22/04/2013,5100050682,"1,750.61",MISCO
TfGM,Transport,Cleaning,22/04/2013,5100050624,535.82,MITIE CLEANING & SUPPORT SERVS LTD
TfGM,Transport,Driver Intervention Course Delivery Costs,22/04/2013,5100050526,"285,080.00",NDORS LTD
TfGM,Transport,Print & Media,22/04/2013,5100050647,945.00,Oce
TfGM,Transport,Print & Media,22/04/2013,5100050709,650.00,Oce
TfGM,Corporate Services,Promotional Services,22/04/2013,5100050498,"5,000.00",PHAR PARTNERSHIPS
TfGM,Transport,Temporary Vacancy Cover,22/04/2013,5100050703,620.28,PLUSWORK LTD
TfGM,Transport,Capital Costs - Programme and Project Management Services,22/04/2013,5100050695,"2,000.00",PRACTICUS LIMITED
TfGM,Transport,Traffic Signal Works,22/04/2013,5100050359,"2,040.00",ROSGAL LTD
TfGM,Transport,Traffic Signal Works,22/04/2013,5100050515,998.00,ROSGAL LTD
TfGM,Transport,Concessionary Reimbursement,22/04/2013,1900027105,525.00,SCOTTS & CHESHIRE CARS
TfGM,Transport,Capital Costs - Print & Media,22/04/2013,5100050705,450.00,SERVICEPOINT UK
TfGM,Transport,Traffic Signal Works,22/04/2013,5100050574,"149,317.52",SIEMENS PLC
TfGM,Transport,Traffic and Transportation Surveys,22/04/2013,5100050548,"3,599.00",SKY HIGH PLC
TfGM,Transport,Traffic and Transportation Surveys,22/04/2013,5100050549,"2,298.00",SKY HIGH PLC
TfGM,Corporate Services,Computer Support and Licences,22/04/2013,5100050461,821.71,SQUIDCARD LTD
TfGM,Transport,Capital costs - Planning Support Services,22/04/2013,5100050321,"5,712.50",STEER DAVIES GLEEVE LTD
TfGM,Transport,Concessionary Reimbursement,22/04/2013,1900027096,"1,164.00",STRAND PRIVATE HIRE
TfGM,Transport,Security Services,22/04/2013,5100050512,"16,947.12",TAMESIDE MBC
TfGM,Transport,Supported Bus Services,22/04/2013,5100050450,"21,870.00",TRAPEZE GROUP (UK) LTD
TfGM,Corporate Services,Computer Support and Licences,22/04/2013,5100050600,"8,039.77",TRUSTMARQUE SOLUTIONS
TfGM,Corporate Services,Computer Support and Licences,22/04/2013,5100050601,"146,795.37",TRUSTMARQUE SOLUTIONS
TfGM,Transport,Utilities & Energy,22/04/2013,1900027034,"3,289.38",UNITED UTILITIES WATER PLC
TfGM,Transport,Vehicle Costs,24/04/2013,1200024440,"1,818.79",ALLSTAR
TfGM,Transport,Capital Costs - Capital Project Main Contract Works,24/04/2013,5100050867,"1,893,839.23",BOLTON METROPOLITAN BOROUGH COUNCIL
TfGM,Transport,Postage Costs,25/04/2013,1200024440,"3,514.40",FP TELESET
TfGM,Transport,Capital Costs - Capital Project Main Contract Works,26/04/2013,5100050413,"75,490.85",A E YATES LTD
TfGM,Transport,Capital Costs - Programme and Project Management Services,26/04/2013,5100051047,"8,913.90",ACUITY PROGRAMME MANAGEMENT LTD
TfGM,Transport,Capital Costs - Engineering Support Services,26/04/2013,5100049594,730.00,AECOM LTD
TfGM,Transport,Capital Costs - Engineering Support Services,26/04/2013,5100050228,"4,745.00",AECOM LTD
TfGM,Transport,Capital Costs - Engineering Support Services,26/04/2013,5100050291,"6,935.00",AECOM LTD
TfGM,Transport,Capital Costs - Engineering Support Services,26/04/2013,5100050746,"2,832.00",AECOM LTD
TfGM,Transport,Capital Costs - Engineering Support Services,26/04/2013,5100050877,"12,583.00",AECOM LTD
TfGM,Transport,Capital Costs - Design Support Services,26/04/2013,5100051073,"9,628.06",AECOM LTD
TfGM,Transport,Print & Media,26/04/2013,5100050972,"3,017.00",ALPHA MEDIA SOLUTIONS
TfGM,Transport,Print & Media,26/04/2013,5100050976,"4,535.00",ALPHA MEDIA SOLUTIONS
TfGM,Transport,Print & Media,26/04/2013,5100050977,"3,017.00",ALPHA MEDIA SOLUTIONS
TfGM,Transport,Print & Media,26/04/2013,5100050978,"3,017.00",ALPHA MEDIA SOLUTIONS
TfGM,Transport,Property & Equipment Maintenance,26/04/2013,5100050748,"4,300.12",AMARI PLASTICS PLC
TfGM,Corporate Services,Smart Ticketing,26/04/2013,5100050888,"5,950.00",AMSACOM LIMITED
TfGM,Transport,Capital Costs - Environmental & Ecological Support Services,26/04/2013,5100051035,"1,000.00",ANDY BURGESS
TfGM,Transport,Paper and Printing Consumables,26/04/2013,5100050893,723.35,ANTALIS LTD
TfGM,Transport,Paper and Printing Consumables,26/04/2013,5100050894,"2,170.05",ANTALIS LTD
TfGM,Transport,Capital Costs - Smart Ticketing,26/04/2013,5100050904,"1,950.00",APPLIED CARD TECHNOLOGIES
TfGM,Transport,Supported Bus Services,26/04/2013,5100050973,"1,927.92",ARRIVA MANCHESTER
TfGM,Transport,Capital Costs - Print & Media,26/04/2013,5100050560,450.00,ASTRA SIGNS
TfGM,Transport,Capital Costs - Print & Media,26/04/2013,5100050945,510.00,ASTRA SIGNS
TfGM,Transport,Engineering Support Services,26/04/2013,5100050726,"12,294.50",ATKINS LTD
TfGM,Transport,Engineering Support Services,26/04/2013,5100050828,"10,090.36",ATKINS LTD
TfGM,Transport,Capital Costs - Engineering Support Services,26/04/2013,5100050845,"29,393.00",ATKINS LTD
TfGM,Transport,Capital Costs - Engineering Support Services,26/04/2013,5100050860,"21,310.00",ATKINS LTD
TfGM,Transport,Capital Costs - Programme and Project Management Services,26/04/2013,5100050967,"5,110.00",ATKINS LTD
TfGM,Corporate Services,Procurement Services,26/04/2013,5100050992,"8,640.00",ATKINS LTD
TfGM,Transport,Capital Costs - Programme and Project Management Services,26/04/2013,5100050999,"10,316.25",ATKINS LTD
TfGM,Corporate Services,Legal Services,26/04/2013,5100051008,"16,825.00",ATKINS LTD
TfGM,Transport,Capital Costs - Mechanical & Engineering Support Services,26/04/2013,5100051083,"5,060.00",ATKINS LTD
TfGM,Transport,Capital Costs - Print & Media,26/04/2013,5100050728,715.00,AURA GRAPHICS LTD t/a FENN GRAPHICS
TfGM,Transport,Driver Intervention Course Delivery Costs,26/04/2013,5100051034,560.00,BEACON LANGUAGES LTD
TfGM,Transport,Capital Costs - Capital Project Main Contract Works,26/04/2013,5100050544,"35,665.05",BIRSE CIVILS LTD
TfGM,Transport,Supported Bus Services,26/04/2013,1900027208,"7,632.76",BLUEBIRD BUS AND COACH
TfGM,Transport,Property & Equipment Maintenance,26/04/2013,5100050522,670.00,BLUESKY INTERNATIONAL LTD
TfGM,Transport,Print & Media,26/04/2013,5100051026,"1,583.00",BLUETREE DESIGN AND PRINT LTD
TfGM,Transport,Driver Intervention Course Delivery Costs,26/04/2013,5100050752,"5,090.00",BOLTON MIDDLEBROOK LEISURE TRUST
TfGM,Transport,Capital Costs - LRT Vehicles,26/04/2013,5100050368,"575,595.61",BOMBARDIER TRANSPORTATION UK LTD
TfGM,Transport,Capital Costs - LRT Vehicles,26/04/2013,5100050444,"187,389.88",BOMBARDIER TRANSPORTATION UK LTD
TfGM,Transport,Capital Costs - Capital Project Main Contract Works,26/04/2013,5100051028,"21,559.24",BRUNTWOOD ESTATES ALPHA PORTFOLIO L
TfGM,Transport,Capital Costs - Utility & Service Diversion Costs,26/04/2013,5100050727,"2,964.93",BT OPENREACH (SALFORD)
TfGM,Transport,Planning Support Services,26/04/2013,5100050995,"6,000.00",BUILDING DESIGN PARTNERSHIP LTD
TfGM,Transport,"Rent, Rates & Service Charges",26/04/2013,1900027108,"3,187.80",BURY MBC
TfGM,Transport,Capital Costs - Print & Media,26/04/2013,5100050875,"1,356.61",BURY MBC
TfGM,Transport,Print & Media,26/04/2013,5100050925,475.50,CARAT MEDIA UK LIMITED
TfGM,Transport,Driver Intervention Course Delivery Costs,26/04/2013,5100051023,"7,680.00",CARRINGTON BUSINESS PARK (CBPK)
TfGM,Transport,Capital Costs - Environmental & Ecological Support Services,26/04/2013,5100050927,"4,840.00",CEEQUAL LTD
TfGM,Corporate Services,Payroll Support Services,26/04/2013,5100050903,"1,209.75",CGI IT UK LTD
TfGM,Corporate Services,Payroll Support Services,26/04/2013,5100050993,"2,259.22",CGI IT UK LTD
TfGM,Transport,Print & Media,26/04/2013,5100050837,"3,095.00",CHAPEL PRESS LTD
TfGM,Transport,Capital Costs - Capital Project Main Contract Works,26/04/2013,5100050739,"10,960.00",CHARGE YOUR CAR LTD
TfGM,Transport,Capital Costs - Capital Project Main Contract Works,26/04/2013,5100050740,"8,035.00",CHARGE YOUR CAR LTD
TfGM,Transport,Capital Costs - Capital Project Main Contract Works,26/04/2013,5100050741,"3,190.00",CHARGE YOUR CAR LTD
TfGM,Transport,Capital Costs - Capital Project Main Contract Works,26/04/2013,5100050804,"3,855.95",CHARGE YOUR CAR LTD
TfGM,Transport,Capital Costs - Capital Project Main Contract Works,26/04/2013,5100050805,"5,966.55",CHARGE YOUR CAR LTD
TfGM,Transport,Capital Costs - Capital Project Main Contract Works,26/04/2013,5100050806,"4,627.50",CHARGE YOUR CAR LTD
TfGM,Transport,Capital Costs - Capital Project Main Contract Works,26/04/2013,5100050807,"5,241.20",CHARGE YOUR CAR LTD
TfGM,Transport,Capital Costs - Capital Project Main Contract Works,26/04/2013,5100050808,"5,241.55",CHARGE YOUR CAR LTD
TfGM,Transport,Capital Costs - Capital Project Main Contract Works,26/04/2013,5100050809,"4,993.40",CHARGE YOUR CAR LTD
TfGM,Transport,Capital Costs - Capital Project Main Contract Works,26/04/2013,5100050817,"4,993.40",CHARGE YOUR CAR LTD
TfGM,Transport,Capital Costs - Capital Project Main Contract Works,26/04/2013,5100050818,"5,950.00",CHARGE YOUR CAR LTD
TfGM,Transport,Capital Costs - Capital Project Main Contract Works,26/04/2013,5100050820,"5,950.00",CHARGE YOUR CAR LTD
TfGM,Transport,Capital Costs - Capital Project Main Contract Works,26/04/2013,5100050822,"5,950.00",CHARGE YOUR CAR LTD
TfGM,Transport,Capital Costs - Capital Project Main Contract Works,26/04/2013,5100050823,"4,250.00",CHARGE YOUR CAR LTD
TfGM,Transport,"Rent, Rates & Service Charges",26/04/2013,1900027109,"7,761.60",CITY OF SALFORD
TfGM,Transport,Print & Media,26/04/2013,5100050997,"2,280.00",CLEAR CHANNEL UK LTD
TfGM,Transport,Training,26/04/2013,5100050883,600.00,CONTRACT DATA RESEARCH LTD
TfGM,Transport,Capital Costs - Engineering Support Services,26/04/2013,5100050864,"28,900.00",DARKE STEELE LIMITED
TfGM,Transport,Print & Media,26/04/2013,5100051024,615.00,E KELLY
TfGM,Transport,Capital Costs - Engineering Support Services,26/04/2013,5100050852,"6,642.98",EC HARRIS LLP
TfGM,Transport,Capital Costs - Engineering Support Services,26/04/2013,5100050853,"15,832.47",EC HARRIS LLP
TfGM,Transport,Capital Costs - Engineering Support Services,26/04/2013,5100050854,"4,929.82",EC HARRIS LLP
TfGM,Transport,Capital Costs - Utility & Service Diversion Costs,26/04/2013,5100050769,"12,542.30",ELECTRICITY NORTH WEST EHV
TfGM,Transport,Capital Costs - Utility & Service Diversion Costs,26/04/2013,5100050849,"5,000.00",ELECTRICITY NORTH WEST EHV
TfGM,Transport,Capital Costs - Utility & Service Diversion Costs,26/04/2013,5100050851,"55,946.74",ELECTRICITY NORTH WEST EHV
TfGM,Transport,Capital Costs - Utility & Service Diversion Costs,26/04/2013,5100050858,"32,954.89",ELECTRICITY NORTH WEST EHV
TfGM,Transport,Capital Costs - Utility & Service Diversion Costs,26/04/2013,5100050861,"47,397.18",ELECTRICITY NORTH WEST EHV
TfGM,Transport,Capital Costs - Utility & Service Diversion Costs,26/04/2013,5100050863,"70,214.87",ELECTRICITY NORTH WEST EHV
TfGM,Transport,Traffic Signal Works,26/04/2013,5100050989,609.99,ELECTRICITY NORTH WEST EHV
TfGM,Transport,Capital Costs - Utility & Service Diversion Costs,26/04/2013,5100051013,"7,919.31",ELECTRICITY NORTH WEST EHV
TfGM,Transport,Capital Costs - Utility & Service Diversion Costs,26/04/2013,5100051014,"3,117.07",ELECTRICITY NORTH WEST EHV
TfGM,Transport,Capital Costs - Utility & Service Diversion Costs,26/04/2013,5100051017,"4,752.34",ELECTRICITY NORTH WEST EHV
TfGM,Transport,Capital Costs - Utility & Service Diversion Costs,26/04/2013,5100051020,"4,735.97",ELECTRICITY NORTH WEST EHV
TfGM,Transport,Human Resource Services,26/04/2013,5100050724,500.00,EMAP LTD
TfGM,Transport,Utilities & Energy,26/04/2013,1900027125,432.00,ENTERPRISE MANAGED SERVICES LTD
TfGM,Transport,Utilities & Energy,26/04/2013,1900027126,432.00,ENTERPRISE MANAGED SERVICES LTD
TfGM,Corporate Services,Programme Assurance Services,26/04/2013,5100050929,"2,160.00",ERNST & YOUNG
TfGM,Transport,Capital Costs - Project Management Services,26/04/2013,5100051097,"20,102.00",ERNST & YOUNG
TfGM,Transport,IS Support Services,26/04/2013,5100050136,"3,500.00",FRONTLINE BUS SERVS L
TfGM,Transport,Property & Equipment Maintenance,26/04/2013,5100050811,"3,253.44",G & J SEDDON
TfGM,Transport,Property & Equipment Maintenance,26/04/2013,5100050866,"4,388.09",G & J SEDDON
TfGM,Corporate Services,Legal Services,26/04/2013,5100051019,"9,877.50",GARDINER & THEOBALD FAIRWAY LTD
TfGM,Transport,Capital Costs - Engineering Support Services,26/04/2013,5100050553,"17,302.73",HALCROW GROUP LTD
TfGM,Transport,Capital Costs - Quantity Surveying Services,26/04/2013,5100051021,"3,772.55",HALCROW GROUP LTD
TfGM,Transport,Property & Equipment Maintenance,26/04/2013,5100050756,"2,970.00",HALSALL SIGNS LTD
TfGM,Transport,Property & Equipment Maintenance,26/04/2013,5100050757,"3,900.00",HALSALL SIGNS LTD
TfGM,Transport,Street Furniture Equipment,26/04/2013,5100050758,"4,356.00",HALSALL SIGNS LTD
TfGM,Transport,Street Furniture Equipment,26/04/2013,5100050759,"3,888.00",HALSALL SIGNS LTD
TfGM,Transport,Street Furniture Equipment,26/04/2013,5100050760,"6,183.00",HALSALL SIGNS LTD
TfGM,Transport,Temporary Vacancy Cover,26/04/2013,1900027132,"6,977.41",HAYS SPECIALIST RECRUITMENT LTD
TfGM,Transport,Print & Media,26/04/2013,5100050919,"8,830.00",HEMISPHERE DESIGN & MRKTNG
TfGM,Transport,Capital Costs - Print & Media,26/04/2013,5100050922,"1,960.00",HEMISPHERE DESIGN & MRKTNG
TfGM,Transport,Print & Media,26/04/2013,5100050928,700.00,HEMISPHERE DESIGN & MRKTNG
TfGM,Transport,Print & Media,26/04/2013,5100050938,"3,730.00",HEMISPHERE DESIGN & MRKTNG
TfGM,Corporate Services,Print & Media,26/04/2013,5100050939,"7,250.00",HEMISPHERE DESIGN & MRKTNG
TfGM,Corporate Services,Print & Media,26/04/2013,5100050941,"4,450.00",HEMISPHERE DESIGN & MRKTNG
TfGM,Corporate Services,Print & Media,26/04/2013,5100050942,"7,050.00",HEMISPHERE DESIGN & MRKTNG
TfGM,Corporate Services,Print & Media,26/04/2013,5100050943,"3,375.00",HEMISPHERE DESIGN & MRKTNG
TfGM,Corporate Services,Print & Media,26/04/2013,5100050944,"7,185.00",HEMISPHERE DESIGN & MRKTNG
TfGM,Corporate Services,Print & Media,26/04/2013,5100050946,"8,705.00",HEMISPHERE DESIGN & MRKTNG
TfGM,Corporate Services,Print & Media,26/04/2013,5100050964,"3,650.00",HEMISPHERE DESIGN & MRKTNG
TfGM,Transport,Print & Media,26/04/2013,5100051085,"12,670.00",HEMISPHERE DESIGN & MRKTNG
TfGM,Corporate Services,Project Management Services,26/04/2013,5100051046,"2,000.00",INCITE SOLUTIONS LTD
TfGM,Corporate Services,Project Management Services,26/04/2013,5100051057,"2,000.00",INCITE SOLUTIONS LTD
TfGM,Transport,Concessionary Reimbursement,26/04/2013,1900027198,749.00,Iqbal Chohan T/A STAR CARS
TfGM,Corporate Services,Computer Support and Licences,26/04/2013,5100051066,"1,633.00",ITSO LTD
TfGM,Corporate Services,Computer Support and Licences,26/04/2013,5100051069,"1,000.74",ITSO LTD
TfGM,Transport,Capital Costs - Programme and Project Management Services,26/04/2013,5100050729,"6,685.00",JACOBS UK LTD
TfGM,Transport,Capital Costs - Transport Planning & Monitoring Services,26/04/2013,5100050730,"1,314.44",JACOBS UK LTD
TfGM,Transport,Capital Costs - Environmental & Ecological Support Services,26/04/2013,5100050731,927.11,JACOBS UK LTD
TfGM,Transport,Capital Costs - Transport Planning & Monitoring Services,26/04/2013,5100050732,"5,961.60",JACOBS UK LTD
TfGM,Transport,Capital Costs - Programme and Project Management Services,26/04/2013,5100050765,"8,760.00",JACOBS UK LTD
TfGM,Corporate Services,IS Consumables,26/04/2013,5100050971,"1,273.72",KELWAY
TfGM,Transport,Print & Media,26/04/2013,5100050737,887.50,KREATIVE BOMB LIMITED
TfGM,Transport,Property & Equipment Maintenance,26/04/2013,5100050755,823.04,LAMBERT SMITH HAMPTON
TfGM,Transport,Capital Costs - Quantity Surveying Services,26/04/2013,5100051082,"9,400.00",LAMBERT SMITH HAMPTON
TfGM,Transport,IS Software & Maintenance,26/04/2013,5100051079,"16,875.00",LEARNING POOL LTD
TfGM,Transport,Capital Costs - Programme and Project Management Services,26/04/2013,5100051071,"8,700.00",MACE COST LIMITED
TfGM,Transport,"Rent, Rates & Service Charges",26/04/2013,1900027110,"13,582.80",MANCHESTER CITY COUNCIL
TfGM,Transport,"Rent, Rates & Service Charges",26/04/2013,1900027111,"1,012.30",MANCHESTER CITY COUNCIL
TfGM,Transport,"Rent, Rates & Service Charges",26/04/2013,1900027112,718.55,MANCHESTER CITY COUNCIL
TfGM,Transport,"Rent, Rates & Service Charges",26/04/2013,1900027130,"2,014.57",MANCHESTER CITY COUNCIL
TfGM,Transport,Property & Equipment Maintenance,26/04/2013,5100050406,"6,105.00",MANCHESTER CITY COUNCIL
TfGM,Transport,Driver Intervention Course Delivery Costs,26/04/2013,5100050750,"66,125.00",MERSEYSIDE POLICE AUTHORITY
TfGM,Transport,Street Furniture Equipment,26/04/2013,5100050842,"10,495.00",METFAST LTD
TfGM,Transport,Concessionary Reimbursement,26/04/2013,1900027185,"1,626.00",METRO TAXIS LTD
TfGM,Transport,Computer and Printing Hardware,26/04/2013,5100050105,"3,875.00",MISCO
TfGM,Transport,Computer and Printing Hardware,26/04/2013,5100050474,775.00,MISCO
TfGM,Transport,IS Consumables,26/04/2013,5100050771,(625.01),MISCO
TfGM,Transport,Computer and Printing Hardware,26/04/2013,5100050872,597.08,MISCO
TfGM,Transport,Computer and Printing Hardware,26/04/2013,5100050915,595.00,MISCO
TfGM,Transport,Capital Costs - Programme and Project Management Services,26/04/2013,5100050246,"1,521.00",MORSON INTERNATIONAL
TfGM,Transport,Capital Costs - Programme and Project Management Services,26/04/2013,5100050754,"1,950.00",MORSON INTERNATIONAL
TfGM,Transport,Capital Costs - Programme and Project Management Services,26/04/2013,5100050947,759.20,MORSON INTERNATIONAL
TfGM,Transport,Capital Costs - Programme and Project Management Services,26/04/2013,5100050948,"2,140.00",MORSON INTERNATIONAL
TfGM,Transport,Capital Costs - Programme and Project Management Services,26/04/2013,5100050949,"1,950.00",MORSON INTERNATIONAL
TfGM,Transport,Capital Costs - Programme and Project Management Services,26/04/2013,5100050950,"1,664.00",MORSON INTERNATIONAL
TfGM,Transport,Capital Costs - Programme and Project Management Services,26/04/2013,5100050951,"1,690.00",MORSON INTERNATIONAL
TfGM,Transport,Capital Costs - Programme and Project Management Services,26/04/2013,5100050952,"1,352.00",MORSON INTERNATIONAL
TfGM,Transport,Capital Costs - Programme and Project Management Services,26/04/2013,5100050954,"1,331.20",MORSON INTERNATIONAL
TfGM,Transport,Capital Costs - Programme and Project Management Services,26/04/2013,5100050960,"1,712.00",MORSON INTERNATIONAL
TfGM,Transport,Capital Costs - Programme and Project Management Services,26/04/2013,5100050961,"1,352.00",MORSON INTERNATIONAL
TfGM,Transport,Capital Costs - Programme and Project Management Services,26/04/2013,5100050962,"1,170.00",MORSON INTERNATIONAL
TfGM,Transport,Capital Costs - Programme and Project Management Services,26/04/2013,5100050966,"1,518.40",MORSON INTERNATIONAL
TfGM,Transport,Capital Costs - Programme and Project Management Services,26/04/2013,5100050981,602.00,MORSON INTERNATIONAL
TfGM,Transport,Capital Costs - Programme and Project Management Services,26/04/2013,5100050984,"1,138.80",MORSON INTERNATIONAL
TfGM,Transport,Capital Costs - Programme and Project Management Services,26/04/2013,5100050986,"1,498.00",MORSON INTERNATIONAL
TfGM,Transport,Capital Costs - Engineering Support Services,26/04/2013,5100050824,"1,875.00",NEIL CLARKE LTD
TfGM,Transport,Capital Costs - Engineering Support Services,26/04/2013,5100050996,"1,875.00",NEIL CLARKE LTD
TfGM,Transport,Training,26/04/2013,5100050917,695.00,NORTH OF ENGLAND EXCELLENCE
TfGM,Transport,Smart Ticketing,26/04/2013,100067205,"(20,400.00)",NORTHCLIFFE LTD
TfGM,Transport,Smart Ticketing,26/04/2013,5100050886,"14,000.00",NORTHCLIFFE LTD
TfGM,Transport,Smart Ticketing,26/04/2013,5100050887,"13,200.00",NORTHCLIFFE LTD
TfGM,Transport,Maintenance,26/04/2013,5100050670,"20,077.40",NORTHERN RAIL LIMITED
TfGM,Transport,Staff Rail Passes,26/04/2013,5100050953,"4,235.60",NORTHERN RAIL LIMITED
TfGM,Transport,Rail Franchise,26/04/2013,1200024440,"5,140,883.13",NORTHERN RAIL LTD
TfGM,Transport,Capital Costs - Project Management Services,26/04/2013,5100050465,"5,896.33",OLDHAM MBC
TfGM,Transport,Capital Costs - Smart Ticketing,26/04/2013,5100051027,"3,920.00",OVERWORKED LIMITED
TfGM,Corporate Services,Legal Services,26/04/2013,5100050354,885.50,PANNONE AND PARTNERS
TfGM,Transport,Capital Costs - Legal Services,26/04/2013,5100050456,937.20,PANNONE AND PARTNERS
TfGM,Transport,Capital Costs - Legal Services,26/04/2013,5100050742,500.00,PANNONE AND PARTNERS
TfGM,Transport,Capital Costs - Legal Services,26/04/2013,5100051015,"1,083.10",PANNONE AND PARTNERS
TfGM,Transport,Capital Costs - Legal Services,26/04/2013,5100051016,"2,472.50",PANNONE AND PARTNERS
TfGM,Transport,Temporary Vacancy Cover,26/04/2013,5100050763,478.07,PLUSWORK LTD
TfGM,Transport,Traffic and Transportation Surveys,26/04/2013,5100050838,425.60,PLUSWORK LTD
TfGM,Transport,Traffic and Transportation Surveys,26/04/2013,5100050910,577.60,PLUSWORK LTD
TfGM,Transport,Traffic and Transportation Surveys,26/04/2013,5100051007,"5,409.05",PLUSWORK LTD
TfGM,Transport,Traffic and Transportation Surveys,26/04/2013,5100051011,"4,072.06",PLUSWORK LTD
TfGM,Transport,Traffic and Transportation Surveys,26/04/2013,5100051012,"4,007.66",PLUSWORK LTD
TfGM,Transport,Temporary Vacancy Cover,26/04/2013,5100051050,676.06,PLUSWORK LTD
TfGM,Transport,Temporary Vacancy Cover,26/04/2013,5100051051,566.40,PLUSWORK LTD
TfGM,Transport,Temporary Vacancy Cover,26/04/2013,5100051056,620.28,PLUSWORK LTD
TfGM,Transport,Temporary Vacancy Cover,26/04/2013,5100051059,453.12,PLUSWORK LTD
TfGM,Transport,Capital Costs - Programme and Project Management Services,26/04/2013,5100050956,"1,400.00",PRACTICUS LIMITED
TfGM,Transport,Capital Costs - Programme and Project Management Services,26/04/2013,5100051090,"2,800.00",PRACTICUS LIMITED
TfGM,Transport,Driver Intervention Course Delivery Costs,26/04/2013,5100050634,"6,723.00",PROFESSIONAL DRIVER SERVICES LTD
TfGM,Transport,Capital Costs - Security Services,26/04/2013,5100050774,600.00,RANDSTAD CPE LTD
TfGM,Transport,Capital Costs - Security Services,26/04/2013,5100050776,600.00,RANDSTAD CPE LTD
TfGM,Transport,Capital Costs - Security Services,26/04/2013,5100050777,450.00,RANDSTAD CPE LTD
TfGM,Transport,Capital Costs - Security Services,26/04/2013,5100050778,462.50,RANDSTAD CPE LTD
TfGM,Transport,Capital Costs - Security Services,26/04/2013,5100050779,600.00,RANDSTAD CPE LTD
TfGM,Transport,Capital Costs - Security Services,26/04/2013,5100050781,450.00,RANDSTAD CPE LTD
TfGM,Transport,Capital Costs - Security Services,26/04/2013,5100050782,600.00,RANDSTAD CPE LTD
TfGM,Transport,Capital Costs - Security Services,26/04/2013,5100050783,450.00,RANDSTAD CPE LTD
TfGM,Transport,Capital Costs - Security Services,26/04/2013,5100050784,600.00,RANDSTAD CPE LTD
TfGM,Transport,Capital Costs - Security Services,26/04/2013,5100050785,600.00,RANDSTAD CPE LTD
TfGM,Transport,Capital Costs - Security Services,26/04/2013,5100050786,600.00,RANDSTAD CPE LTD
TfGM,Transport,Capital Costs - Security Services,26/04/2013,5100050787,450.00,RANDSTAD CPE LTD
TfGM,Transport,Capital Costs - Security Services,26/04/2013,5100050788,600.00,RANDSTAD CPE LTD
TfGM,Transport,Capital Costs - Security Services,26/04/2013,5100050789,"1,050.00",RANDSTAD CPE LTD
TfGM,Transport,Capital Costs - Security Services,26/04/2013,5100050790,450.00,RANDSTAD CPE LTD
TfGM,Transport,Capital Costs - Security Services,26/04/2013,5100050791,450.00,RANDSTAD CPE LTD
TfGM,Transport,Capital Costs - Security Services,26/04/2013,5100050792,900.00,RANDSTAD CPE LTD
TfGM,Transport,Capital Costs - Security Services,26/04/2013,5100050793,750.00,RANDSTAD CPE LTD
TfGM,Transport,Capital Costs - Security Services,26/04/2013,5100050794,450.00,RANDSTAD CPE LTD
TfGM,Transport,Capital Costs - Security Services,26/04/2013,5100050795,600.00,RANDSTAD CPE LTD
TfGM,Transport,Capital Costs - Security Services,26/04/2013,5100050796,750.00,RANDSTAD CPE LTD
TfGM,Transport,Capital Costs - Security Services,26/04/2013,5100050797,750.00,RANDSTAD CPE LTD
TfGM,Transport,Capital Costs - Security Services,26/04/2013,5100050798,600.00,RANDSTAD CPE LTD
TfGM,Transport,Capital Costs - Security Services,26/04/2013,5100050799,900.00,RANDSTAD CPE LTD
TfGM,Transport,Capital Costs - Security Services,26/04/2013,5100050800,600.00,RANDSTAD CPE LTD
TfGM,Transport,Capital Costs - Security Services,26/04/2013,5100050801,850.00,RANDSTAD CPE LTD
TfGM,Transport,Capital Costs - Security Services,26/04/2013,5100050803,750.00,RANDSTAD CPE LTD
TfGM,Transport,Capital Costs - Distribution Support Services,26/04/2013,5100050884,490.00,RCD
TfGM,Transport,Capital Costs - Distribution Support Services,26/04/2013,5100050935,490.00,RCD
TfGM,Corporate Services,Employee Reimbursed Costs,26/04/2013,1900027152,750.00,Redacted
TfGM,Transport,Supported Bus Services,26/04/2013,1900027168,0.00,ROCHDALE COMMUNITY TRANSPORT
TfGM,Transport,Supported Bus Services,26/04/2013,5100050642,880.00,ROCHDALE COMMUNITY TRANSPORT
TfGM,Transport,Capital Costs - Equipment Installation,26/04/2013,5100050926,550.00,ROSGAL LTD
TfGM,Transport,Traffic Signal Works,26/04/2013,5100050932,"13,620.93",ROSGAL LTD
TfGM,Transport,Property & Equipment Maintenance,26/04/2013,5100050009,936.00,SERCO LTD
TfGM,Transport,Print & Media,26/04/2013,5100050772,"2,960.00",SERVICEPOINT UK
TfGM,Transport,Print & Media,26/04/2013,5100050773,(500.00),SERVICEPOINT UK
TfGM,Corporate Services,Computer Support and Licences,26/04/2013,5100051065,"1,950.00",SIAS LTD
TfGM,Corporate Services,Computer Support and Licences,26/04/2013,5100051067,"1,950.00",SIAS LTD
TfGM,Transport,Traffic Signal Works,26/04/2013,5100050743,"15,581.71",SIEMENS PLC
TfGM,Transport,Traffic Signal Works,26/04/2013,5100050931,"9,061.85",SIEMENS PLC
TfGM,Transport,Traffic Signal Works,26/04/2013,5100050933,"3,224.43",SIEMENS PLC
TfGM,Transport,Traffic Signal Works,26/04/2013,5100051009,"10,786.40",SIEMENS PLC
TfGM,Transport,Traffic and Transportation Surveys,26/04/2013,5100050678,"3,513.00",SKY HIGH PLC
TfGM,Transport,Supported Bus Services,26/04/2013,5100050934,"1,300.00",SO COACHES
TfGM,Transport,Heavy Rail Support Services,26/04/2013,5100050827,"5,155.00",STEER DAVIES GLEEVE LTD
TfGM,Corporate Services,Planning Support Services,26/04/2013,5100050918,"9,455.81",STEER DAVIES GLEEVE LTD
TfGM,Transport,Capital Costs - Capital Project Main Contract Works,26/04/2013,5100051076,"335,533.00",THALES TRANSPORT & SECURITY LTD
TfGM,Corporate Services,Subscriptions,26/04/2013,5100050865,"7,801.00",THOMSON REUTERS (LEGAL) LTD
TfGM,Transport,"Rent, Rates & Service Charges",26/04/2013,1900027107,"5,174.40",TRAFFORD MBC
TfGM,Transport,Capital Costs - Passenger Shelters,26/04/2013,5100050131,"15,550.00",TRUEFORM ENGINEERING LTD
TfGM,Transport,Capital Costs - Passenger Shelters,26/04/2013,5100050870,"48,965.64",TRUEFORM ENGINEERING LTD
TfGM,Transport,Exhibitions and Conferences,26/04/2013,5100050813,"1,000.00",Trust Reservations Ltd
TfGM,Transport,CCTV Support Services,26/04/2013,5100050738,"6,039.25",TYCO INTEGRATED SYSTEMS
TfGM,Transport,CCTV Support Services,26/04/2013,5100050912,"9,227.00",TYCO INTEGRATED SYSTEMS
TfGM,Transport,CCTV Support Services,26/04/2013,5100050914,"9,227.00",TYCO INTEGRATED SYSTEMS
TfGM,Transport,Utilities & Energy,26/04/2013,1900027201,"5,544.65",UNITED UTILITIES WATER PLC
TfGM,Transport,Utilities & Energy,26/04/2013,1900027209,"1,212.04",UNITED UTILITIES WATER PLC
TfGM,Transport,Capital Costs - QBC Support Services,26/04/2013,5100050816,510.00,URBAN VISION PARTNERSHIP LTD
TfGM,Corporate Services,IS Consumables,26/04/2013,5100050974,"6,588.00",VIGLEN
TfGM,Corporate Services,IS Consumables,26/04/2013,5100050980,"9,150.00",VIGLEN
TfGM,Corporate Services,IS Consumables,26/04/2013,5100050994,"8,052.00",VIGLEN
TfGM,Transport,Concessionary Reimbursement,26/04/2013,1900027197,550.00,W FALLON
TfGM,Transport,Vehicle Repairs & Maintenance,26/04/2013,5100051003,"2,501.49",Walton Summit Truck Centre
TfGM,Transport,Property & Equipment Maintenance,30/04/2013,5100051101,"6,565.79",AMARI PLASTICS PLC
TfGM,Corporate Services,Procurement Services,30/04/2013,5100050979,"9,782.50",ATKINS LTD
TfGM,Transport,Capital Costs - Engineering Support Services,30/04/2013,5100051122,665.00,ATKINS LTD
TfGM,Transport,Capital Costs - Smart Ticketing,30/04/2013,5100050878,"87,500.00",ATOS IT SERVICES UK LTD
TfGM,Transport,Property & Equipment Maintenance,30/04/2013,5100050873,669.48,BOLTON METROPOLITAN BOROUGH COUNCIL
TfGM,Transport,Capital Costs - LRT Vehicles,30/04/2013,5100050713,"468,474.69",BOMBARDIER TRANSPORTATION UK LTD
TfGM,Transport,Capital Costs - LRT Vehicles,30/04/2013,5100050869,"546,679.86",BOMBARDIER TRANSPORTATION UK LTD
TfGM,Transport,Capital Costs - Project Management Services,30/04/2013,5100050882,935.34,BT ENGAGE IT
TfGM,Transport,Capital Costs - Computer & Communications Equipment,30/04/2013,5100051053,"1,324.90",BT ENGAGE IT
TfGM,Transport,Driver Intervention Course Delivery Costs,30/04/2013,5100050871,"6,000.00",BURY MBC
TfGM,Transport,Capital Costs -  Project Support Services,30/04/2013,5100050646,"1,096.00",CDI ANDERSELITE LTD
TfGM,Transport,Capital Costs - Utility & Service Diversion Costs,30/04/2013,5100051099,"14,940.65",ELECTRICITY NORTH WEST EHV
TfGM,Transport,Paper and Printing Consumables,30/04/2013,5100050812,"20,122.86",ESP SYSTEX LTD
TfGM,Transport,Maintenance,30/04/2013,5100050351,"2,139.00",G & J SEDDON
TfGM,Transport,Maintenance,30/04/2013,5100050353,"29,070.50",G & J SEDDON
TfGM,Transport,Capital Costs - Environmental & Ecological Support Services,30/04/2013,5100051049,"97,405.00",GROUND CONTROL LTD
TfGM,Corporate Services,Computer Support and Licences,30/04/2013,5100050761,862.75,JJD LTD
TfGM,Transport,Metrolink Operating Costs,30/04/2013,1700017102,"(233,423.00)",METROLINK RATP DEV LTD
TfGM,Transport,Metrolink Operating Costs,30/04/2013,5100050639,"16,320.00",METROLINK RATP DEV LTD
TfGM,Transport,Metrolink Operating Costs,30/04/2013,5100050650,"619,905.71",METROLINK RATP DEV LTD
TfGM,Transport,Metrolink Operating Costs,30/04/2013,5100050830,"1,238,453.00",METROLINK RATP DEV LTD
TfGM,Transport,Metrolink Operating Costs,30/04/2013,5100050831,"290,727.00",METROLINK RATP DEV LTD
TfGM,Transport,Metrolink Operating Costs,30/04/2013,5100050833,"290,727.00",METROLINK RATP DEV LTD
TfGM,Transport,Metrolink Operating Costs,30/04/2013,5100051058,"6,605.17",METROLINK RATP DEV LTD
TfGM,Transport,Capital Costs - Tools & Equipment,30/04/2013,5100051060,"7,478.26",METROLINK RATP DEV LTD
TfGM,Transport,Capital Costs - Capital Project Main Contract Works,30/04/2013,5100051061,"34,467.07",METROLINK RATP DEV LTD
TfGM,Transport,Metrolink Operating Costs,30/04/2013,5100051130,"1,238,453.00",METROLINK RATP DEV LTD
TfGM,Transport,Capital Costs - Programme and Project Management Services,30/04/2013,5100051127,"1,560.00",MORSON INTERNATIONAL
TfGM,Corporate Services,Legal Services,30/04/2013,5100050983,"20,948.91",MOTT MACDONALD LTD
TfGM,Transport,Capital Costs - Capital Project Main Contract Works,30/04/2013,5100051117,"8,112.11",NETWORK RAIL
TfGM,Transport,Capital Costs - CCTV Support Services,30/04/2013,5100050825,"21,409.10",NORTH MIDLAND CONSTRUCTION PLC
TfGM,Transport,Capital Costs - CCTV Support Services,30/04/2013,5100050826,"20,144.44",NORTH MIDLAND CONSTRUCTION PLC
TfGM,Transport,Vehicle Repairs & Maintenance,30/04/2013,5100050363,"4,785.00",OPTARE LTD
TfGM,Transport,Vehicle Repairs & Maintenance,30/04/2013,5100050364,"1,749.99",OPTARE LTD
TfGM,Transport,Vehicle Repairs & Maintenance,30/04/2013,5100050365,"6,435.00",OPTARE LTD
TfGM,Transport,Professional Services,30/04/2013,5100050843,"22,554.28",PARSONS BRINCKERHOFF LTD
TfGM,Transport,Capital Costs - Programme and Project Management Services,30/04/2013,5100050844,"16,608.20",PARSONS BRINCKERHOFF LTD
TfGM,Transport,Capital Costs - Programme and Project Management Services,30/04/2013,5100051037,"12,812.00",PARSONS BRINCKERHOFF LTD
TfGM,Transport,Capital Costs - Programme and Project Management Services,30/04/2013,5100051038,"23,061.60",PARSONS BRINCKERHOFF LTD
TfGM,Transport,Capital Costs - Programme and Project Management Services,30/04/2013,5100051039,"6,406.00",PARSONS BRINCKERHOFF LTD
TfGM,Transport,Capital Costs - Programme and Project Management Services,30/04/2013,5100051040,"9,279.84",PARSONS BRINCKERHOFF LTD
TfGM,Corporate Services,Capital Costs - Programme and Project Management Services,30/04/2013,5100051041,"15,777.79",PARSONS BRINCKERHOFF LTD
TfGM,Transport,Capital Costs - Programme and Project Management Services,30/04/2013,5100051043,"9,181.98",PARSONS BRINCKERHOFF LTD
TfGM,Transport,Capital Costs - Programme and Project Management Services,30/04/2013,5100051044,"105,734.72",PARSONS BRINCKERHOFF LTD
TfGM,Transport,Capital Costs - Programme and Project Management Services,30/04/2013,5100051045,"132,497.78",PARSONS BRINCKERHOFF LTD
TfGM,Transport,Capital Costs - Programme and Project Management Services,30/04/2013,5100051068,"578,825.33",PARSONS BRINCKERHOFF LTD
TfGM,Transport,Temporary Vacancy Cover,30/04/2013,5100050764,453.12,PLUSWORK LTD
TfGM,Transport,Capital Costs - Programme and Project Management Services,30/04/2013,5100050955,"2,000.00",PRACTICUS LIMITED
TfGM,Transport,Driver Intervention Course Delivery Costs,30/04/2013,5100051131,"7,715.00",PROFESSIONAL DRIVER SERVICES LTD
TfGM,Transport,Property & Equipment Maintenance,30/04/2013,5100050881,"3,672.28",QUEENSBURY SHELTERS LIMITED
TfGM,Transport,Capital Costs - Land Acquisition and Related Costs,30/04/2013,1900027236,"205,000.00",SALVATION ARMY TRADING CO LTD
TfGM,Transport,Capital Costs - Print & Media,30/04/2013,5100051123,"3,194.79",SERVICEPOINT UK
TfGM,Transport,Traffic and Transportation Surveys,30/04/2013,5100051072,"1,490.00",SKY HIGH PLC
TfGM,Transport,Property & Equipment Maintenance,30/04/2013,5100050940,"1,856.98",TRAFFORD MBC
TfGM,Transport,Vehicle Costs,01/05/2013,1200024585,"1,275.26",ALLSTAR
TfGM,Transport,Capital Costs - Land Acquisition and Related Costs,02/05/2013,1900027256,"220,600.49",KUIT STEINART LEVY LLP
TfGM,Transport,Supported Bus Services,02/05/2013,1900027253,"8,000.00",STOTTS TOURS
TfGM,Transport,Engineering Support Services,03/05/2013,5100051188,"4,745.00",AECOM LTD
TfGM,Transport,Research Services,03/05/2013,5100051228,"22,500.00",AECOM LTD
TfGM,Transport,Driver Intervention Course Delivery Costs,03/05/2013,1900027304,"1,628.84",AIM TO PASS SCHOOL OF MOTORING
TfGM,Transport,Driver Intervention Course Delivery Costs,03/05/2013,1900027307,"1,312.80",ALDENE WOODWARD
TfGM,Transport,Capital Costs - Equipment Installation,03/05/2013,5100051324,520.00,APOLLO ENERGY LTD
TfGM,Transport,Capital Costs - Utility & Service Diversion Costs,03/05/2013,5100051326,"1,890.00",APOLLO ENERGY LTD
TfGM,Transport,Capital Costs - Equipment Installation,03/05/2013,5100051328,520.00,APOLLO ENERGY LTD
TfGM,Transport,Capital Costs - Programme and Project Management Services,03/05/2013,5100051220,"12,600.00",ATKINS LTD
TfGM,Transport,Capital Costs - Health & Safety Support Services,03/05/2013,5100051282,515.00,ATKINS LTD
TfGM,Transport,Capital Costs - Architectural Services,03/05/2013,5100051316,942.45,ATKINS LTD
TfGM,Transport,Bus Support Services,03/05/2013,5100051317,"4,675.00",ATKINS LTD
TfGM,Transport,Driver Intervention Course Delivery Costs,03/05/2013,1900027272,"2,029.96",AVRILS DRIVING SCHOOL
TfGM,Transport,Driver Intervention Course Delivery Costs,03/05/2013,1900027284,607.75,BERNARD LONERGAN
TfGM,Transport,Capital Costs - Capital Project Main Contract Works,03/05/2013,5100050880,"99,237.86",BIRSE CIVILS LTD
TfGM,Transport,Property & Equipment Maintenance,03/05/2013,5100051168,"7,587.44",BOLTON METROPOLITAN BOROUGH COUNCIL
TfGM,Transport,Capital Costs - Design Support Services,03/05/2013,5100051339,"1,000.00",BOLTON METROPOLITAN BOROUGH COUNCIL
TfGM,Transport,Capital Costs - Community Transport Support Services,03/05/2013,5100051258,"2,132.85",BREAKTHROUGH UK LTD
TfGM,Transport,Driver Intervention Course Delivery Costs,03/05/2013,1900027266,"1,944.88",BRECK SCHOOL OF MOTORING
TfGM,Corporate Services,IS Support Services,03/05/2013,5100051145,"3,200.00",BT ENGAGE IT
TfGM,Transport,Capital Costs - Computer & Communications Equipment,03/05/2013,5100051311,551.30,BT ENGAGE IT
TfGM,Transport,Capital Costs - Project Management Services,03/05/2013,5100051312,900.00,BT ENGAGE IT
TfGM,Transport,Driver Intervention Course Delivery Costs,03/05/2013,1900027285,656.40,C MACCORMACK
TfGM,Transport,Concessionary Reimbursement,03/05/2013,1900027349,"5,269.00",CALL A CAR
TfGM,Transport,Concessionary Reimbursement,03/05/2013,1900027350,610.00,CALL A CAR
TfGM,Transport,Concessionary Reimbursement,03/05/2013,1900027341,957.00,CALL A CAR PRIVATE HIRE LTD
TfGM,Transport,"Rent, Rates & Service Charges",03/05/2013,1900027310,737.00,CARILLION SERVICES SOLUTIONS (OPG S
TfGM,Transport,Concessionary Reimbursement,03/05/2013,1900027360,573.00,CASTLEROYLE PRIVATE HIRE
TfGM,Transport,Capital Costs -  Project Support Services,03/05/2013,5100050835,"1,370.00",CDI ANDERSELITE LTD
TfGM,Transport,Capital Costs -  Project Support Services,03/05/2013,5100051162,"1,370.00",CDI ANDERSELITE LTD
TfGM,Transport,Driver Intervention Course Delivery Costs,03/05/2013,1900027309,"2,175.83",CENTURION DRIVER TRAINING
TfGM,Transport,Print & Media,03/05/2013,5100051185,"1,675.50",CHAPEL PRESS LTD
TfGM,Transport,Supported Bus Services,03/05/2013,5100050680,"32,247.82",CHESHIRE EAST BOROUGH COUNCIL
TfGM,Transport,Subscriptions,03/05/2013,1900027237,"15,000.00",CITYCO
TfGM,Corporate Services,Procurement Services,03/05/2013,5100051148,"15,855.00",CNC PERFORMANCE LTD
TfGM,Transport,Capital Costs - Environmental Feasibility Support,03/05/2013,5100050736,"9,527.80",CONTRACT ECOLOGY LTD
TfGM,Transport,Driver Intervention Course Delivery Costs,03/05/2013,1900027270,"1,859.80",COWLEY DRIVING SCHOOL
TfGM,Transport,Driver Intervention Course Delivery Costs,03/05/2013,5100051303,"2,759.28",CPC TRAINING PROVIDER LTD
TfGM,Transport,Concessionary Reimbursement,03/05/2013,1900027348,"1,066.00",CRESTA CAR HIRE
TfGM,Transport,Driver Intervention Course Delivery Costs,03/05/2013,1900027271,"2,236.60",CRUISE DRIVER TRAINING
TfGM,Transport,Driver Intervention Course Delivery Costs,03/05/2013,1900027274,"1,166.88",D ELLIS
TfGM,Transport,Driver Intervention Course Delivery Costs,03/05/2013,1900027306,"1,944.85",D WALSH
TfGM,Transport,Driver Intervention Course Delivery Costs,03/05/2013,1900027305,547.00,DAVID WALKER DRIVER TRAINING
TfGM,Transport,Driver Intervention Course Delivery Costs,03/05/2013,1900027294,"2,321.67",DRIVER ACADEMY
TfGM,Transport,Driver Intervention Course Delivery Costs,03/05/2013,1900027268,935.96,DRIVERSKILLS
TfGM,Transport,Driver Intervention Course Delivery Costs,03/05/2013,1900027308,"2,564.79",DS WILLIAMS LTD
TfGM,Transport,Driver Intervention Course Delivery Costs,03/05/2013,1900027295,"2,686.36",DSM SCHOOL OF MOTORING
TfGM,Transport,Project Management Services,03/05/2013,5100051138,"1,250.00",E KELLY
TfGM,Transport,Capital Costs - Utility & Service Diversion Costs,03/05/2013,5100051206,"15,386.93",ELECTRICITY NORTH WEST EHV
TfGM,Transport,Driver Intervention Course Delivery Costs,03/05/2013,5100051291,"2,100.00",ENTERPRISE SOLUTIONS (NW) LTD
TfGM,Transport,Vehicle Repairs & Maintenance,03/05/2013,5100051340,668.94,ENZA MOTORS
TfGM,Transport,Driver Intervention Course Delivery Costs,03/05/2013,1900027267,"2,491.86",G CLIFFE
TfGM,Transport,Driver Intervention Course Delivery Costs,03/05/2013,1900027298,765.80,G ROBINSON
TfGM,Transport,Driver Intervention Course Delivery Costs,03/05/2013,5100051167,"1,094.00",G WHITWORTH
TfGM,Transport,Driver Intervention Course Delivery Costs,03/05/2013,1900027263,"1,811.15",GARY CAMPBELL LTD
TfGM,Transport,Capital Costs - Engineering Support Services,03/05/2013,5100051163,"9,334.38",GUTTERIDGE HASKINS AND DAVEY LTD
TfGM,Transport,Capital Costs - Health & Safety Support Services,03/05/2013,5100051156,"4,789.17",HALCROW GROUP LTD
TfGM,Transport,Capital Costs - Programme and Project Management Services,03/05/2013,1900027257,"12,520.48",HAYS SPECIALIST RECRUITMENT LTD
TfGM,Corporate Services,Print & Media,03/05/2013,5100051209,"8,260.00",HEMISPHERE DESIGN & MRKTNG
TfGM,Transport,Driver Intervention Course Delivery Costs,03/05/2013,1900027281,"2,698.51",HOGHTON DRIVING SCHOOL
TfGM,Transport,Driver Intervention Course Delivery Costs,03/05/2013,5100051263,"2,333.33",HOLIDAY INN MANCHESTER EAST
TfGM,Transport,Driver Intervention Course Delivery Costs,03/05/2013,1900027273,"2,552.64",I DUFF
TfGM,Corporate Services,Training,03/05/2013,5100051143,"20,881.00",IAN ROWE ASSOCIATES LTD
TfGM,Corporate Services,Project Management Services,03/05/2013,5100051245,"2,000.00",INCITE SOLUTIONS LTD
TfGM,Transport,Driver Intervention Course Delivery Costs,03/05/2013,1900027279,960.28,INSIGHT 2 DRIVE
TfGM,Transport,Capital Costs - Smart Ticketing,03/05/2013,5100051157,"1,686.00",ITSO LTD
TfGM,Transport,Driver Intervention Course Delivery Costs,03/05/2013,1900027258,"2,175.84",J AIREY
TfGM,Corporate Services,Procurement Services,03/05/2013,5100051150,"10,500.00",J BENSON ASSOCIATES LTD
TfGM,Transport,Driver Intervention Course Delivery Costs,03/05/2013,1900027288,"2,649.87",J MCGREAL
TfGM,Transport,Driver Intervention Course Delivery Costs,03/05/2013,1900027296,632.08,J RIGGS
TfGM,Transport,Capital Costs - Infrastructure Support Services,03/05/2013,5100050660,"7,150.00",JACOBS UK LTD
TfGM,Corporate Services,Procurement Services,03/05/2013,5100051248,"7,800.00",JETFIRE ASSOCIATES LIMITED
TfGM,Transport,Capital Costs - Programme and Project Management Services,03/05/2013,5100051287,"8,550.00",JSLM PROGRAMME SERVICES LTD
TfGM,Transport,Driver Intervention Course Delivery Costs,03/05/2013,5100051140,765.56,KAROL EKERT
TfGM,Transport,Capital Costs - Capital Project Main Contract Works,03/05/2013,5100051314,"152,197.98",LAING O'ROURKE CONSTRUCTION LTD
TfGM,Transport,Property & Equipment Maintenance,03/05/2013,5100050982,823.04,LAMBERT SMITH HAMPTON
TfGM,Transport,Vehicle Costs,03/05/2013,5100050243,"10,525.00",Lloyd Morgan Group
TfGM,Transport,Vehicle Costs,03/05/2013,5100051229,"5,880.00",Lloyd Morgan Group
TfGM,Transport,Driver Intervention Course Delivery Costs,03/05/2013,1900027262,"1,179.08",M BRENNAN
TfGM,Transport,Concessionary Reimbursement,03/05/2013,1900027328,"1,004.00",MAGNUM WHITELINE PRIVATE HIRE
TfGM,Transport,Concessionary Reimbursement,03/05/2013,1900027353,"1,598.00",MAGNUM WHITELINE PRIVATE HIRE
TfGM,Transport,Property & Equipment Maintenance,03/05/2013,5100051265,832.50,Maintenance Supplies Ltd
TfGM,Transport,Property & Equipment Maintenance,03/05/2013,5100051296,832.50,Maintenance Supplies Ltd
TfGM,Transport,"Rent, Rates & Service Charges",03/05/2013,5100050717,"13,321.50",MANCHESTER AIRPORT PLC
TfGM,Transport,Property & Equipment Maintenance,03/05/2013,5100050885,"2,872.00",MANCHESTER CITY COUNCIL
TfGM,Transport,Concessionary Reimbursement,03/05/2013,1900027340,"1,416.00",MANTAX RADIO TAXIS LTD
TfGM,Transport,Security Services,03/05/2013,5100051174,482.85,MARPOL SECURITY LIMITED
TfGM,Transport,Capital Costs - Programme and Project Management Services,03/05/2013,5100051238,"2,750.00",MARTIN LAWTON LIMITED
TfGM,Transport,Capital Costs - Programme and Project Management Services,03/05/2013,5100051239,"7,425.00",MARTIN LAWTON LIMITED
TfGM,Transport,Street Furniture Equipment,03/05/2013,5100051152,"10,495.00",METFAST LTD
TfGM,Transport,Concessionary Reimbursement,03/05/2013,1900027358,884.00,METRO CARS BOLTON
TfGM,Transport,Metrolink Operating Costs,03/05/2013,5100051129,"16,961.00",METROLINK RATP DEV LTD
TfGM,Transport,Driver Intervention Course Delivery Costs,03/05/2013,1900027261,"2,321.68",MICHAEL BOLTON DRIVER TRAINING
TfGM,Transport,Driver Intervention Course Delivery Costs,03/05/2013,1900027291,607.75,MORRIS SCHOOL OF MOTORING
TfGM,Transport,Capital Costs - Programme and Project Management Services,03/05/2013,5100050963,"1,352.00",MORSON INTERNATIONAL
TfGM,Transport,Capital Costs - Programme and Project Management Services,03/05/2013,5100051186,"3,000.00",MOTT MACDONALD LTD
TfGM,Transport,Transport Planning & Monitoring Services,03/05/2013,5100051094,"9,100.40",MVA LTD
TfGM,Transport,Traffic and Transportation Surveys,03/05/2013,5100051225,"8,000.00",NATIONWIDE DATA COLLECTION LTD
TfGM,Transport,Capital Costs - Engineering Support Services,03/05/2013,5100051165,"1,875.00",NEIL CLARKE LTD
TfGM,Transport,Vehicle Repairs & Maintenance,03/05/2013,5100050551,"18,666.58",OPTARE LTD
TfGM,Transport,Driver Intervention Course Delivery Costs,03/05/2013,1900027265,"2,316.28",P CLARKE
TfGM,Transport,Driver Intervention Course Delivery Costs,03/05/2013,1900027301,"1,750.40",P STANDRING
TfGM,Transport,Capital Costs - Legal Services,03/05/2013,5100050455,"11,442.20",PANNONE AND PARTNERS
TfGM,Transport,Capital Costs - Legal Services,03/05/2013,5100051132,"5,943.00",PANNONE AND PARTNERS
TfGM,Transport,Paper and Printing Consumables,03/05/2013,5100051315,720.00,PAPERGRAPHICS LTD
TfGM,Transport,Driver Intervention Course Delivery Costs,03/05/2013,1900027300,"3,136.12",PAS DRIVING
TfGM,Transport,Driver Intervention Course Delivery Costs,03/05/2013,1900027278,765.80,PETER HARGREAVES SCHOOL OF MOTORING
TfGM,Transport,Driver Intervention Course Delivery Costs,03/05/2013,5100051329,"1,920.55",PETERS DRIVING SCHOOL
TfGM,Transport,Concessionary Reimbursement,03/05/2013,1900027354,724.00,PHONE A CAB LTD
TfGM,Corporate Services,IS Consumables,03/05/2013,5100051207,725.00,POINTER LTD
TfGM,Transport,Capital Costs - Programme and Project Management Services,03/05/2013,5100051092,"2,500.00",PRACTICUS LIMITED
TfGM,Transport,Driver Intervention Course Delivery Costs,03/05/2013,1900027277,"2,370.28",R GREENOUGH
TfGM,Transport,Driver Intervention Course Delivery Costs,03/05/2013,1900027280,"2,795.75",R HILL
TfGM,Transport,Driver Intervention Course Delivery Costs,03/05/2013,5100051224,"1,616.68",R J MOTT
TfGM,Transport,Driver Intervention Course Delivery Costs,03/05/2013,5100051247,"1,810.95",R LORD
TfGM,Transport,Concessionary Reimbursement,03/05/2013,1900027344,925.00,RAINBOW TAXIS
TfGM,Transport,Distribution Support Services,03/05/2013,5100051274,"2,340.00",RCD
TfGM,Corporate Services,Computer Support and Licences,03/05/2013,5100051298,"2,920.00",REAL TIME INFORMATION GROUP
TfGM,Transport,Print & Media,03/05/2013,5100051292,"1,400.73",RICOH UK LTD
TfGM,Transport,Subscriptions,03/05/2013,5100051098,"3,402.79",ROCHDALE TOWN CENTRE MANAGEMENT CO
TfGM,Transport,Capital Costs - Health & Safety Support Services,03/05/2013,5100051142,"1,125.00",S J FIRTH
TfGM,Transport,Driver Intervention Course Delivery Costs,03/05/2013,1900027264,"1,179.07",S M CHARLSON
TfGM,Transport,Property & Equipment Maintenance,03/05/2013,5100051320,"4,579.50",SERCO LTD
TfGM,Transport,Driver Intervention Course Delivery Costs,03/05/2013,1900027293,935.96,SHELLIS SCHOOL OF MOTORING
TfGM,Transport,Driver Intervention Course Delivery Costs,03/05/2013,1900027275,607.75,SMJ SCHOOL OF MOTORING
TfGM,Transport,Supported Bus Services,03/05/2013,5100051210,"1,100.00",SO COACHES
TfGM,Transport,Supported Bus Services,03/05/2013,5100051213,600.00,SO COACHES
TfGM,Transport,Supported Bus Services,03/05/2013,5100051294,900.00,SO COACHES
TfGM,Transport,Driver Intervention Course Delivery Costs,03/05/2013,1900027283,"2,905.15",STEVEN LLOYD APPROVED SCHOOL OF MOT
TfGM,Transport,Property & Equipment Maintenance,03/05/2013,5100051177,"1,143.76",STOCKPORT MBC
TfGM,Transport,Property & Equipment Maintenance,03/05/2013,5100051158,753.40,SYSTEM VISION LTD
TfGM,Transport,Driver Intervention Course Delivery Costs,03/05/2013,1900027297,"1,312.80",T RIMMER
TfGM,Corporate Services,IS Software & Maintenance,03/05/2013,5100050523,716.25,THE PHONE CO OP LTD
TfGM,Corporate Services,Computer Support and Licences,03/05/2013,5100049811,"(3,632.85)",TRL LTD
TfGM,Transport,Computer Support and Licences,03/05/2013,5100049996,"2,421.90",TRL LTD
TfGM,Corporate Services,Computer Support and Licences,03/05/2013,5100051155,"1,602.50",TRL LTD
TfGM,Transport,Cleaning,03/05/2013,5100050892,587.31,TUDOR CONTRACT CLEANERS LTD
TfGM,Transport,Driver Intervention Course Delivery Costs,03/05/2013,1900027276,"2,370.31",VINCENT'S DRIVING SCHOOL
TfGM,Transport,Property & Equipment Maintenance,03/05/2013,5100051149,"1,631.67",VIX ACIS LTD
TfGM,Corporate Services,IS Consumables,03/05/2013,5100051151,"2,117.00",VIX ACIS LTD
TfGM,Transport,Supported Bus Services,03/05/2013,5100051349,"4,457.70",WARRINGTON BOROUGH COUNCIL
TfGM,Transport,Supported Bus Services,03/05/2013,5100050390,"5,437.00",WEST YORKSHIRE PTE
TfGM,Transport,Vehicle Costs,08/05/2013,1200024709,"1,047.91",ALLSTAR
TfGM,Transport,Traffic and Transportation Surveys,08/05/2013,5100051204,"2,018.64",PLUSWORK LTD
TfGM,Transport,Temporary Vacancy Cover,08/05/2013,5100051283,566.40,PLUSWORK LTD
TfGM,Transport,Temporary Vacancy Cover,08/05/2013,5100051284,608.46,PLUSWORK LTD
TfGM,Transport,Traffic and Transportation Surveys,08/05/2013,5100051286,918.52,PLUSWORK LTD
TfGM,Transport,Maintenance,10/05/2013,5100050662,"9,032.72",A E YATES LTD
TfGM,Corporate Services,Capital Costs - IS Support Services,10/05/2013,5100051336,"2,800.00",ACTIA UK LTD
TfGM,Transport,Vehicle Costs,10/05/2013,5100051381,500.00,ACTIA UK LTD
TfGM,Transport,Capital Costs - Light Rail Support Services,10/05/2013,5100051154,"10,200.00",AD2 LTD
TfGM,Transport,Engineering Support Services,10/05/2013,5100050718,"19,335.00",AECOM LTD
TfGM,Transport,Capital Costs - Transport Planning & Monitoring Services,10/05/2013,5100051547,"3,786.72",AECOM LTD
TfGM,Transport,Print & Media,10/05/2013,5100051375,"3,532.00",ALPHA MEDIA SOLUTIONS
TfGM,Corporate Services,Smart Ticketing,10/05/2013,5100051537,"6,300.00",AMSACOM LIMITED
TfGM,Transport,Capital Costs - Project Management,10/05/2013,5100051330,"10,000.00",ATKINS LTD
TfGM,Transport,Capital Costs - Engineering Support Services,10/05/2013,5100051351,"12,635.00",ATKINS LTD
TfGM,Transport,Capital Costs - Safety & Security Support Services,10/05/2013,5100051502,"18,228.56",ATKINS LTD
TfGM,Corporate Services,Computer Support and Licences,10/05/2013,5100051528,500.00,ATKINS LTD
TfGM,Transport,Financial and Contract Management Services,10/05/2013,5100051160,"7,368.40",AUTUS LTD
TfGM,Transport,Print & Media,10/05/2013,5100051386,470.00,BLUETREE DESIGN AND PRINT LTD
TfGM,Transport,Driver Intervention Course Delivery Costs,10/05/2013,5100051389,"2,059.20",BOLTON WHITES HOTEL LTD
TfGM,Transport,Other Operational Costs,10/05/2013,5100051420,915.70,BRAKE BROS LTD
TfGM,Transport,Other Operational Costs,10/05/2013,5100051483,"1,742.18",BRAKE BROS LTD
TfGM,Transport,Capital Costs - Community Transport Support Services,10/05/2013,5100051523,524.01,BREAKTHROUGH UK LTD
TfGM,Transport,Capital Costs - Community Transport Support Services,10/05/2013,5100051526,951.00,BREAKTHROUGH UK LTD
TfGM,Transport,Capital Costs - Computer & Communications Equipment,10/05/2013,5100051534,"12,106.17",BT ENGAGE IT
TfGM,Transport,Property & Equipment Maintenance,10/05/2013,5100051536,"5,390.00",BURY MBC
TfGM,Transport,Driver Intervention Course Delivery Costs,10/05/2013,5100051592,"1,252.00",C JEFFREY
TfGM,Transport,Insurance,10/05/2013,1900027409,611.49,CARILLION SERVICES SOLUTIONS (OPG S
TfGM,Transport,Security Services,10/05/2013,5100051359,"7,035.38",CARLISLE SECURITY SERVICES LTD
TfGM,Transport,Print & Media,10/05/2013,5100051524,"1,076.40",CHAPEL PRESS LTD
TfGM,Transport,Print & Media,10/05/2013,5100051525,"1,689.00",CHAPEL PRESS LTD
TfGM,Transport,Print & Media,10/05/2013,5100051527,"1,613.00",CHAPEL PRESS LTD
TfGM,Transport,Capital Costs - Capital Project Main Contract Works,10/05/2013,5100051342,"4,541.70",CHARGE YOUR CAR LTD
TfGM,Transport,Capital Costs - Capital Project Main Contract Works,10/05/2013,5100051343,"5,721.20",CHARGE YOUR CAR LTD
TfGM,Transport,Capital Costs - Capital Project Main Contract Works,10/05/2013,5100051344,"2,920.00",CHARGE YOUR CAR LTD
TfGM,Transport,Capital Costs - Capital Project Main Contract Works,10/05/2013,5100051345,"5,870.00",CHARGE YOUR CAR LTD
TfGM,Transport,Capital Costs - Capital Project Main Contract Works,10/05/2013,5100051346,"5,870.00",CHARGE YOUR CAR LTD
TfGM,Transport,Capital Costs - Capital Project Main Contract Works,10/05/2013,5100051347,"4,993.40",CHARGE YOUR CAR LTD
TfGM,Transport,Capital Costs - Capital Project Main Contract Works,10/05/2013,5100051348,"5,525.00",CHARGE YOUR CAR LTD
TfGM,Transport,Capital Costs - Capital Project Main Contract Works,10/05/2013,5100051350,"5,685.00",CHARGE YOUR CAR LTD
TfGM,Corporate Services,Employee Reimbursed Costs,10/05/2013,5100051569,"6,418.58",CHILDCARE VOUCHERS LTD
TfGM,Transport,Maintenance,10/05/2013,5100051144,"15,457.73",CLEARVIEW TRAFFIC GROUP LTD
TfGM,Transport,Maintenance,10/05/2013,5100051153,"38,559.74",CLEARVIEW TRAFFIC GROUP LTD
TfGM,Corporate Services,IS Software & Maintenance,10/05/2013,5100050900,"2,623.51",CONDECO LTD
TfGM,Transport,Capital Costs - Project Management Services,10/05/2013,5100051511,"3,817.50",CORDINGLEYS
TfGM,Transport,Traffic and Transportation Surveys,10/05/2013,5100051400,"3,215.00",CTS TRAFFIC & TRANSPORTATION
TfGM,Transport,Capital Costs - Quantity Surveying Services,10/05/2013,5100050107,"4,000.00",DAVIS LANGDON
TfGM,Transport,Driver Intervention Course Delivery Costs,10/05/2013,5100051584,936.00,DRAGON DRIVING
TfGM,Transport,Driver Intervention Course Delivery Costs,10/05/2013,5100051585,984.60,DRAGON DRIVING
TfGM,Transport,Subscriptions,10/05/2013,5100051391,565.00,E KELLY
TfGM,Transport,Capital Costs - Telecommunications,10/05/2013,5100051521,"55,614.00",EASYNET GLOBAL SERVICES
TfGM,Corporate Services,Programme Management,10/05/2013,5100051416,"4,800.00",EDGERTON MANAGEMENT SERVICES LTD
TfGM,Corporate Services,Programme Management,10/05/2013,5100051417,"4,800.00",EDGERTON MANAGEMENT SERVICES LTD
TfGM,Corporate Services,Programme Management,10/05/2013,5100051421,"4,800.00",EDGERTON MANAGEMENT SERVICES LTD
TfGM,Transport,Programme Management,10/05/2013,5100051482,"4,800.00",EDGERTON MANAGEMENT SERVICES LTD
TfGM,Transport,Capital Costs - Utility & Service Diversion Costs,10/05/2013,5100051361,"4,491.87",ELECTRICITY NORTH WEST EHV
TfGM,Transport,Capital Costs - Utility & Service Diversion Costs,10/05/2013,5100051362,"3,387.96",ELECTRICITY NORTH WEST EHV
TfGM,Transport,Capital Costs - Utility & Service Diversion Costs,10/05/2013,5100051363,973.56,ELECTRICITY NORTH WEST EHV
TfGM,Transport,Capital Costs - Utility & Service Diversion Costs,10/05/2013,5100051367,"16,236.00",ELECTRICITY NORTH WEST EHV
TfGM,Transport,Utilities & Energy,10/05/2013,5100051393,"2,854.00",ENTERPRISE LIGHTING SERVICES LTD
TfGM,Transport,Vehicle Repairs & Maintenance,10/05/2013,5100051388,"1,314.09",ENZA MOTORS
TfGM,Transport,Postage Costs,10/05/2013,1200024709,"3,514.40",FP TELESET
TfGM,Transport,Capital Costs - Engineering Support Services,10/05/2013,5100051365,"2,700.00",FREMONT LTD
TfGM,Transport,Capital Costs - Engineering Support Services,10/05/2013,5100051544,"1,200.00",FREMONT LTD
TfGM,Transport,Property & Equipment Maintenance,10/05/2013,5100051462,"29,609.24",G & J SEDDON
TfGM,Transport,Driver Intervention Course Delivery Costs,10/05/2013,5100051496,"1,944.88",G WEBSTER
TfGM,Transport,Property & Equipment Maintenance,10/05/2013,5100051384,"6,696.55",GILBEY ELECTRICAL WHOLESALERS LTD
TfGM,Transport,Capital Costs - Transport Planning & Monitoring Services,10/05/2013,5100051004,"2,420.00",GREATER MANCHESTER COMBINED AUTHORI
TfGM,Transport,Training,10/05/2013,5100051223,"4,500.00",GREENGAGE LIMITED
TfGM,Transport,Street Furniture Equipment,10/05/2013,5100051464,"6,902.00",HALSALL SIGNS LTD
TfGM,Transport,Driver Intervention Course Delivery Costs,10/05/2013,5100051518,"3,840.00",HOLIDAY INN EXPRESS
TfGM,Transport,Driver Intervention Course Delivery Costs,10/05/2013,5100051505,"1,575.00",HOLIDAY INN MANCHESTER CENTRAL PARK
TfGM,Transport,Capital Costs - Environmental & Ecological Support Services,10/05/2013,5100051445,"3,371.37",HYDER LTD
TfGM,Transport,Capital Costs - Environmental Feasibility Support,10/05/2013,5100051447,"1,520.55",HYDER LTD
TfGM,Transport,Capital Costs - Environmental Feasibility Support,10/05/2013,5100051449,422.95,HYDER LTD
TfGM,Transport,Capital Costs - Environmental Feasibility Support,10/05/2013,5100051450,"1,509.37",HYDER LTD
TfGM,Corporate Services,Project Management Services,10/05/2013,5100051545,"2,000.00",INCITE SOLUTIONS LTD
TfGM,Transport,Capital Costs - Smart Ticketing,10/05/2013,5100051517,"11,900.00",INTELLIGENT SOLUTIONS IN TRANSPORT
TfGM,Corporate Services,Computer Support and Licences,10/05/2013,5100051251,"6,755.00",ITSO LTD
TfGM,Transport,Capital Costs - Mechanical & Engineering Support Services,10/05/2013,5100049644,"13,950.00",JACOBS UK LTD
TfGM,Transport,Capital Costs - Engineering Support Services,10/05/2013,5100051087,"22,997.22",JACOBS UK LTD
TfGM,Transport,Capital Costs - Mechanical & Engineering Support Services,10/05/2013,5100051088,"20,280.00",JACOBS UK LTD
TfGM,Transport,Capital Costs - Design Support Services,10/05/2013,5100051313,"4,905.00",JACOBS UK LTD
TfGM,Transport,Street Furniture Equipment,10/05/2013,5100051466,"2,074.00",JC DECAUX UK LTD
TfGM,Transport,Street Furniture Equipment,10/05/2013,5100051467,"2,494.00",JC DECAUX UK LTD
TfGM,Transport,Street Furniture Equipment,10/05/2013,5100051469,"3,447.00",JC DECAUX UK LTD
TfGM,Transport,Street Furniture Equipment,10/05/2013,5100051472,"2,586.00",JC DECAUX UK LTD
TfGM,Transport,Street Furniture Equipment,10/05/2013,5100051475,"3,640.00",JC DECAUX UK LTD
TfGM,Transport,Traffic Signal Works,10/05/2013,5100050653,699.76,JONES LIGHTING
TfGM,Corporate Services,IS Consumables,10/05/2013,5100051161,"4,329.68",KELWAY
TfGM,Corporate Services,IS Consumables,10/05/2013,5100051318,"36,802.28",KELWAY
TfGM,Corporate Services,IS Consumables,10/05/2013,5100051591,"1,273.72",KELWAY
TfGM,Transport,Capital Costs - Land Acquisition and Related Costs,10/05/2013,5100051457,"6,200.00",LAMBERT SMITH HAMPTON
TfGM,Transport,Driver Intervention Course Delivery Costs,10/05/2013,5100051588,"2,321.67",LISA ATKINSON DTS
TfGM,Transport,Vehicle Costs,10/05/2013,5100051352,"3,682.50",Lloyd Morgan Group
TfGM,Corporate Services,Insurance,10/05/2013,5100051371,"52,915.20",LOCKTON COMPANIES LLP
TfGM,Transport,Capital Costs - Programme and Project Management Services,10/05/2013,5100051477,"6,000.00",MACE COST LIMITED
TfGM,Transport,Telecommunications,10/05/2013,5100051091,"2,798.84",MANCHESTER CITY COUNCIL
TfGM,Transport,Driver Intervention Course Delivery Costs,10/05/2013,5100051415,"1,437.50",MANCHESTER CITY COUNCIL
TfGM,Transport,Exhibitions and Conferences,10/05/2013,5100051425,680.00,MANCHESTER CITY COUNCIL
TfGM,Transport,Capital Costs - Design Support Services,10/05/2013,5100051485,"2,263.40",MANCHESTER CITY COUNCIL
TfGM,Transport,Property & Equipment Maintenance,10/05/2013,5100051435,"21,761.19",MANCHESTER WORKING LTD
TfGM,Corporate Services,IS Support Services,10/05/2013,5100051519,"5,775.00",MAPSAR LTD
TfGM,Corporate Services,Smart Ticketing,10/05/2013,5100051538,"10,500.00",MARBLE LTD
TfGM,Transport,Capital Costs - Light Rail Support Services,10/05/2013,5100051394,"12,800.00",MASON LTD
TfGM,Transport,Capital Costs - Light Rail Support Services,10/05/2013,5100051441,"2,800.00",MASON LTD
TfGM,Transport,Print & Media,10/05/2013,5100051504,710.00,Mere PR
TfGM,Transport,Print & Media,10/05/2013,5100051506,"4,950.00",Mere PR
TfGM,Transport,Print & Media,10/05/2013,5100051507,"3,390.00",Mere PR
TfGM,Transport,Driver Intervention Course Delivery Costs,10/05/2013,5100051559,"6,440.00",MERSEYSIDE POLICE AUTHORITY
TfGM,Transport,Metrolink Operating Costs,10/05/2013,5100050834,"430,667.00",METROLINK RATP DEV LTD
TfGM,Transport,Metrolink Operating Costs,10/05/2013,5100051319,"635,500.09",METROLINK RATP DEV LTD
TfGM,Transport,Capital Costs - Engineering Support Services,10/05/2013,5100051322,"3,185.40",METROLINK RATP DEV LTD
TfGM,Transport,Capital Costs - Computer and Printing Hardware,10/05/2013,5100051323,"2,368.00",METROLINK RATP DEV LTD
TfGM,Transport,Metrolink Operating Costs,10/05/2013,5100051436,"16,961.00",METROLINK RATP DEV LTD
TfGM,Corporate Services,Printer Consumables,10/05/2013,5100050683,"1,676.39",MISCO
TfGM,Corporate Services,Printer Consumables,10/05/2013,5100051468,666.32,MISCO
TfGM,Transport,Cleaning,10/05/2013,5100051175,440.00,MITIE CLEANING & SUPPORT SERVS LTD
TfGM,Transport,Cleaning,10/05/2013,5100051176,"7,734.61",MITIE CLEANING & SUPPORT SERVS LTD
TfGM,Transport,Cleaning,10/05/2013,5100051192,535.82,MITIE CLEANING & SUPPORT SERVS LTD
TfGM,Transport,Capital Costs - Programme and Project Management Services,10/05/2013,5100051458,"(1,352.00)",MORSON INTERNATIONAL
TfGM,Transport,Capital Costs - Programme and Project Management Services,10/05/2013,5100051567,"1,664.00",MORSON INTERNATIONAL
TfGM,Transport,Capital Costs - Programme and Project Management Services,10/05/2013,5100051568,"2,408.00",MORSON INTERNATIONAL
TfGM,Transport,Capital Costs - Programme and Project Management Services,10/05/2013,5100051578,"1,690.00",MORSON INTERNATIONAL
TfGM,Transport,Capital Costs - Programme and Project Management Services,10/05/2013,5100051579,"1,950.00",MORSON INTERNATIONAL
TfGM,Transport,Capital Costs - Programme and Project Management Services,10/05/2013,5100051580,"1,518.40",MORSON INTERNATIONAL
TfGM,Transport,Capital Costs - Programme and Project Management Services,10/05/2013,5100051581,"2,140.00",MORSON INTERNATIONAL
TfGM,Transport,Property & Equipment Maintenance,10/05/2013,5100051390,"8,099.35",MOTT MACDONALD LTD
TfGM,Transport,Engineering Support Services,10/05/2013,5100051398,"2,604.08",MOTT MACDONALD LTD
TfGM,Transport,Capital Costs - Design Support Services,10/05/2013,5100051431,"3,240.69",MOTT MACDONALD LTD
TfGM,Transport,Capital Costs - Design Support Services,10/05/2013,5100051542,"4,212.90",MOTT MACDONALD LTD
TfGM,Transport,Metrolink Operating Costs,10/05/2013,5100049666,"7,521.07",MPACT THALES
TfGM,Transport,Metrolink Operating Costs,10/05/2013,5100049668,"73,961.59",MPACT THALES
TfGM,Transport,Metrolink Operating Costs,10/05/2013,5100049679,"40,450.25",MPACT THALES
TfGM,Transport,Metrolink Operating Costs,10/05/2013,5100049680,"292,494.93",MPACT THALES
TfGM,Transport,Capital Costs - Capital Project Main Contract Works,10/05/2013,5100050195,"253,982.04",MPACT THALES
TfGM,Transport,Capital Costs - Capital Project Main Contract Works,10/05/2013,5100050196,"230,000.00",MPACT THALES
TfGM,Transport,Metrolink Operating Costs,10/05/2013,5100051029,"273,445.12",MPACT THALES
TfGM,Transport,Metrolink Operating Costs,10/05/2013,5100051030,"8,273.17",MPACT THALES
TfGM,Transport,Metrolink Operating Costs,10/05/2013,5100051032,"75,355.35",MPACT THALES
TfGM,Transport,Capital Costs - Capital Project Main Contract Works,10/05/2013,5100051456,"(250,000.00)",MPACT THALES
TfGM,Transport,Capital Costs - Engineering Support Services,10/05/2013,5100051510,"1,875.00",NEIL CLARKE LTD
TfGM,Transport,Print & Media,10/05/2013,5100051414,"5,918.90",OMEGA PRINT AND DESIGN LTD
TfGM,Corporate Services,Procurement Services,10/05/2013,5100051392,"10,500.00",OPUS BESTPAY LTD
TfGM,Transport,Capital Costs - Legal Services,10/05/2013,5100051474,"21,262.60",PANNONE AND PARTNERS
TfGM,Transport,Capital Costs - Legal Services,10/05/2013,5100051564,"1,095.00",PANNONE AND PARTNERS
TfGM,Transport,Print & Media,10/05/2013,5100051558,"3,905.15",PARAGON GROUP UK LTD (A/CS REC)
TfGM,Transport,Financial and Commercial Support Services,10/05/2013,5100051497,"9,571.25",PEAK PERFORMANCE PROFESSIONAL CONTR
TfGM,Transport,Capital Costs - Programme and Project Management Services,10/05/2013,5100050702,"1,701.75",PERTEMPS PROFESSIONAL STAFFING LTD
TfGM,Transport,Capital Costs - Programme and Project Management Services,10/05/2013,5100050998,"1,701.75",PERTEMPS PROFESSIONAL STAFFING LTD
TfGM,Transport,Capital Costs - Programme and Project Management Services,10/05/2013,5100051064,"1,701.75",PERTEMPS PROFESSIONAL STAFFING LTD
TfGM,Transport,Capital Costs - Programme and Project Management Services,10/05/2013,5100051306,"1,701.75",PERTEMPS PROFESSIONAL STAFFING LTD
TfGM,Transport,Traffic and Transportation Surveys,10/05/2013,5100051202,"5,421.14",PLUSWORK LTD
TfGM,Transport,Traffic and Transportation Surveys,10/05/2013,5100051327,532.00,PLUSWORK LTD
TfGM,Transport,Temporary Vacancy Cover,10/05/2013,5100051404,566.40,PLUSWORK LTD
TfGM,Transport,Traffic and Transportation Surveys,10/05/2013,5100051406,532.00,PLUSWORK LTD
TfGM,Transport,Traffic and Transportation Surveys,10/05/2013,5100051409,"2,190.75",PLUSWORK LTD
TfGM,Transport,Traffic and Transportation Surveys,10/05/2013,5100051412,"5,062.22",PLUSWORK LTD
TfGM,Transport,Temporary Vacancy Cover,10/05/2013,5100051419,676.06,PLUSWORK LTD
TfGM,Transport,Traffic and Transportation Surveys,10/05/2013,5100051424,"5,356.06",PLUSWORK LTD
TfGM,Transport,Capital Costs - Programme and Project Management Services,10/05/2013,5100051410,"1,400.00",PRACTICUS LIMITED
TfGM,Transport,Capital Costs - Programme and Project Management Services,10/05/2013,5100051498,"2,500.00",PRACTICUS LIMITED
TfGM,Transport,Capital Costs - Distribution Support Services,10/05/2013,5100051557,490.00,RCD
TfGM,Corporate Services,Employee Reimbursed Costs,10/05/2013,1900027398,"2,371.40",Redacted
TfGM,Transport,Safety Equipment,10/05/2013,5100051481,"1,220.40",REVEAL MEDIA LTD
TfGM,Transport,Supported Bus Services,10/05/2013,5100051522,560.00,ROCHDALE COMMUNITY TRANSPORT
TfGM,Transport,Postage Costs,10/05/2013,5100051487,"1,175.85",ROYAL MAIL GROUP PLC
TfGM,Corporate Services,Computer Support and Licences,10/05/2013,5100050661,"24,750.00",SAP (UK) LTD
TfGM,Transport,Capital Costs - Light Rail Support Services,10/05/2013,5100051443,"10,120.00",SB PROJECT MANAGEMENT LTD
TfGM,Corporate Services,Computer Support and Licences,10/05/2013,5100051543,"2,170.00",SEC1 LTD
TfGM,Transport,Property & Equipment Maintenance,10/05/2013,5100051520,"7,243.50",SENATOR INTERNATIONAL LTD
TfGM,Transport,Traffic Signal Works,10/05/2013,5100051137,"97,787.95",SIEMENS PLC
TfGM,Transport,Traffic Signal Works,10/05/2013,5100051187,"23,941.02",SIEMENS PLC
TfGM,Transport,Traffic Signal Works,10/05/2013,5100051208,"179,005.16",SIEMENS PLC
TfGM,Transport,Traffic Signal Works,10/05/2013,5100051299,"37,182.95",SIEMENS PLC
TfGM,Transport,Traffic Signal Works,10/05/2013,5100051413,"25,266.78",SIEMENS PLC
TfGM,Transport,Traffic Signal Works,10/05/2013,5100051418,"8,633.93",SIEMENS PLC
TfGM,Transport,Traffic Signal Works,10/05/2013,5100051478,"17,199.06",SIEMENS PLC
TfGM,Transport,Traffic Signal Works,10/05/2013,5100051549,"13,924.59",SIEMENS PLC
TfGM,Transport,Traffic Signal Works,10/05/2013,5100051552,"9,189.32",SIEMENS PLC
TfGM,Transport,Traffic Signal Works,10/05/2013,5100051553,"9,152.77",SIEMENS PLC
TfGM,Transport,Traffic Signal Works,10/05/2013,5100051554,"14,386.36",SIEMENS PLC
TfGM,Transport,Traffic Signal Works,10/05/2013,5100051555,"41,752.36",SIEMENS PLC
TfGM,Transport,Traffic Signal Works,10/05/2013,5100051565,"23,132.66",SIEMENS PLC
TfGM,Corporate Services,Planning Support Services,10/05/2013,5100050121,"7,951.15",STEER DAVIES GLEEVE LTD
TfGM,Transport,Property & Equipment Maintenance,10/05/2013,5100050679,"1,656.48",STOCKPORT MBC
TfGM,Transport,Capital Costs -  Project Support Services,10/05/2013,5100051516,"17,940.84",STRUCTURAL SOILS LTD
TfGM,Transport,Security Services,10/05/2013,5100051593,"36,000.00",SYSTEM VISION LTD
TfGM,Transport,Print & Media,10/05/2013,5100051465,880.00,TOWER FM
TfGM,Corporate Services,Computer Support and Licences,10/05/2013,5100051571,825.00,TRANSACTION NETWORK SERV (UK) LTD
TfGM,Transport,Capital Costs - Environmental & Ecological Support Services,10/05/2013,5100050356,"1,200.00",URBAN VISION PARTNERSHIP LTD
TfGM,Transport,Capital Costs - Programme and Project Management Services,10/05/2013,5100050675,"8,400.00",URBAN VISION PARTNERSHIP LTD
TfGM,Transport,Vehicle Repairs & Maintenance,10/05/2013,5100051430,"1,304.94",Walton Summit Truck Centre
TfGM,Transport,Vehicle Repairs & Maintenance,10/05/2013,5100051530,"1,963.13",Walton Summit Truck Centre
TfGM,Transport,Vehicle Repairs & Maintenance,10/05/2013,5100051540,"1,544.66",Walton Summit Truck Centre
TfGM,Corporate Services,Human Resource Services,10/05/2013,5100051379,"8,668.00",WARREN PARTNERS LTD
TfGM,Transport,Capital Costs - Land Acquisition and Related Costs,10/05/2013,1900027399,"612,000.00",WATSON BURTON LLP
TfGM,Transport,Capital Costs - Land Acquisition and Related Costs,10/05/2013,1900027400,500.00,WATSON BURTON LLP
TfGM,Transport,Capital Costs - Engineering Support Services,14/05/2013,5100050987,"10,260.00",AECOM LTD
TfGM,Transport,Engineering Support Services,14/05/2013,5100051331,600.00,ATKINS LTD
TfGM,Transport,Capital Costs - Engineering Support Services,14/05/2013,5100051479,"6,881.13",ATKINS LTD
TfGM,Transport,Capital Costs - Engineering Support Services,14/05/2013,5100051566,"1,871.00",ATKINS LTD
TfGM,Transport,Capital Costs - Architectural Services,14/05/2013,5100051548,"8,599.18",AUSTINSMITH LORD LLP
TfGM,Transport,Signage Costs,14/05/2013,5100051605,"1,122.00",BAY MEDIA LTD
TfGM,Corporate Services,Print & Stationery ,14/05/2013,5100051136,"5,795.57",BOX IT
TfGM,Corporate Services,Print & Stationery ,14/05/2013,5100051601,"5,310.12",BOX IT
TfGM,Transport,Staff Uniforms,14/05/2013,5100050111,497.83,BURLINGTON UNIFORMS LTD
TfGM,Transport,Staff Uniforms,14/05/2013,5100050111,497.83,BURLINGTON UNIFORMS LTD
TfGM,Transport,Capital Costs -  Project Support Services,14/05/2013,5100051606,"1,370.00",CDI ANDERSELITE LTD
TfGM,Transport,Capital Costs - Engineering Support Services,14/05/2013,5100051602,"1,200.00",FREMONT LTD
TfGM,Transport,Concessionary Reimbursement,14/05/2013,1900027456,961.00,HARVEYS BURY CARS HARVEYS TRANSPORT
TfGM,Transport,Concessionary Reimbursement,14/05/2013,1900027459,"3,443.00",KINGSWAY CARS HAZELBASE LTD
TfGM,Transport,Capital Costs - Property Support Services,14/05/2013,1900027413,"3,243.13",LAMBERT SMITH HAMPTON
TfGM,Transport,Capital Costs - Property Support Services,14/05/2013,1900027414,"5,200.00",LAMBERT SMITH HAMPTON
TfGM,Transport,Capital Costs - Vehicle Costs,14/05/2013,5100051563,729.96,MANCHESTER CITY COUNCIL
TfGM,Transport,Print & Media,14/05/2013,5100051639,"5,500.00",MANDY MARTINEZ
TfGM,Transport,Capital Costs - Tools & Equipment,14/05/2013,5100051063,"9,117.94",METROLINK RATP DEV LTD
TfGM,Transport,Capital Costs - Computer and Printing Hardware,14/05/2013,5100051640,714.00,MISCO
TfGM,Transport,IS Consumables,14/05/2013,5100051641,625.01,MISCO
TfGM,Transport,Capital Costs - Mechanical & Engineering Support Services,14/05/2013,5100051613,"9,378.57",MOTT MACDONALD LTD
TfGM,Transport,Capital Costs - Mechanical & Engineering Support Services,14/05/2013,5100051614,925.33,MOTT MACDONALD LTD
TfGM,Transport,Capital Costs - Mechanical & Engineering Support Services,14/05/2013,5100051617,"9,129.02",MOTT MACDONALD LTD
TfGM,Transport,Capital Costs - Mechanical & Engineering Support Services,14/05/2013,5100051618,935.00,MOTT MACDONALD LTD
TfGM,Transport,Capital Costs - Mechanical & Engineering Support Services,14/05/2013,5100051619,995.27,MOTT MACDONALD LTD
TfGM,Transport,Capital Costs - Mechanical & Engineering Support Services,14/05/2013,5100051620,440.00,MOTT MACDONALD LTD
TfGM,Transport,Capital Costs - Mechanical & Engineering Support Services,14/05/2013,5100051621,"2,758.33",MOTT MACDONALD LTD
TfGM,Transport,Capital Costs - Engineering Support Services,14/05/2013,5100051622,"4,536.40",MOTT MACDONALD LTD
TfGM,Transport,Capital Costs - Capital Project Main Contract Works,14/05/2013,1900027468,"107,002.72",MPACT THALES
TfGM,Transport,Property & Equipment Maintenance,14/05/2013,5100050499,"5,650.00",OMC LLP
TfGM,Transport,Capital Costs - Print & Media,14/05/2013,5100051596,"10,000.00",OVE ARUP & PARTNERS INTERNATIONAL L
TfGM,Transport,Concessionary Reimbursement,14/05/2013,1900027448,838.00,PEMBERTON TAXIS
TfGM,Transport,Capital Costs - Programme and Project Management Services,14/05/2013,5100051595,680.70,PERTEMPS PROFESSIONAL STAFFING LTD
TfGM,Transport,Temporary Vacancy Cover,14/05/2013,5100051490,620.28,PLUSWORK LTD
TfGM,Transport,Capital Costs - Programme and Project Management Services,14/05/2013,5100051492,"2,500.00",PRACTICUS LIMITED
TfGM,Transport,Capital Costs - Programme and Project Management Services,14/05/2013,5100051594,"1,120.00",PRACTICUS LIMITED
TfGM,Transport,Traffic Signal Works,14/05/2013,5100051633,"1,153.60",ROSGAL LTD
TfGM,Corporate Services,IS Software & Maintenance,14/05/2013,5100051636,727.89,SAVOY COMPUTING SERVICES LTD
TfGM,Corporate Services,IS Consumables,14/05/2013,5100051227,"1,410.00",SECURE POWER LTD
TfGM,Transport,Print & Media,14/05/2013,5100051600,692.00,SERVICEPOINT UK
TfGM,Transport,"Rent, Rates & Service Charges",14/05/2013,1900027416,"3,187.80",TRAFFORD MBC
TfGM,Corporate Services,Computer Support and Licences,14/05/2013,5100051556,"2,805.00",TRANSACTION NETWORK SERV (UK) LTD
TfGM,Transport,Cleaning,14/05/2013,5100051232,793.69,TUDOR CONTRACT CLEANERS LTD
TfGM,Transport,Cleaning,14/05/2013,5100051233,736.59,TUDOR CONTRACT CLEANERS LTD
TfGM,Transport,Cleaning,14/05/2013,5100051235,685.20,TUDOR CONTRACT CLEANERS LTD
TfGM,Transport,Cleaning,14/05/2013,5100051237,725.17,TUDOR CONTRACT CLEANERS LTD
TfGM,Transport,Cleaning,14/05/2013,5100051243,"1,707.29",TUDOR CONTRACT CLEANERS LTD
TfGM,Transport,Cleaning,14/05/2013,5100051244,"8,709.78",TUDOR CONTRACT CLEANERS LTD
TfGM,Transport,Property & Equipment Maintenance,14/05/2013,5100051246,"5,230.67",TUDOR CONTRACT CLEANERS LTD
TfGM,Transport,Property & Equipment Maintenance,14/05/2013,5100051249,"3,034.31",TUDOR CONTRACT CLEANERS LTD
TfGM,Transport,Cleaning,14/05/2013,5100051252,829.92,TUDOR CONTRACT CLEANERS LTD
TfGM,Transport,Cleaning,14/05/2013,5100051254,622.44,TUDOR CONTRACT CLEANERS LTD
TfGM,Transport,Cleaning,14/05/2013,5100051260,531.96,TUDOR CONTRACT CLEANERS LTD
TfGM,Transport,Cleaning,14/05/2013,5100051261,587.31,TUDOR CONTRACT CLEANERS LTD
TfGM,Transport,Cleaning,14/05/2013,5100051267,532.48,TUDOR CONTRACT CLEANERS LTD
TfGM,Transport,Cleaning,14/05/2013,5100051271,443.95,TUDOR CONTRACT CLEANERS LTD
TfGM,Transport,Training,14/05/2013,5100051589,600.00,V&B SOFTWARE SERVICES LTD
TfGM,Transport,Supported Bus Services,15/05/2013,1900027578,"2,433.33",5 STAR PRIVATE HIRE
TfGM,Transport,Vehicle Costs,15/05/2013,1200024729,"1,206.41",ALLSTAR
TfGM,Transport,Supported Bus Services,15/05/2013,1700017262,"(4,530.87)",ARRIVA MANCHESTER
TfGM,Transport,Supported Bus Services,15/05/2013,1900027478,"3,315.00",ARRIVA MANCHESTER
TfGM,Transport,Concessionary Reimbursement,15/05/2013,1900027491,"377,417.00",ARRIVA MANCHESTER
TfGM,Transport,Supported Bus Services,15/05/2013,1900027580,"144,511.99",ARRIVA MANCHESTER
TfGM,Transport,Supported Bus Services,15/05/2013,1900027581,"176,529.19",ARRIVA MANCHESTER
TfGM,Transport,Supported Bus Services,15/05/2013,1900027589,"5,560.75",ARRIVA MANCHESTER
TfGM,Transport,Supported Bus Services,15/05/2013,1900027567,"85,069.64",BELLE VUE (MANCHESTER) LTD
TfGM,Transport,Supported Bus Services,15/05/2013,1900027587,"2,020.83",BULLITT CARS
TfGM,Transport,Concessionary Reimbursement,15/05/2013,1900027492,"3,500.00",BULLOCKS
TfGM,Transport,Supported Bus Services,15/05/2013,1900027575,"16,039.64",BULLOCKS
TfGM,Transport,Supported Bus Services,15/05/2013,1900027576,"1,269.55",BULLOCKS
TfGM,Transport,Concessionary Reimbursement,15/05/2013,1900027493,"12,000.00",BURNLEY AND PENDLE
TfGM,Transport,Concessionary Reimbursement,15/05/2013,1900027495,"15,092.00",CENTREBUS LTD
TfGM,Transport,Concessionary Reimbursement,15/05/2013,1900027497,"3,300.00",CHECKMATE TRANSPORT LTD
TfGM,Transport,Supported Bus Services,15/05/2013,1900027551,"10,218.70",CHECKMATE TRANSPORT LTD
TfGM,Transport,Supported Bus Services,15/05/2013,1900027590,"12,537.81",CHESTERS COACHES
TfGM,Transport,Supported Bus Services,15/05/2013,1900027588,"6,909.10",CI WALLEY TA RINGWAY MINIBUS HIRE
TfGM,Transport,Concessionary Reimbursement,15/05/2013,1900027500,"3,000.00",FE FINCH
TfGM,Transport,Supported Bus Services,15/05/2013,1700017229,"(1,847.06)",FINGLANDS
TfGM,Transport,Concessionary Reimbursement,15/05/2013,1900027498,"35,000.00",FINGLANDS
TfGM,Transport,Supported Bus Services,15/05/2013,1900027552,"26,904.37",FINGLANDS
TfGM,Transport,Supported Bus Services,15/05/2013,1900027553,"35,994.66",FINGLANDS
TfGM,Transport,Concessionary Reimbursement,15/05/2013,1900027499,"7,000.00",FIRST CALDERLINE
TfGM,Transport,Supported Bus Services,15/05/2013,1700017251,"(4,470.68)",FIRST MANCHESTER
TfGM,Transport,Supported Bus Services,15/05/2013,1900027480,"8,991.00",FIRST MANCHESTER
TfGM,Transport,Concessionary Reimbursement,15/05/2013,1900027501,"143,000.00",FIRST MANCHESTER
TfGM,Transport,Supported Bus Services,15/05/2013,1900027573,"359,101.05",FIRST MANCHESTER
TfGM,Transport,Supported Bus Services,15/05/2013,1900027574,"338,058.50",FIRST MANCHESTER
TfGM,Transport,Supported Bus Services,15/05/2013,1900027593,"33,405.09",GB COACHES
TfGM,Transport,Supported Bus Services,15/05/2013,1900027563,"11,968.33",GMATL
TfGM,Transport,Accessible Transport,15/05/2013,1200024709,"441,667.00",GMATT
TfGM,Transport,Supported Bus Services,15/05/2013,1900027560,"45,167.01",GO GOODWINS COACHES LTD
TfGM,Transport,Supported Bus Services,15/05/2013,1900027561,"102,649.67",GO GOODWINS COACHES LTD
TfGM,Transport,Concessionary Reimbursement,15/05/2013,1900027502,"85,000.00",GREEN TRIANGLE BUSES LTD
TfGM,Transport,Supported Bus Services,15/05/2013,1900027585,"43,456.17",GREEN TRIANGLE BUSES LTD
TfGM,Transport,Supported Bus Services,15/05/2013,1900027586,"85,766.19",GREEN TRIANGLE BUSES LTD
TfGM,Transport,Concessionary Reimbursement,15/05/2013,1900027470,679.00,HORWICH PRIVATE HIRE LIMITED
TfGM,Transport,Supported Bus Services,15/05/2013,1900027556,"2,333.33",HORWICH PRIVATE HIRE LIMITED
TfGM,Transport,Concessionary Reimbursement,15/05/2013,1900027503,"30,000.00",JIM STONES COACHES
TfGM,Transport,Supported Bus Services,15/05/2013,1900027583,"9,559.09",JIM STONES COACHES
TfGM,Transport,Supported Bus Services,15/05/2013,1900027584,"11,019.40",JIM STONES COACHES
TfGM,Transport,Supported Bus Services,15/05/2013,1700017258,(506.75),JP EXECUTIVE
TfGM,Transport,Concessionary Reimbursement,15/05/2013,1900027504,"50,000.00",JP EXECUTIVE
TfGM,Transport,Supported Bus Services,15/05/2013,1900027579,"41,907.58",JP EXECUTIVE
TfGM,Transport,Concessionary Reimbursement,15/05/2013,1900027507,650.00,LAINTON COACHES LTD
TfGM,Transport,Supported Bus Services,15/05/2013,1900027577,"16,959.37",LAINTON COACHES LTD
TfGM,Transport,Concessionary Reimbursement,15/05/2013,1900027505,"16,500.00",LANCASHIRE UTD
TfGM,Transport,Supported Bus Services,15/05/2013,1900027566,"3,200.27",LEISURE TRAVEL
TfGM,Transport,Supported Bus Services,15/05/2013,1900027487,568.00,M TRAVEL
TfGM,Transport,Concessionary Reimbursement,15/05/2013,1900027508,600.00,M TRAVEL
TfGM,Transport,Supported Bus Services,15/05/2013,1900027568,"31,016.45",M TRAVEL
TfGM,Transport,Supported Bus Services,15/05/2013,1900027569,"17,221.67",M TRAVEL
TfGM,Transport,Supported Bus Services,15/05/2013,1700017233,"(3,598.82)",MANCHESTER COMMUNITY TRANSPORT
TfGM,Transport,Concessionary Reimbursement,15/05/2013,1900027472,"5,000.00",MANCHESTER COMMUNITY TRANSPORT
TfGM,Transport,Concessionary Reimbursement,15/05/2013,1900027509,"30,000.00",MANCHESTER COMMUNITY TRANSPORT
TfGM,Transport,Supported Bus Services,15/05/2013,1900027557,"24,528.74",MANCHESTER COMMUNITY TRANSPORT
TfGM,Transport,Supported Bus Services,15/05/2013,1900027558,"198,118.93",MANCHESTER COMMUNITY TRANSPORT
TfGM,Transport,Supported Bus Services,15/05/2013,1900027562,"43,818.02",OLYMPIA TRAVEL
TfGM,Transport,Supported Bus Services,15/05/2013,1900027598,"23,836.36",R S TYRER LTD
TfGM,Transport,Concessionary Reimbursement,15/05/2013,1900027473,"4,163.00",RADIO CABS ASHTON LTD
TfGM,Transport,Supported Bus Services,15/05/2013,1900027559,"33,220.00",RADIO CABS ASHTON LTD
TfGM,Transport,Supported Bus Services,15/05/2013,1900027554,"27,070.92",ROCHDALE COMMUNITY TRANSPORT
TfGM,Transport,Supported Bus Services,15/05/2013,1900027555,"39,835.08",ROCHDALE COMMUNITY TRANSPORT
TfGM,Transport,Concessionary Reimbursement,15/05/2013,1900027522,"3,976.00",ROJAY SERVICES LTD T/A WIGAN COACHW
TfGM,Transport,Supported Bus Services,15/05/2013,1900027485,531.00,ROSSENDALE TRANSPORT
TfGM,Transport,Concessionary Reimbursement,15/05/2013,1900027511,"100,000.00",ROSSENDALE TRANSPORT
TfGM,Transport,Supported Bus Services,15/05/2013,1900027564,"126,168.51",ROSSENDALE TRANSPORT
TfGM,Transport,Supported Bus Services,15/05/2013,1900027565,"64,967.53",ROSSENDALE TRANSPORT
TfGM,Transport,Supported Bus Services,15/05/2013,1900027594,"58,767.59",SELWYNS TRAVEL LTD
TfGM,Transport,Supported Bus Services,15/05/2013,1900027595,"1,160.25",SELWYNS TRAVEL LTD
TfGM,Transport,Supported Bus Services,15/05/2013,1900027486,"5,093.00",STAGECOACH SERVICES LTD
TfGM,Transport,Pass Withdrawal Scheme,15/05/2013,1900027490,"1,200.00",STAGECOACH SERVICES LTD
TfGM,Transport,Concessionary Reimbursement,15/05/2013,1900027513,"1,291,666.00",STAGECOACH SERVICES LTD
TfGM,Transport,Concessionary Reimbursement,15/05/2013,1900027514,"21,000.00",STAGECOACH SERVICES LTD
TfGM,Transport,Concessionary Reimbursement,15/05/2013,1900027515,"210,000.00",STAGECOACH SERVICES LTD
TfGM,Transport,Supported Bus Services,15/05/2013,1900027570,"320,102.44",STAGECOACH SERVICES LTD
TfGM,Transport,Supported Bus Services,15/05/2013,1900027571,"435,622.92",STAGECOACH SERVICES LTD
TfGM,Transport,Supported Bus Services,15/05/2013,1700017221,"(8,000.00)",STOTTS TOURS
TfGM,Transport,Supported Bus Services,15/05/2013,1700017278,"(10,465.09)",STOTTS TOURS
TfGM,Transport,Concessionary Reimbursement,15/05/2013,1900027516,"10,000.00",STOTTS TOURS
TfGM,Transport,Supported Bus Services,15/05/2013,1900027596,"41,898.43",STOTTS TOURS
TfGM,Transport,Supported Bus Services,15/05/2013,1900027597,"48,541.72",STOTTS TOURS
TfGM,Transport,Concessionary Reimbursement,15/05/2013,1900027474,"2,433.00",TELECARS
TfGM,Transport,Supported Bus Services,15/05/2013,1900027582,"11,958.33",TELECARS
TfGM,Transport,Concessionary Reimbursement,15/05/2013,1900027517,"2,500.00",TRAVELMASTER MCR LTD
TfGM,Transport,Supported Bus Services,15/05/2013,1900027550,"3,086.09",TRAVELMASTER MCR LTD
TfGM,Transport,Concessionary Reimbursement,15/05/2013,1900027518,"1,500.00",VALE OF LLANGOLLEN TRAVEL LTD
TfGM,Transport,Supported Bus Services,15/05/2013,1900027572,"3,436.36",VIKING COACHES
TfGM,Transport,Concessionary Reimbursement,15/05/2013,1900027520,"10,300.00",WARRINGTON BOROUGH TRANSPORT LTD
TfGM,Transport,Concessionary Reimbursement,15/05/2013,1900027521,"4,500.00",WIGAN BUSES LTD
TfGM,Transport,Supported Bus Services,15/05/2013,1900027591,"12,457.91",WIGAN BUSES LTD
TfGM,Transport,Supported Bus Services,15/05/2013,1900027592,"27,553.17",WIGAN BUSES LTD
TfGM,Transport,Supported Bus Services,15/05/2013,1900027549,"6,533.17",WIGAN COMMUNITY TRANSPORT
TfGM,Transport,Training,17/05/2013,5100051561,658.00,ACTIVIA TRAINING
TfGM,Transport,Capital Costs - Programme and Project Management Services,17/05/2013,5100051674,"8,190.00",ACUITY PROGRAMME MANAGEMENT LTD
TfGM,Transport,Capital Costs - Programme and Project Management Services,17/05/2013,5100051676,"7,200.00",ACUITY PROGRAMME MANAGEMENT LTD
TfGM,Transport,Transport Planning & Monitoring Services,17/05/2013,5100051611,"9,108.13",AECOM LTD
TfGM,Transport,Capital Costs - Mechanical & Engineering Support Services,17/05/2013,5100051686,"5,950.00",AECOM LTD
TfGM,Transport,Traffic Management Services,17/05/2013,5100051727,"3,536.00",AECOM LTD
TfGM,Transport,Capital Costs - Mechanical & Engineering Support Services,17/05/2013,5100051735,"4,900.00",AECOM LTD
TfGM,Transport,Capital Costs - Engineering Support Services,17/05/2013,5100051769,"6,205.00",AECOM LTD
TfGM,Transport,Capital Costs - Architectural Services,17/05/2013,5100051353,"6,822.33",AEDAS ARCHITECTS LTD
TfGM,Transport,Capital Costs - Architectural Services,17/05/2013,5100051354,"11,537.32",AEDAS ARCHITECTS LTD
TfGM,Transport,Capital Costs - Architectural Services,17/05/2013,5100051355,"1,500.00",AEDAS ARCHITECTS LTD
TfGM,Transport,Capital Costs - Architectural Services,17/05/2013,5100051356,"10,395.33",AEDAS ARCHITECTS LTD
TfGM,Transport,Capital Costs - Architectural Services,17/05/2013,5100051357,"6,719.02",AEDAS ARCHITECTS LTD
TfGM,Transport,Capital Costs - Architectural Services,17/05/2013,5100051726,"22,086.89",AEDAS ARCHITECTS LTD
TfGM,Transport,Capital Costs - Architectural Services,17/05/2013,5100051730,500.00,AEDAS ARCHITECTS LTD
TfGM,Transport,Print & Media,17/05/2013,5100051721,835.06,ALPHA MEDIA SOLUTIONS
TfGM,Transport,Print & Media,17/05/2013,5100051829,"1,745.00",ALPHA MEDIA SOLUTIONS
TfGM,Transport,Print & Media,17/05/2013,5100051832,940.00,ALPHA MEDIA SOLUTIONS
TfGM,Transport,Capital Costs - Engineering Support Services,17/05/2013,5100051572,"2,590.01",ATKINS LTD
TfGM,Transport,Capital Costs -  Project Support Services,17/05/2013,5100050462,"37,462.50",BLACK MARBLE
TfGM,Transport,Print & Media,17/05/2013,5100051719,469.00,BLUETREE DESIGN AND PRINT LTD
TfGM,Transport,Driver Intervention Course Delivery Costs,17/05/2013,5100051647,"6,340.00",BOLTON MIDDLEBROOK LEISURE TRUST
TfGM,Transport,Capital Costs - LRT Vehicles,17/05/2013,5100051368,"187,389.88",BOMBARDIER TRANSPORTATION UK LTD
TfGM,Transport,Capital Costs - LRT Vehicles,17/05/2013,5100051677,"468,474.69",BOMBARDIER TRANSPORTATION UK LTD
TfGM,Transport,Capital Costs - Capital Project Main Contract Works,17/05/2013,5100050320,"15,933.85",BROXAP LTD
TfGM,Transport,Capital Costs - Capital Project Main Contract Works,17/05/2013,5100051662,"(3,177.92)",BROXAP LTD
TfGM,Transport,Capital Costs - Project Management Services,17/05/2013,5100051226,885.72,BT ENGAGE IT
TfGM,Transport,Capital Costs - Project Management Services,17/05/2013,5100051309,"7,200.00",BT ENGAGE IT
TfGM,Transport,Capital Costs - Project Management Services,17/05/2013,5100051715,"5,549.76",BT ENGAGE IT
TfGM,Transport,Driver Intervention Course Delivery Costs,17/05/2013,5100051794,"6,400.00",BURY MBC
TfGM,Transport,Driver Intervention Course Delivery Costs,17/05/2013,5100051741,"1,702.80",CF VENDING LTD
TfGM,Transport,Driver Intervention Course Delivery Costs,17/05/2013,5100051824,"2,178.00",CF VENDING LTD
TfGM,Transport,Capital Costs - Land Acquisition and Related Costs,17/05/2013,1900027606,"10,112.11",COBBETTS LLP
TfGM,Transport,Transport Planning & Monitoring Services,17/05/2013,5100051777,"9,653.00",CREATIVE CONCERN
TfGM,Transport,Supported Bus Services,17/05/2013,5100051429,"8,136.84",DERBYSHIRE COUNTY COUNCIL
TfGM,Transport,Driver Intervention Course Delivery Costs,17/05/2013,5100051095,"1,476.40",DESK TOP DRIVING LTD
TfGM,Transport,Property & Equipment Maintenance,17/05/2013,5100051623,"1,020.26",ELECTRICITY NW (CONSTRUCT & MAINT)
TfGM,Transport,Property & Equipment Maintenance,17/05/2013,5100051624,"1,692.10",ELECTRICITY NW (CONSTRUCT & MAINT)
TfGM,Transport,IS Support Services,17/05/2013,5100051369,"2,400.00",EP MORRIS
TfGM,Transport,IS Support Services,17/05/2013,5100051380,"6,000.00",EP MORRIS
TfGM,Corporate Services,Taxation Services,17/05/2013,5100051669,"16,528.80",ERNST & YOUNG
TfGM,Corporate Services,Programme and Project Management Services,17/05/2013,5100051788,"216,664.00",ERNST & YOUNG
TfGM,Transport,Postage Costs,17/05/2013,5100051217,"1,044.08",FP EXECUTIVE AGENCY LTD
TfGM,Transport,IS Support & Maintenance,17/05/2013,5100051646,"3,150.00",GMATL
TfGM,Transport,Bus Support Services,17/05/2013,5100051685,"9,750.00",GMATL
TfGM,Transport,Supported Bus Services,17/05/2013,5100051702,"15,347.00",GMATL
TfGM,Transport,Capital Costs - Traffic Signal Works,17/05/2013,5100051005,"3,000.00",GREATER MANCHESTER COMBINED AUTHORI
TfGM,Transport,Street Furniture Equipment,17/05/2013,5100051744,"8,270.00",HALSALL SIGNS LTD
TfGM,Corporate Services,Temporary Vacancy Cover,17/05/2013,1900027623,"9,233.22",HAYS SPECIALIST RECRUITMENT LTD
TfGM,Transport,Capital Costs - Programme and Project Management Services,17/05/2013,5100051696,"2,647.05",HAYS SPECIALIST RECRUITMENT LTD
TfGM,Transport,Capital Costs - Programme and Project Management Services,17/05/2013,5100051697,"2,647.05",HAYS SPECIALIST RECRUITMENT LTD
TfGM,Transport,Capital Costs - Programme and Project Management Services,17/05/2013,5100051698,"2,117.64",HAYS SPECIALIST RECRUITMENT LTD
TfGM,Transport,Capital Costs - Programme and Project Management Services,17/05/2013,5100051699,"2,117.64",HAYS SPECIALIST RECRUITMENT LTD
TfGM,Transport,Capital Costs - Programme and Project Management Services,17/05/2013,5100051706,"2,647.05",HAYS SPECIALIST RECRUITMENT LTD
TfGM,Transport,Capital Costs - Programme and Project Management Services,17/05/2013,5100051709,"2,647.05",HAYS SPECIALIST RECRUITMENT LTD
TfGM,Transport,Capital Costs - Programme and Project Management Services,17/05/2013,5100051711,"2,647.05",HAYS SPECIALIST RECRUITMENT LTD
TfGM,Transport,Capital Costs - Programme and Project Management Services,17/05/2013,5100051722,"2,647.05",HAYS SPECIALIST RECRUITMENT LTD
TfGM,Transport,Print & Media,17/05/2013,5100051844,525.00,HUDSON AND PEARSON LTD
TfGM,Transport,IS Support Services,17/05/2013,5100051717,"1,900.00",I3D GROUP LTD
TfGM,Transport,Capital Costs - Legal Services,17/05/2013,5100051670,"10,830.00",IAN ALLAN ASSOCIATES (UK) LTD
TfGM,Transport,Training,17/05/2013,5100051772,"1,354.17",ICOUNT TRAINING
TfGM,Transport,Cycling Equipment,17/05/2013,5100051757,"3,540.00",ICYCLE LTD
TfGM,Corporate Services,Project Management Services,17/05/2013,5100051666,"1,600.00",INCITE SOLUTIONS LTD
TfGM,Transport,Capital Costs - Smart Ticketing,17/05/2013,5100051736,"3,867.50",INTELLIGENT SOLUTIONS IN TRANSPORT
TfGM,Transport,Capital Costs - Smart Ticketing,17/05/2013,5100051738,"8,627.50",INTELLIGENT SOLUTIONS IN TRANSPORT
TfGM,Transport,Capital Costs - Engineering Support Services,17/05/2013,5100051654,"3,515.80",ITS Testing Services (UK) Ltd
TfGM,Transport,Capital Costs - Environmental & Ecological Support Services,17/05/2013,5100051707,794.16,JACOBS UK LTD
TfGM,Transport,Capital Costs - Engineering Support Services,17/05/2013,5100051751,"4,494.00",JAMIESON CONTRACTING (MCR) LTD
TfGM,Transport,Traffic Signal Works,17/05/2013,5100050537,463.98,JONES LIGHTING
TfGM,Transport,Traffic Signal Works,17/05/2013,5100051786,463.98,JONES LIGHTING
TfGM,Corporate Services,IS Consumables,17/05/2013,5100050665,"11,576.59",KELWAY
TfGM,Corporate Services,IS Consumables,17/05/2013,5100051865,"2,502.68",KELWAY
TfGM,Transport,Capital Costs - Capital Project Main Contract Works,17/05/2013,5100051734,"700,467.39",KIER CONSTRUCTION - NORTHERN
TfGM,Transport,Driver Intervention Course Delivery Costs,17/05/2013,5100051688,"3,028.00",L&H (PROMOTIONAL MERCHANDISE) LTD
TfGM,Transport,Capital Costs - Capital Project Main Contract Works,17/05/2013,5100051645,"262,707.54",LAING O'ROURKE CONSTRUCTION LTD
TfGM,Transport,Capital Costs - Quantity Surveying Services,17/05/2013,5100051728,"16,400.00",LAMBERT SMITH HAMPTON
TfGM,Transport,Property & Equipment Maintenance,17/05/2013,5100051875,(823.04),LAMBERT SMITH HAMPTON
TfGM,Transport,Vehicle Costs,17/05/2013,5100051724,522.89,LEX AUTOLEASE LTD
TfGM,Transport,Vehicle Costs,17/05/2013,5100051799,"1,029.88",LEX AUTOLEASE LTD
TfGM,Transport,Print & Media,17/05/2013,5100051809,625.00,LOGOSHACK DIGITAL
TfGM,Transport,Property & Equipment Maintenance,17/05/2013,5100051853,581.25,Maintenance Supplies Ltd
TfGM,Transport,Driver Intervention Course Delivery Costs,17/05/2013,5100051791,"3,173.85",MANCHESTER CITY COUNCIL
TfGM,Transport,Print & Media,17/05/2013,5100051866,"4,950.00",Mere PR
TfGM,Transport,Concessionary Reimbursement,17/05/2013,5100051859,"1,200.00",MERLINCO LTD
TfGM,Transport,Metrolink Operating Costs,17/05/2013,5100050832,"430,667.00",METROLINK RATP DEV LTD
TfGM,Transport,Capital Costs - Engineering Support Services,17/05/2013,5100051321,"25,164.66",METROLINK RATP DEV LTD
TfGM,Transport,Safety & Security Support Services,17/05/2013,5100051437,"7,073.03",METROLINK RATP DEV LTD
TfGM,Transport,Safety & Security Support Services,17/05/2013,5100051438,"6,245.83",METROLINK RATP DEV LTD
TfGM,Corporate Services,IS Consumables,17/05/2013,5100051683,"4,849.96",MISCO
TfGM,Corporate Services,IS Consumables,17/05/2013,5100051792,595.00,MISCO
TfGM,Transport,Capital Costs - Programme and Project Management Services,17/05/2013,5100050112,"1,690.00",MORSON INTERNATIONAL
TfGM,Transport,Capital Costs - Programme and Project Management Services,17/05/2013,5100050959,"1,331.20",MORSON INTERNATIONAL
TfGM,Transport,Capital Costs - Programme and Project Management Services,17/05/2013,5100051781,"1,664.00",MORSON INTERNATIONAL
TfGM,Transport,Capital Costs - Programme and Project Management Services,17/05/2013,5100051785,"1,898.00",MORSON INTERNATIONAL
TfGM,Transport,Capital Costs - Programme and Project Management Services,17/05/2013,5100051834,"1,204.00",MORSON INTERNATIONAL
TfGM,Transport,Capital Costs - Programme and Project Management Services,17/05/2013,5100051854,"1,560.00",MORSON INTERNATIONAL
TfGM,Transport,Capital Costs - Engineering Support Services,17/05/2013,5100051615,"24,000.00",MOTT MACDONALD LTD
TfGM,Transport,Maintenance,17/05/2013,5100051671,"44,906.98",MPS (UK) LTD
TfGM,Transport,Maintenance,17/05/2013,5100051672,"29,228.00",MPS (UK) LTD
TfGM,Transport,Transport Planning & Monitoring Services,17/05/2013,5100051705,"5,379.84",MVA LTD
TfGM,Transport,Traffic and Transportation Surveys,17/05/2013,5100051687,"8,130.00",NATIONWIDE DATA COLLECTION LTD
TfGM,Transport,Staff Rail Passes,17/05/2013,5100051818,"4,598.95",NORTHERN RAIL LIMITED
TfGM,Transport,"Rent, Rates & Service Charges",17/05/2013,1900027614,"3,750.00",OLDHAM MBC
TfGM,Transport,"Rent, Rates & Service Charges",17/05/2013,1900027624,"1,789.80",OLDHAM MBC
TfGM,Transport,"Rent, Rates & Service Charges",17/05/2013,1900027625,"1,386.00",OLDHAM MBC
TfGM,Transport,"Rent, Rates & Service Charges",17/05/2013,1900027633,"64,056.00",OLDHAM MBC
TfGM,Transport,Capital Costs - Programme and Project Management Services,17/05/2013,5100051124,"1,361.40",PERTEMPS PROFESSIONAL STAFFING LTD
TfGM,Transport,Capital Costs - Programme and Project Management Services,17/05/2013,5100051755,"1,361.40",PERTEMPS PROFESSIONAL STAFFING LTD
TfGM,Transport,Temporary Vacancy Cover,17/05/2013,5100051242,620.28,PLUSWORK LTD
TfGM,Transport,Temporary Vacancy Cover,17/05/2013,5100051771,676.06,PLUSWORK LTD
TfGM,Transport,Temporary Vacancy Cover,17/05/2013,5100051773,566.40,PLUSWORK LTD
TfGM,Transport,Traffic and Transportation Surveys,17/05/2013,5100051776,532.00,PLUSWORK LTD
TfGM,Transport,Traffic and Transportation Surveys,17/05/2013,5100051783,"5,072.17",PLUSWORK LTD
TfGM,Transport,Traffic and Transportation Surveys,17/05/2013,5100051787,976.42,PLUSWORK LTD
TfGM,Transport,Traffic and Transportation Surveys,17/05/2013,5100051797,"1,945.31",PLUSWORK LTD
TfGM,Transport,Temporary Vacancy Cover,17/05/2013,5100051815,496.22,PLUSWORK LTD
TfGM,Transport,Capital Costs - Programme and Project Management Services,17/05/2013,5100051678,"1,120.00",PRACTICUS LIMITED
TfGM,Transport,Capital Costs - Programme and Project Management Services,17/05/2013,5100051850,"2,000.00",PRACTICUS LIMITED
TfGM,Transport,Subscriptions,17/05/2013,5100051759,"15,956.20",ROAD SAFETY ANALYSIS LTD
TfGM,Transport,Property & Equipment Maintenance,17/05/2013,5100051644,770.00,SADDLEWORTH RANGERS
TfGM,Corporate Services,IS Software & Maintenance,17/05/2013,5100051789,"5,508.00",SAP (UK) LTD
TfGM,Corporate Services,IS Software & Maintenance,17/05/2013,5100051840,"2,103.00",SAP (UK) LTD
TfGM,Corporate Services,IS Software & Maintenance,17/05/2013,5100051841,"40,942.00",SAP (UK) LTD
TfGM,Corporate Services,IS Software & Maintenance,17/05/2013,5100051842,"26,123.00",SAP (UK) LTD
TfGM,Corporate Services,IS Software & Maintenance,17/05/2013,5100051843,"6,415.00",SAP (UK) LTD
TfGM,Corporate Services,IS Software & Maintenance,17/05/2013,5100051845,"3,341.00",SAP (UK) LTD
TfGM,Transport,Supported Bus Services,17/05/2013,5100051765,800.00,SO COACHES
TfGM,Corporate Services,Planning Support Services,17/05/2013,5100051533,"10,949.10",STEER DAVIES GLEEVE LTD
TfGM,Transport,Heavy Rail Support Services,17/05/2013,5100051762,"15,000.00",STEER DAVIES GLEEVE LTD
TfGM,Transport,Capital Costs -  IS Support Services,17/05/2013,5100051658,"67,180.00",SYMOLOGY LIMITED
TfGM,Transport,IS Support Services,17/05/2013,5100051693,"10,022.00",SYMOLOGY LIMITED
TfGM,Transport,Cycle Training Scheme,17/05/2013,5100051748,600.00,THE NATIONWIDE CYCLING ACADEMY
TfGM,Transport,Print & Media,17/05/2013,5100051401,716.85,THOMAS FATTORINI LTD
TfGM,Transport,Grant Audit,17/05/2013,5100051681,"1,750.00",UHY HACKER YOUNG LLP
TfGM,Transport,Vehicle Repairs & Maintenance,17/05/2013,5100051720,649.47,Walton Summit Truck Centre
TfGM,Transport,Research Services,17/05/2013,100070050,"5,375.00",WSP UK LTD
TfGM,Transport,Capital Costs - Land Acquisition and Related Costs,20/05/2013,1900027642,"32,640.00",HMRC
TfGM,Transport,Security Services,21/05/2013,5100051988,"6,837.68",MPACT THALES
TfGM,Transport,Security Services,21/05/2013,5100051989,"50,000.00",MPACT THALES
TfGM,Transport,Capital Costs - Capital Project Main Contract Works,21/05/2013,5100051994,"1,666,000.00",MPACT THALES
TfGM,Transport,Capital Costs - Capital Project Main Contract Works,21/05/2013,5100052002,"91,977.94",MPACT THALES
TfGM,Transport,Capital Costs - Capital Project Main Contract Works,21/05/2013,5100052003,"46,462.31",MPACT THALES
TfGM,Transport,Capital Costs - Capital Project Main Contract Works,21/05/2013,5100052005,"99,400.00",MPACT THALES
TfGM,Transport,Capital Costs - Capital Project Main Contract Works,21/05/2013,5100052006,"75,000.00",MPACT THALES
TfGM,Transport,Capital Costs - Capital Project Main Contract Works,21/05/2013,5100052007,"96,898.23",MPACT THALES
TfGM,Transport,Capital Costs - Capital Project Main Contract Works,21/05/2013,5100052009,"400,000.00",MPACT THALES
TfGM,Transport,Capital Costs - Capital Project Main Contract Works,21/05/2013,5100052010,"263,000.00",MPACT THALES
TfGM,Transport,Capital Costs - Capital Project Main Contract Works,21/05/2013,5100052012,"26,807.76",MPACT THALES
TfGM,Transport,Capital Costs - Capital Project Main Contract Works,21/05/2013,5100052013,"1,203,250.00",MPACT THALES
TfGM,Transport,Capital Costs - Capital Project Main Contract Works,21/05/2013,5100052014,"1,490,000.00",MPACT THALES
TfGM,Transport,Capital Costs - Capital Project Main Contract Works,21/05/2013,5100052016,"29,710.75",MPACT THALES
TfGM,Transport,Capital Costs - Capital Project Main Contract Works,21/05/2013,5100052017,"500,000.00",MPACT THALES
TfGM,Transport,Capital Costs - Capital Project Main Contract Works,21/05/2013,5100052019,"20,000.00",MPACT THALES
TfGM,Transport,Capital Costs - Capital Project Main Contract Works,21/05/2013,5100052020,"45,000.00",MPACT THALES
TfGM,Transport,Capital Costs - Capital Project Main Contract Works,21/05/2013,5100052021,"4,166.66",MPACT THALES
TfGM,Transport,Capital Costs - Capital Project Main Contract Works,21/05/2013,5100052022,"634,000.00",MPACT THALES
TfGM,Transport,Capital Costs - Capital Project Main Contract Works,21/05/2013,5100052023,"284,659.09",MPACT THALES
TfGM,Transport,Capital Costs - Capital Project Main Contract Works,21/05/2013,5100052024,"440,002.32",MPACT THALES
TfGM,Transport,Capital Costs - Capital Project Main Contract Works,21/05/2013,5100052025,"15,000.00",MPACT THALES
TfGM,Transport,Capital Costs - Capital Project Main Contract Works,21/05/2013,5100052026,"4,099.11",MPACT THALES
TfGM,Transport,Capital Costs - Capital Project Main Contract Works,21/05/2013,5100052027,"4,970.35",MPACT THALES
TfGM,Transport,Capital Costs - Capital Project Main Contract Works,21/05/2013,5100052030,"1,750,000.00",MPACT THALES
TfGM,Transport,Capital Costs - Capital Project Main Contract Works,21/05/2013,5100052031,"70,561.00",MPACT THALES
TfGM,Transport,Capital Costs - Capital Project Main Contract Works,21/05/2013,5100052032,"560,000.00",MPACT THALES
TfGM,Transport,Capital Costs - Capital Project Main Contract Works,21/05/2013,5100052033,"20,000.00",MPACT THALES
TfGM,Transport,Capital Costs - Programme and Project Management Services,22/05/2013,5100052069,"7,187.50",ACUITY PROGRAMME MANAGEMENT LTD
TfGM,Transport,Capital Costs - Architectural Services,22/05/2013,5100051689,870.22,AEDAS ARCHITECTS LTD
TfGM,Transport,Vehicle Costs,22/05/2013,1200024772,"1,144.60",ALLSTAR
TfGM,Transport,Print & Media,22/05/2013,5100051901,"1,022.00",ALPHA MEDIA SOLUTIONS
TfGM,Transport,Paper and Printing Consumables,22/05/2013,5100051932,"1,446.70",ANTALIS LTD
TfGM,Transport,Capital Costs - Programme and Project Management Services,22/05/2013,5100051914,"8,637.30",ARK PROJECT MANAGEMENT LTD
TfGM,Transport,Print & Media,22/05/2013,5100051921,"6,658.60",ASTRA SIGNS
TfGM,Transport,Print & Media,22/05/2013,5100051927,"1,362.50",ASTRA SIGNS
TfGM,Transport,Capital Costs - Quantity Surveying Services,22/05/2013,5100051219,"10,708.01",ATKINS LTD
TfGM,Transport,Capital Costs - LRT Vehicles,22/05/2013,5100051499,"2,269.00",AURA GRAPHICS LTD t/a FENN GRAPHICS
TfGM,Transport,Capital Costs - LRT Vehicles,22/05/2013,5100052034,"2,269.00",AURA GRAPHICS LTD t/a FENN GRAPHICS
TfGM,Transport,Concessionary Reimbursement,22/05/2013,1900027665,"4,280.00",BLUESTAR TAXIS
TfGM,Transport,Maintenance,22/05/2013,5100052015,"6,829.23",BT ENGAGE IT
TfGM,Transport,Concessionary Reimbursement,22/05/2013,1900027650,640.00,CALL A CAR PRIVATE HIRE LTD
TfGM,Transport,Driver Intervention Course Delivery Costs,22/05/2013,5100052047,"5,150.00",CARRINGTON BUSINESS PARK (CBPK)
TfGM,Transport,Capital Costs -  Project Support Services,22/05/2013,5100051890,"1,096.00",CDI ANDERSELITE LTD
TfGM,Transport,Capital Costs -  Project Support Services,22/05/2013,5100052067,"1,370.00",CDI ANDERSELITE LTD
TfGM,Transport,Capital Costs - Quantity Surveying Services,22/05/2013,5100051928,732.00,"CFA ARCHAELOGY, LTD"
TfGM,Transport,Print & Media,22/05/2013,5100051931,660.00,CHARACTER MEDIA LTD
TfGM,Corporate Services,Telecommunications,22/05/2013,5100051893,"5,266.23",DAISY COMMUNICATIONS
